Workbook

Sheet Design the Converter
A1: LMR604xx 36VIN, 4A/5A/6A Converter Design Tool
O2: http://www.ti.com/product/lm5175
A3: About | C3: xx | F3: = Input Box | O3: TERMS OF USE
A5: Step 1: Operating Specifications
D6: Device | E6: LMR60460
D7: Input Voltage – Min, VIN(min) | E7: 9 | F7: V
D8: Input Voltage – Nom, VIN(nom) | E8: 12 | F8: V
D9: Input Voltage – Max, VIN(max) | E9: 16 | F9: V
D10: Output Voltage, VOUT | E10: 3.3 | F10: V | G10: =IF(OR(E10=5, E10=3.3), "Fixed", "ADJ") -> Fixed
D11: Full Load Output Current, IOUT | E11: 6 | F11: A
D12: Switching Frequency, FSW | E12: 400 | F12: kHz
D13: Frequency Set Resistor, RT | E13: ='Variable Management'!C352 -> 86.6 | F13: ='Variable Management'!E352 -> kΩ
D14: Ambient Temperature, TA | E14: 25 | F14: °C
A18: Step 2: Buck Inductor
D19: Inductance for 35% Ripple Current at VIN(nom) | E19: =Lopt*1000000 -> 2.848214286 | F19: µH
D20: Buck Inductance, LO | E20: 3.3 | F20: µH
D21: Inductor DCR at 25°C | E21: 5.9 | F21: mΩ
D22: Inductor Pk-Pk Ripple Current at VIN(nom) | E22: ='Variable Management'!B73 -> 1.867400452 | F22: Apk-pk
D23: DIL as a % of Full Load at VIN(nom) | E23: ='Variable Management'!D73*100 -> 31.12334087 | F23: %
D24: Peak Inductor Current at VIN(max) and Full Load | E24: ='Variable Management'!B110 -> 7.03016171 | F24: Apk
D25: Peak Inductor Current Limit at VIN(nom) | E25: =Ipk_OCP_Vinnom -> 9.826805732 | F25: Apk
D26: Estimate Inductor Core Loss at VIN(nom) | E26: 0.2 | F26: W
A28: Step 3: Output Capacitors
D29: Desired Output Voltage Ripple | E29: 15 | F29: mVpk-pk
D30: Effective COUT Value to Meet Ripple Spec | E30: ='Variable Management'!B124 -> 38.90417609 | F30: µF
D31: Desired Crossover Frequency | E31: 40 | F31: =" kHz " -> kHz
D32: Effective COUT Value to Meet Crossover Spec | E32: ='Variable Management'!B220 -> 120.1166501 | F32: µF
D33: Output Capacitance (derated), COUT | E33: 120 | F33: µF
D34: Output Cap ESR (Max) to Meet Ripple Spec | E34: 10 | F34: mΩ
D35: Output Capacitor ESR | E35: 1 | F35: mΩ
D36: Resulting Output Voltage Ripple (max) | E36: ='Variable Management'!B130*1000 -> 5.209238671 | F36: mVpk-pk
D37: Output Capacitor RMS Current (max) | E37: ='Variable Management'!B117 -> 0.5947641404 | F37: A (rms)
D38: Effective Crossover Frequency | E38: ='Stability Calculations'!AK7 -> 38.905 | F38: kHz
A40: Step 4: Input Capacitors
D41: Input Voltage Ripple Spec | E41: 200 | F41: mVpk-pk
D42: Minimum Input Capacitance | E42: ='Variable Management'!B147 -> 18.75 | F42: µF
D43: Input Capacitance (derated), CIN | E43: =2*4.7*0.7 -> 6.58 | F43: µF
D44: Maximum Permitted ESR | E44: ='Variable Management'!B152 -> N/A | F44: mΩ | L44: =CHOOSE(SCH_MODE, "", "** For Single-Output Operation in 2-Phase Mode, tie MODE to VDDA and use FB1 to set VOUT **", "** For Single-Output Operation in 3-Phase Mode, tie both MODE pins to VDDA. Use FB1 of master IC to set VOUT. Connect FB2 of master IC to AGND. Connect FB2 of slave IC to VDDA to configure it as a slave **", "** For Single-Output Operation in 4-Phase Mode, tie both MODE pins to VDDA. Use FB1 of master IC to set VOUT. Connect FB2 of master IC to AGND. Connect FB2 of slave IC to VDDA to configure it as a slave **") -> 
D45: Input Capacitor ESR | E45: 0.3 | F45: mΩ
D46: Resulting Input Voltage Ripple (max) | E46: ='Variable Management'!B157*1000 -> 572.0178631 | F46: mVpk-pk | L46: =CHOOSE(SCH_MODE, "", "** For Single-Output Operation in 2-Phase Mode, tie MODE to VDDA and use FB1 to set VOUT **", "** For Single-Output Operation in 3-Phase Mode, tie both MODE pins to VDDA. Use FB1 of master IC to set VOUT. Connect FB2 of master IC to AGND. Connect FB2 of slave IC to VDDA to configure it as a slave **", "** For Single-Output Operation in 4-Phase Mode, tie both MODE pins to VDDA. Use FB1 of master IC to set VOUT. Connect FB2 of master IC to AGND. Connect FB2 of slave IC to VDDA to configure it as a slave **") -> 
D47: Input Capacitor RMS Current (max) | E47: ='Variable Management'!B140 -> 2.940091423 | F47: A (rms)
A49: Step 5: Feedback Network
D50: =CHOOSE(LMR604x0_FB_sel, "Upper Feedback Resistance (E96), RFBT", "* Tie FB to VOUT for a Fixed 5V Output*", "*Tie FB to VOUT for a Fixed 3.3V Output*") -> *Tie FB to VOUT for a Fixed 3.3V Output* | E50: 100 | F50: kΩ
D51: =CHOOSE(LMR604x0_FB_sel, "Lower Feedback Resistance (E96), RFBB", "","") ->  | E51: =IF(Vout=Vref,"OPEN",Rfb2_u/1000) -> 43.2 | F51: =IF(Vout=Vref,"","kΩ") -> kΩ
D52: =CHOOSE(LMR604x0_FB_sel, "Feedforward Capacitance, CFF", "*Select drop table as No CFF*", "*Select drop table as No CFF*") -> *Select drop table as No CFF* | E52: 10 | F52: pF
A54: Step 6: VIN UVLO
D55: Desired VIN UVLO Turn-On Threshold | E55: 5 | F55: V
D56: UVLO Divider Upper Resistance, RENT | E56: 100 | F56: kΩ
D57: UVLO Divider Lower Resistance (E96), RENB | E57: =Renb_u/1000 -> 33.2 | F57: =IF(Vout=Vref,"","kΩ") -> kΩ
D58: Actual VIN UVLO Turn-On Threshold | E58: =1.25/E57*(E56+E57) -> 5.015060241 | F58: V
D59: Actual VIN UVLO Turn-Off Threshold | E59: =E58*0.8 -> 4.012048193 | F59: V
A62: Step 7: Power Loss & Thermals
D63: IC Power Dissipation | E63: ='Efficiency Calculations'!BE109 -> 1.235222605 | F63: W
D64: Junction Temperature (estimate) | E64: ='Variable Management'!B296 -> 129.2527879 | F64: °C
E65: =CHOOSE(Ext_VCC, "* Tie FB pin to VOUT", "* Tie FB pin to VOUT Resistor Divider") -> * Tie FB pin to VOUT
A68: Pole/Zero Frequencies
D69: Load Pole Frequency, FP-LOAD | E69: =Fp_dominant/1000 -> 3.450186377 | F69: kHz
D70: Output Cap ESR Zero Frequency, FZ-ESR | E70: =Fesr/1000000 -> 1.326291192 | F70: MHz
D71: Error Amp Dominant Pole Frequency, FP-EA | E71: =Fp1_u -> 11.10936208 | F71: Hz
D72: Compensator Zero Frequency, FZ-COMP | E72: =Fz1_u/1000 -> 9.52987375 | F72: kHz
D73: Compensator Pole Frequency, FP-COMP | E73: =Fp2_u_simplified/1000 -> 611.5002323 | F73: kHz

Sheet Image Test (hidden)
B2: Images | C2: Configuration
C3: Fixed
C4: ADJ

Sheet Variable Management (hidden)
A1: EXCEL Variables Names/Calculations
B2: Input from user = | E2: Good
B3: Output =
B4: Constant
A5: Variable Name | B5: Value | C5: STD Units | E5: Notes | I5: Iteration
K7: Device GPN | O7: Use feedforward cap | P7: Use CFF | Q7: 1 | S7: BOM Variant | T7: LMR60440 5V | U7: 1 | Y7: selector used in power loss and thermal calculations
L8: LMR60441 | M8: =IF(AND((Vout=5),(Device="LMR60460")),1,0) -> 0 | P8: No CFF | Q8: 2 | T8: LMR60440 3.3V | U8: 2 | Y8: Fixed Output | Z8: 1
L9: LMR60450 | P9: Result | Q9: 2 | T9: LMR60440 ADJ | U9: 3 | Y9: Adjustable Output | Z9: 2
L10: LMR60460 | P10: No FF | Q10: =IF(Q9=2, TRUE, FALSE) -> TRUE | T10: LMR60430 5V | U10: 4 | Y10: Ext_VCC | Z10: =IF(VOUT_FIXED = TRUE, 1, 2) -> 1
K11: Device Selected | L11: =Device -> LMR60460 | T11: LMR60430 3.3V | U11: 5
T12: LMR60430 ADJ | U12: 6
S14: 4A fixed BOM Variant Selected | U14: =IF(AND(Device="LMR60440",Vout=5),1,IF(AND(Device="LMR60440",Vout=3.3),2,0)) -> 0 | V14: 1 =5V, 4A; 2 = 3.3V, 4A
S15: 3A fixed BOM Variant Selected | U15: =IF(AND(Device="LMR60430",Vout=5),4,IF(AND(Device="LMR60430",Vout=3.3),5,0)) -> 0 | V15: 4 = 5V, 3A; 5 = 3.3V, 3A
S16: 4A BOM Variant Adj | U16: =IF(AND(AND(SelectFixed4A = 0, SelectFixed3A = 0), Device = "LMR60440"),3,) -> 0 | V16: Shows 3 if adj 4A
S17: 3A adj BOM Variant Selected | U17: =IF(AND(AND(SelectFixed4A = 0, SelectFixed3A = 0), Device = "LMR60430"),6,) -> 0 | V17: Shows 6 if adj 3A
S18: BOM Selector | U18: =SUM(U14:U17) -> 0
A19: Step 1: Operational Specs
A20: VIN_min | B20: ='Design the Converter'!E7 -> 9 | C20: V | D20: Minimum input voltage | I20: 1 | K20: Used in Step 5: Feedback Network | O20: Used in efficiency calculations for single/dual phase | R20: Single/Dual Yes/No | S20: 1 | U20: Selector used in schematic design. Mode = RT for FPWM, Mode = GND for DEM | X20: Selector used in Bode plot manager Set to single channel.
A21: VIN_nom | B21: ='Design the Converter'!E8 -> 12 | C21: V | D21: Nominal input voltage | K21: LMR604x0 3.3Vout | L21: =IF(Vout = 3.3, 1, 0) -> 1 | R21: MODE (Single/Dual), DUAL = 1, SINGLE = 2 | S21: =IF(S20=1, 1, 2) -> 1 | U21: FPWM | V21: 1 | Y21: =CHOOSE(SCH_MODE, "Bode Plot (Ch1)", "Bode Plot - 2 Ph", "Bode Plot - 3 Ph", "Bode Plot - 4 Ph") -> Bode Plot (Ch1) | Z21: 1
A22: VIN_max | B22: ='Design the Converter'!E9 -> 16 | C22: V | D22: Maximum input voltage | K22: LMR604x0 5Vout | L22: =IF(Vout=5,1,0) -> 0 | R22: SINGLE OUTPUT (1 = YES) | S22: =IF(S20=1, 2, 1) -> 2 | U22: DEM | V22: 2 | Y22: =IF(MODE=1, "Bode Plot (Ch2)", "N/A - Do Not Use") -> Bode Plot (Ch2) | Z22: 2
K23: Connection Point | L23: =IF(Vout=3.3,3,IF(Vout=5,2,1)) -> 3 | M23: 1 = No, 2 = 5V, 3 = 3.3V | R23: Number of Phases | S23: =SCH_MODE -> 1 | U23: FPWM/DEM | V23: 2 | Y23: BODE_PLOT_TYPE | Z23: 1
A24: Vout | B24: ='Design the Converter'!E10 -> 3.3 | C24: V | D24: Output voltage | K24: Fixed VOUT | L24: =OR(L21,L22) -> TRUE | M24: If VOUT = 5 or 3.3
A25: Iout | B25: ='Design the Converter'!E11 -> 6 | C25: A | D25: Output current | F25: Iout-max | G25: =CHOOSE(GPN, 6, 6) ->  | H25: A | I25: 1
I26: 1
A27: Rout | B27: =Vout/Iout -> 0.55 | C27: Ω | D27: Load resistance | N27: This defines the schematic variant
A28: Pout | B28: =Vout*Iout -> 19.8 | C28: W | D28: Output power | R28: Schematic Look-up Table | U28: Value
N29: Schematic variant definition | O29: LMR60440_Fix_FPWM | P29: 1 | R29: If (Bom selector = 1 or 2 or 4 or 5) & DEMB = 1, do variant 1 | U29: =IF(AND(OR(BOM_sel = 1, BOM_sel = 2, BOM_sel = 4, BOM_sel =5), DEMB = 1),1,) -> 0
A30: Efficiency | B30: 0.9 | D30: Estimate of efficiency | O30: LMR60440_Adj_FPWM | P30: 2 | R30: if (BOM selector = 3 or 6) & DEMB = 1, do variant 2 | U30: =IF(AND(OR(BOM_sel = 3, BOM_sel = 6), DEMB = 1),2,) -> 0
A31: Pin | B31: =Pout/Efficiency -> 22 | C31: W | D31: Calculate input power assuming finite efficiency | O31: LMR60440_Fix_DEM | P31: 3 | R31: If (Bom selector = 1 or 2 or 4 or 5) & DEMB = 2, do variant 3 | U31: =IF(AND(OR(BOM_sel = 1, BOM_sel = 2, BOM_sel = 4, BOM_sel =5), DEMB = 2),3,) -> 0
O32: LMR60440_Adj_DEM | P32: 4 | R32: If (Bom selector = 3 or 6) & DEMB = 2, do variant 4 | U32: =IF(AND(OR(BOM_sel = 3, BOM_sel = 6), DEMB = 2),4,) -> 0
A33: Iin_Vinmin | B33: =Pin/VIN_min -> 2.444444444 | C33: A | R33: Result | U33: =SUM(U29:U32) -> 0
A34: Iin_Vinnom | B34: =Pin/VIN_nom -> 1.833333333 | C34: A | D34: Input currents at min, nom, max Vin | H34: =AND(OSC=1, OR(Fsw/1000>2530, Fsw/1000<1800)) -> FALSE | T34: VARIANT | U34: =U33 -> 0
A35: Iin_Vinmax | B35: =Pin/VIN_max -> 1.375 | C35: A | H35: =AND(OSC=2, OR(Fsw/1000>500, Fsw/1000<300)) -> FALSE
H36: =OR(H34,H35) -> FALSE
A37: Fsw | B37: ='Design the Converter'!E12*1000 -> 400000 | C37: Hz | D37: Nominal switching frequency - determines RT resistor
A38: RT resistor to AGND | B38: =((1/Fsw-(69.6*10^-9))/(2.825*10^-11))/1000 -> 86.03185841 | C38: kΩ | I38: 1 | K38: basically if has fixed RT option
A39: Tsw | B39: =1/Fsw -> 2.5e-06 | C39: sec | D39: Switching period
A40: Max crossover frequency = 20% Fsw | B40: =Fsw*0.2/1000 -> 80 | C40: kHz | F40: Min Crossover | G40: 10 | K40: Adjustable
A41: Vref | B41: 1 | C41: V | D41: Reference voltage | K41: 5V
A42: Rt | B42: ='Standard Value Calculator'!O12/1000 -> 86.6 | C42: kΩ | D42: Frequency set resistor | F42: =IF(OR((Fsw=440000),(Fsw=2200000)),"N/A",Rfadj/1000) -> 0.0866 | K42: 3.3V | L42: 1
K43: Adjustable_NoRT | L43: 2
K44: 5V_NoRT | L44: 3
K45: 3.3V_NoRT | L45: 4
A46: Step 2: Buck Inductor | B46: Channel 1 | K46: Schematic setting | L46: 5
A47: Don1 | B47: =Vout/VIN_nom -> 0.275 | F47: Ideal Duty Cycle at VIN(nom) | L47: 6
A48: Doff1 | B48: =1-B47 -> 0.725 | F48: Ideal 1- Duty Cycle at VIN(nom) | L48: =IF(No_RT, IF(Vout=3.3, 6, IF(Vout=5, 5, 4)),IF(Vout=3.3, 3, IF(Vout=5, 2, 1))) -> 3
A50: D_Vinmin | B50: =Vout/VIN_min -> 0.3666666667
A51: D_Vinnom | B51: =Vout/VIN_nom -> 0.275
A52: D_Vinmax | B52: =Vout/VIN_max -> 0.20625
A54: L_Vinnom | B54: =(VIN_nom-Vout)*D1_Vinnom/(Fsw*Iout*0.35) -> 2.848214286e-06 | C54: H | F54: Calculated inductance for 35% ripple at VIN(nom)
A55: L_slopecomp | B55: =0.27*Vout/Fsw -> 2.2275e-06 | C55: H | D55: Matches DS | F55: Calculated inductance based on one times inductor downslope
A57: Lopt | B57: =B54 -> 2.848214286e-06 | C57: H | F57: min of calculated inductances at VIN(min) and VIN(nom)
A58: L_actual_TPSM63602-03 | B58: =-0.0238*Iout^2-0.0868*Iout+2.0073 -> 0.6297 | C58: uH | F58: Calculate TOKO chip inductance based on entered load current value
A59: L_actual_TPSM63604-06 | B59: =-0.1304*Iout+2.32 -> 1.5376 | C59: uH | F59: Calculate MagLayers inductance based on entered load current value
A61: Lo | B61: ='Design the Converter'!E20*0.000001 -> 3.3e-06 | C61: H | F61: Chosen inductance
A62: Rdcr | B62: ='Design the Converter'!E21/1000 -> 0.0059 | C62: Ω | F62: Chosen inductor DCR
A64: Don2 | B64: =(Vout+Iout*(Rdcr+Rdson2))/(Vin+Iout*(Rdson2-Rdson1)) -> 0.2915535445
A65: Doff2 | B65: =1-_Don2 -> 0.7084464555
A67: D_Vinmin_2 | B67: =(Vout+Iout*(Rdcr+Rdson2))/(VIN_min+Iout*(Rdson2-Rdson1)) -> 0.3894560107 | D67: =Vout/VIN_min -> 0.3666666667 | F67: Duty cycles adjusted for DCR/Rdson voltage drops
A68: D_Vinnom_2 | B68: =(Vout+Iout*(Rdcr+Rdson2))/(VIN_nom+Iout*(Rdson2-Rdson1)) -> 0.2915535445 | D68: =Vout/VIN_nom -> 0.275
A69: D_Vinmax_2 | B69: =(Vout+Iout*(Rdcr+Rdson2))/(VIN_max+Iout*(Rdson2-Rdson1)) -> 0.2183632484 | D69: =Vout/VIN_max -> 0.20625 | F69: =(Ts-0.000000085)/Ts -> 0.966 | G69: Dmax = [Ts-toff(min)]/Ts
A72: Iripple_Vinmin | B72: =(VIN_min-Vout-Iout*(Rdcr+Rdson1))*D1_Vinmin_2/(Fsw*Lf) -> 1.609338452 | C72: A | D72: =B72/Iout -> 0.2682230753 | F72: Ripple calculations include DCR and Rdson
A73: Iripple_Vinnom | B73: =(VIN_nom-Vout-Iout*(Rdcr+Rdson1))*D1_Vinnom_2/(Fsw*Lf) -> 1.867400452 | C73: A | D73: =B73/Iout -> 0.3112334087 | F73: % ripple current at Vin-nom
A74: Iripple_Vinmax | B74: =(VIN_max-Vout-Iout*(Rdcr+Rdson1))*D1_Vinmax_2/(Fsw*Lf) -> 2.060323419 | C74: A | D74: =B74/Iout -> 0.3433872366 | F74: Max inductor ripple current - it's at Vin-max
A76: Iinductor_rms_Vinmin | B76: =SQRT(Iout^2+(Iripple_Vinmin^2)/12) -> 6.017959027 | C76: A
A77: Iinductor_rms_Vinnom | B77: =SQRT(Iout^2+(Iripple_Vinnom^2)/12) -> 6.024167885 | C77: A
A78: Iinudctor_rms_Vinmax | B78: =SQRT(Iout^2+(Iripple_Vinmax^2)/12) -> 6.029406636 | C78: A
A81: Core loss estimate - Vin(nom) | B81: ='Design the Converter'!E26 -> 0.2 | C81: W
A84: Inductor copper temperature | B84: 125 | C84: °C
A85: Inductor DCR at hot | B85: =Rdcr*(1+Ltc*(B84-25))*1000 -> 8.2187 | C85: mΩ
A88: Step 2b: Sense Resistors, Slope Comp, Current Limit
A90: Ilimit_inductor_Vinmin | B90: =Ipk_OCP_Vinmin -> 9.634329483 | C90: A | D90: refers to B87 | F90: Peak inductor current at current limit inception
A91: Ilimit_inductor_Vinnom | B91: =Ipk_OCP_Vinnom -> 9.826805732 | C91: A | D91: refers to B88
A92: Ilimit_inductor_Vinmax | B92: =Ipk_OCP_Vinmax -> 9.970697854 | C92: A | D92: refers to B89
A94: CS threshold_min | B94: 0.068 | C94: V | D94: not applicable here
A95: CS threshold | B95: 0.075 | C95: V | D95: not applicable here
A96: CS threshold_max | B96: 0.082 | C96: V | D96: not applicable here
A98: Rs | B98: 0.065 | C98: Ω | F98: Current sense resistance Rs = 0.12Ohm: high-side MOSFET Rdson
A100: Current limit setpoint - peak - Vin(min) | B100: =_xlfn.SWITCH(Device,"LMR60441",6.7,"LMR60450",8.7,"LMR60460",10.4,10.4)-(1.966)*MAX(0, (D1_Vinmin_2)) -> 9.634329483 | C100: A | E100: 6.9-1.966*MAX(0, (D1_Vinmin_2)) (original) | F100: Golf Peak Current limit can be defined that at 100% duty cycle, the current limit will drop by 28.5% from the 0% duty cycle current limit (6.9A nominal)
A101: Current limit setpoint - peak - Vin(nom) | B101: =_xlfn.SWITCH(Device,"LMR60441",6.7,"LMR60450",8.7,"LMR60460",10.4,10.4)-(1.966)*MAX(0, (D1_Vinnom_2)) -> 9.826805732 | C101: A | F101: Peak current limit (6.9A trimmed at ATE minus slope comp contribution) = min inductor sat current at hot
A102: Current limit setpoint - peak - Vin(max) | B102: =_xlfn.SWITCH(Device,"LMR60441",6.7,"LMR60450",8.7,"LMR60460",10.4,10.4)-(1.966)*MAX(0, (D1_Vinmax_2)) -> 9.970697854 | C102: A
A104: Iout_OCP_Vinmin | B104: =Ipk_OCP_Vinmin-Iripple_Vinmin/2 -> 8.829660257 | C104: A | F104: Current limit setpoints (i.e. IOUT) assuming no CS delay
A105: Iout_OCP_Vinnom | B105: =Ipk_OCP_Vinnom-Iripple_Vinnom/2 -> 8.893105505 | C105: A
A106: Iout_OCP_Vinmax | B106: =Ipk_OCP_Vinmax-Iripple_Vinmax/2 -> 8.940536144 | C106: A
A108: Ipk_full-load_Vinmin | B108: =Iout+Iripple_Vinmin/2 -> 6.804669226 | C108: A
A109: Ipk_full-load_Vinnom | B109: =Iout+Iripple_Vinnom/2 -> 6.933700226 | C109: A
A110: Ipk_full-load_Vinmax | B110: =Iout+Iripple_Vinmax/2 -> 7.03016171 | C110: A
A113: Step 3: Output Capacitor
A114: Icoutrms_VINmin | B114: =Iripple_Vinmin/SQRT(12) -> 0.4645759941 | C114: A | F114: Output cap RMS current
A115: Icoutrms_VINnom | B115: =Iripple_Vinnom/SQRT(12) -> 0.539072077 | C115: A
A116: Icoutrms_VINmax | B116: =Iripple_Vinmax/SQRT(12) -> 0.5947641404 | C116: A
A117: Max Cout rms current | B117: =MAX(B114:B116) -> 0.5947641404 | C117: A
A119: Vripple1 | B119: ='Design the Converter'!E29/1000 -> 0.015 | C119: V | F119: Output voltage ripple spec(pk-pk)
A121: Output Ripple Spec (pk-pk) | B121: =Vo1_ripple*1000 -> 15 | C121: mV | F121: Vout ripple spec at Vin(nom)
A123: Coutmin | B123: =Iripple_Vinnom/(Fsw*8*Vo1_ripple) -> 3.890417609e-05 | C123: F | F123: Minimum output capacitnace | H123: =Vo2_ripple -> 0 | I123: 1
A124: Reported Coutmin | B124: =IF(Cout_min*1000000<10, 10,Cout_min*1000000) -> 38.90417609 | C124: uF
A125: Cout | B125: ='Design the Converter'!E33/1000000 -> 0.00012 | C125: F | F125: Chosen output capacitance | I125: 1
A126: Resrmax | B126: =SQRT((Vo1_ripple/Iripple_Vinnom)^2-(1/(Fsw*Cout*8))^2) -> 0.007598702716 | C126: Ω | F126: Max ESR before ripple exceeds Vripple1. Terms are squared because the voltage ripple from ESR and output capacitor are out of phase, so you need to treat the ripples like you're summing two orthogonal vectors. | I126: 1
A128: Reported Cout ESR max | B128: =IF(OR(CoutEsrMax>0.3, CoutEsrMax<0, (ISERROR(CoutEsrMax))), "N/A", CoutEsrMax*1000) -> 7.598702716 | C128: mΩ
A129: CoutEsr | B129: ='Design the Converter'!E35/1000 -> 0.001 | C129: Ω | F129: Chosen ESR | I129: 1 | K129: =ISERROR(CoutEsrMax) -> FALSE
A130: Vripple | B130: =Iripple_Vinnom*SQRT(Cout_ESR^2+(1/(8*Fsw*Cout))^2) -> 0.005209238671 | C130: Vp-p
K131: =OR(TRUE, FALSE, TRUE) -> TRUE | L131: =ISERROR(B128) -> FALSE
A132: Step 4: Input Capacitor | L132: =OR(CoutEsrMax>0.3,CoutEsrMax<0) -> FALSE
A134: Icinrms_VINmin | B134: =SQRT(D1_Vinmin_2*(Iout^2*(1-D1_Vinmin_2)+Iripple_Vinmin^2/12)) -> 2.940091423 | C134: A | F134: Calculate input cap rms current
A135: Icinrms_VINnom | B135: =SQRT(D1_Vinnom_2*(Iout^2*(1-D1_Vinnom_2)+Iripple_Vinnom^2/12)) -> 2.742358071 | C135: A
A136: Icinrms_VINmax | B136: =SQRT(D1_Vinmax_2*(Iout^2*(1-D1_Vinmax_2)+Iripple_Vinmax^2/12)) -> 2.494343885 | C136: A | O136: A
A137: Max Cin rms current | B137: =MAX(B134:B136) -> 2.940091423 | C137: A
A139: Icinrms - max at D = 0.5 | B139: =Iout/2 -> 3 | C139: A
A140: Final result | B140: =IF(VIN_min<2*Vout, Iout/2, B134) -> 2.940091423 | C140: A | D140: …report this
A142: Vinripple1 | B142: ='Design the Converter'!E41/1000 -> 0.2 | C142: Vp-p | F142: Input voltage ripple spec (pk-pk)
F143: =Number_of_Phases -> 1
A144: Cinmin_Vinmax | B144: =Iout*D1_Vinmax*(1-D1_Vinmax)/(Vinripple1*Fsw) -> 1.227832031e-05 | C144: F | F144: Calculate cap at Vinmax and 50% duty cycle (Vin = 2*Vout)
A145: Cinmin_50%D | B145: =Iout*0.5*(1-0.5)/(Vinripple1*Fsw) -> 1.875e-05 | C145: F | F145: Buck 50% typically worst case
A146: Cinmin | B146: =IF(VIN_max<2*Vout, B144,B145) -> 1.875e-05 | C146: F
A147: Reported Cinmin | B147: =IF(Cinmin*1000000<4.7, 4.7,Cinmin*1000000) -> 18.75 | C147: uF | F147: …report this
A148: Cin | B148: ='Design the Converter'!E43/1000000 -> 6.58e-06 | C148: F | F148: Input capacitance
A149: CinEsrMax_Vinmax | B149: =-(Iout*D1_Vinmax*(1-D1_Vinmax)/(Cin*Fsw)-Vinripple1)/(Iout+Iripple_Vinmax/2) -> -0.02463687643 | C149: Ω
A150: CinEsrMax_50%D | B150: =-(Iout*0.5*(1-0.5)/(Cin*Fsw)-Vinripple1)/(Iout+Iripple_Vinmax/2) -> -0.0526173977 | C150: Ω | F150: Calculate ESR at Vinmax and 50% duty cycle (Vin = 2*Vout)
A151: CinEsrMax | B151: =IF(VIN_max<2*Vout, B149,B150) -> -0.0526173977 | C151: Ω
A152: Reported Cin ESR max | B152: =IF(OR(CinEsrMax>0.3, CinEsrMax<0), "N/A",CinEsrMax*1000) -> N/A | C152: mΩ | F152: …report this
A153: RCinEsr | B153: ='Design the Converter'!E45/1000 -> 0.0003 | C153: Ω | F153: Input capacitance series resistance (ESR)
A155: Vinripple2_Vinmax | B155: =Iout*D1_Vinmax_2*(1-D1_Vinmax_2)/(Cin*Fsw)+(Iout +Iripple_Vinmax/2)*RCinEsr -> 0.3911988817 | C155: Vp-p
A156: Vinripple2_50%D | B156: =Iout*0.5*(1-0.5)/(Cin*Fsw)+(Iout +Iripple_Vinmax/2)*RCinEsr -> 0.5720178631 | C156: Vp-p | F156: Calculate ripple at Vinmax and 50% duty cycle (Vin = 2*Vout)
A157: Vinripple2 | B157: =IF(VIN_max<2*Vout, B155,B156) -> 0.5720178631 | C157: Vp-p | F157: …report highest of these
B159: =Iout*D1_Vinmax_2*(1-D1_Vinmax_2)/(Cin*Fsw) -> 0.3890898332 | C159: Vp-p
A161: Step ?: Other Components - MODE
A163: RPG1/2 | B163: 100 | C163: kΩ
A164: RFB1/2 | C164: Ω | E164: Tie to VDDA 3.3V/5V output, respectively.
A165: R_MODE | C165: Ω | E165: Tie to VDDA or AGND for Single/Dual operation, respectively.
C166: Ω
A169: Step 5: Feedback Network and Internal Compensation
A170: Pi | B170: =PI() -> 3.141592654 | D170: p
A171: CS Amp Gain (effective value) | B171: =_xlfn.SWITCH(Device,"LMR60441",2.342,"LMR60450",1.8735,"LMR60460",1.5613,1.5613) -> 1.5613 | C171: 1.3 | D171: CS Amp = gm2*Rs; and shunt resistor Rs is high-side MOSFET resistance RDSONHS | F171: Effective CS gain - depending on control architecture
A172: Ri | B172: =Rdson1*CSAmp_gain -> 0.0546455 | C172: Ω | D172: Grabbed value from SIMPLIS model.Use slightly higher value to match bench | F172: Current Sense effective resistance = shunt resistor Rs * CS amp gain
A174: Se_ext | B174: =(B178/Ri)*1000000 -> 1122984000 | C174: A/s | F174: Slope Comp Slope - referred to inductor current
A175: Sn | B175: =(Vin-Vout)/Lf -> 2636363.636 | C175: A/s | D175: (VIN-VOUT)/L | F175: On-time Slope
A176: Sf | B176: =Vout/Lf -> 1000000 | C176: A/s | D176: VOUT/L | F176: Off-time Slope
A178: Se_int | B178: =0.27*1.733*_xlfn.SWITCH(Device,"LMR60441",4,"LMR60450",5,"LMR60460",6,6)*Fsw*Ri/1000 -> 61.36602217 | C178: mV/μs | D178: From SIMPLIS (1V amplitude, period of 1/fsw, multiply by gain of 0.27) | F178: Slope Comp Slope - referred to IC | H178: Slope = 0.27
A179: Sn_int | B179: =Sn*Ri/1000 -> 144.0654091 | C179: mV/μs | F179: Upslope
A180: Sf_int | B180: =Sf*Ri/1000 -> 54.6455 | C180: mV/μs | F180: Downslope
A182: Gain Terms Control-to-Output
A183: Km | B183: =VIN_nom/0.27 -> 44.44444444 | C183: =1/((0.5-D1_Vinnom)*Ri*(1/(Fsw*Lf))+(Vout*Ri*(1/(Lf*Fsw))/VIN_nom)) -> 48.31138886 | D183: From Sheehan's paper | F183: =1/((0.5-D1_Vinnom)*Ri*(1/(Fsw*Lf))+(Vout*Ri*(1/(Lf*Fsw))/VIN_nom)) -> 48.31138886 | G183: =1/((0.5-D1_Vinnom)*Ri*(1/(Fsw*Lf))+(Vout*Ri*(1/(Lf*Fsw))/VIN_nom)) -> 48.31138886 | H183: =1/((0.5-D1_Vinnom)*Ri*(1/(Fsw*Lf))+((Se_int*1000/Fsw)*CSAmp_gain)/VIN_nom) -> 34.15866237
A184: Kd | B184: =1+(Ro/(Km*Ri)) -> 1.208333333 | D184: From Sheehan's paper
A185: mc | B185: =1+Se_int/Sn_int -> 1.425959448 | D185: Mc is ratio of 1+ (Se_int/Sn_int)
A186: Q | B186: =1/(Pi*((1-(Vout/Vin))*(mc)-0.5)) -> 0.5962862546 | D186: Q equation in PCM2 Bob Sheehan | F186: 1/(Pi*(k-0.5)) | H186: Q = 2/Pi = 0.636 gives ideal one-cycle damping
A188: Error Amp (EA)
A189: gm | B189: 8.648e-06 | C189: S | F189: Error Amp Transconductance
A190: Imod | B190: 0.0003753
A191: GBW | B191: 1.44 | C191: MHz | D191: Check Simplis (plotting TF across error amp_ | F191: EA gain-bandwidth product
A192: Cbw | B192: =gm/(2*Pi*GBW*1000000) -> 9.558138527e-13 | C192: F | D192: Need to check | F192: EA effective bandwidth limiting capacitance = gm/(2*Pi*GBW)
A194: RoEA | B194: 540000000 | C194: Ω | D194: Simplis model (DCGain/GM) | F194: EA output resistance
A196: AEA | B196: =gm*RoEA -> 4669.92 | C196: V/V | F196: EA DC gain = gm*RoEA
A197: Afb | B197: =Vref/Vout -> 0.303030303 | C197: V/V | F197: Feedback gain from Vout to FB
A198: Acs | B198: =1/Ri -> 18.29976851 | C198: =1/Ri -> 18.29976851 | F198: Acs = 1/Ri
A199: Am | B199: =Rout/Ri -> 10.06487268 | D199: Buck modulator gain
C200: =Acs*Ro/Kd -> 8.329549804
A201: DC Gain is Adc = AEA*Afb*Am
A202: Power-Stage
A203: Rout | B203: =Rout -> 0.55 | C203: Ω | F203: Output Resistance (Load)
A204: Fp_load_buck_simplified | B204: =Kd/(2*Pi*Ro*Cout) -> 2913.821559 | C204: Hz | F204: Buck dominant pole frequency - without slope comp influence
A205: Fp_load_buck | B205: =Kd/(2*Pi*Ro*Cout)+((mc*(1-D1_Vinnom)-0.5)/(2*Pi*Fsw*Lf*Cout)) -> 3450.186377 | C205: Hz | F205: Buck dominant pole frequency -- note slope comp influence
A206: Fp_dominant | B206: =Fload_u -> 3450.186377 | C206: Hz
A207: Inductor pole | B207: =(B183*Ri)/(2*Pi*Lf) -> 117132.6794 | C207: Hz | D207: inductor pole
A208: Fesr | B208: =1/(2*Pi*Cout*Cout_ESR) -> 1326291.192 | C208: Hz | F208: Cout ESR zero frequency
A209: Cbw | B209: =Cbw -> 9.558138527e-13 | C209: F | F209: Cbw
A211: Error Amplifier
A212: Fp_EA | B212: =1/(2*Pi*(RoEA)*Cc1ea_u) -> 11.10936208 | C212: Hz | F212: Error Amp LF pole -- related to amplifier ouptut resistance and comp cap
A213: Fp_HF_simplified | B213: =1*(Cc1ea_u+Cc2ea_u)/(2*Pi*Rcea1_u*Cc2ea_u*Cc1ea_u) -> 611500.2323 | C213: Hz | F213: Error Amp HF pole without Cbw effect (like the SIMPLIS model)
A214: Fp_HF | B214: =1/(2*Pi*Rcea1_u*(Cc2ea_u+Cbw)) -> 183765.8126 | C214: Hz | F214: Error Amp HF pole cancels zero related to Output Cap ESR
A215: F_mod | B215: =Fsw/2 -> 200000 | C215: Hz | F215: Zero-order sample-and-hold effects of current-mode control modeled as pole at Fsw/2
A216: Fz_ff | B216: =IF(NO_FF_CAP=TRUE, 1000000000, 1/(2*Pi*Rfb1_*Cff_u*0.000000000001)) -> 1000000000 | C216: Hz | D216: =Fz_ff/1000 -> 1000000 | E216: kHz
A217: Fp_ff | B217: =IF(NO_FF_CAP=TRUE, 1000000000, 1/(2*Pi*Rfb4_u*Cff_u*0.000000000001)) -> 1000000000 | C217: Hz | D217: =Fp_ff/1000 -> 1000000 | E217: kHz
A219: Desired Crossover Frequency | B219: ='Design the Converter'!E31*1000 -> 40000 | C219: Hz
A220: Cout - for the Fc spec | B220: =(Rcea1_u*gm*Vref)/(Fcross*2*Pi*Vout*Ri)*1000000 -> 120.1166501 | C220: uF | F220: Output cap to meet the crossover frequeny spec
A222: Chosen Compensation Components from the standard value sheet
A223: Rcea1_u | B223: 629500 | C223: Ω | D223: Rcomp | F223: =1/(Rcea1*2*Pi*(Fsw/2))-Cbw -> 
A224: Cc1ea_u | B224: 2.653e-11 | C224: F | D224: Ccomp
A225: Cc2ea_u | B225: 4.2e-13 | C225: F | D225: Chf
A227: Resulting Pole/Zero Locations | F227: =Cout -> 0.00012 | G227: =Cout_ESR -> 0.001
A228: Fz1 | B228: =1/(2*Pi*Rcea1_u*Cc1ea_u) -> 9529.87375 | C228: Hz | D228: Zero from Rcomp, Ccomp | F228: This zero is set at or close to the dominant load pole
A229: Fp2 | B229: =1/(2*Pi*Rcea1_u*(Cc2ea_u+Cbw)) -> 183765.8126 | C229: Hz | D229: high frequency pole Rcomp, Chf | F229: This pole cancels the zero from the Output Cap ESR
A231: Rfb1 | B231: ='Design the Converter'!E50*1000 -> 100000 | C231: Ω | F231: Upper Feedback Resistance - chosen by user
A232: Rfb2 | B232: =IF(Vout=Vref, "N/A", Vref*B231/(Vout-Vref)) -> 43478.26087 | C232: Ω | D232: =Rfb2_u -> 43200 | F232: Upper Feedback Resistance
A233: Rfb2_u | B233: =IF(Vout=Vref,"N/A",'Standard Value Calculator'!O11) -> 43200 | C233: Ω | F233: Std Value Upper Feedback Resistance
A234: Cff | B234: =1/(2*Pi*200000)/Rfb1_ -> 7.957747155e-12 | C234: F | D234: =1/(1/Rfb1_+1/Rfb2_u) -> 30167.59777 | E234: Ω | F234: Based on a 200kHz zero frequency
A235: Cff_u | B235: =IF('Design the Converter'!E52<0.1, 0.1, 'Design the Converter'!E52) -> 10 | C235: pF
A238: Step 6: UVLO Divider
A239: VIN UVLO turn-on voltage | B239: ='Design the Converter'!E55 -> 5 | C239: V
A240: VIN UVLO turn-off voltage | B240: ='Design the Converter'!E59 -> 4.012048193 | C240: V
A241: Rent | B241: ='Design the Converter'!E56*1000 -> 100000 | C241: Ω
A242: Renb | B242: =B241*(1.25/(B239-1.25)) -> 33333.33333 | C242: Ω
A243: Renb_u | B243: ='Standard Value Calculator'!O7 -> 33200 | C243: Ω
A245: Step 7: Efficiency
A246: VAR | B246: 0
A247: Design
A248: Ta | B248: ='Design the Converter'!E14 -> 25 | C248: °C | D248: Ambient Temperature
A249: Components
A250: LTc | B250: =3930/1000000 -> 0.00393 | C250: %/°C | D250: Inductor DCR Temp Co
A251: θCA | B251: 22 | C251: °C/W | D251: Inductor Core-to-Ambient Thermal Resistance
A252: RCinEsr | B252: =RCinEsr -> 0.0003 | C252: Ω | D252: Input Capacitor ESR
... 83 more rows

Sheet Schematic Management (hidden)
A1: =VARIANT -> 0 | N1: 3.3V or 5V fixed (FB1/2)
A2: =CHOOSE(VARIANT, "LMR60440_fix_FPWM", "LMR60440_adj_FPWM", "LMR60440_fix_DEM", "LMR60440_adj_DEM") ->  | J2: With/without dither (DITH) | N2: With/without VOUT connected to VCCX
J3: FPWM or DEM (DEMB)
J4: Shunt or inductor DCR current sensing

Sheet Schematic & BOM (hidden)
A32: ="VIN = "&VIN_min&" V to "&VIN_max&" V, VOUT = "&Vout&" V, IOUT = "&Iout&" A, Fsw = "&Fsw/1000&" kHz" -> VIN = 9 V to 16 V, VOUT = 3.3 V, IOUT = 6 A, Fsw = 400 kHz
A33: High-Efficiency Synchronous Buck DC/DC Converter BOM
A34: Count | B34: Ref Des | C34: Value | D34: Description | H34: Size | I34: Part Number | J34: MFR
A35: =ROUNDUP('Design the Converter'!E43/10,0) -> 1 | B35: CIN1, CIN2 | C35: 10 | D35: =C35 -> 10 | H35: 1210 | I35: Std | J35: Std
A36: 2 | B36: COUT | C36: 47 | D36: =C36 -> 47 | H36: 1210 | I36: Std | J36: Std
A37: 1 | B37: CVCC | C37: 1 | D37: =C37 -> 1 | H37: 0402 | I37: Std | J37: Std
A38: 1 | B38: CSYNC | C38: 1 | D38: =C38 -> 1 | H38: 0402 | I38: Std | J38: Std
A39: 1 | B39: CFF | C39: ='Variable Management'!D310 -> 10 | D39: 10 | H39: 0402 | I39: Std | J39: Std
A40: 1 | B40: LO | C40: ='Design the Converter'!E20 -> 3.3 | D40: ="Buck Inductor, "&Lf*1000000&" µH, "&Rdcr*1000&" mΩ, >"&ROUNDUP(Ipk_OCP_Vinmin*1.05,0)&" A" -> Buck Inductor, 3.3 µH, 5.9 mΩ, >11 A | H40: -- | I40: -- | J40: Various
A41: 1 | B41: RRT | C41: ='Design the Converter'!E13 -> 86.6 | D41: =C41 -> 86.6 | H41: 0402 | I41: Std | J41: Std
A42: 1 | B42: RFBT | C42: ='Design the Converter'!E50 -> 100 | D42: =C42 -> 100 | H42: 0402 | I42: Std | J42: Std
A43: 1 | B43: RFBB | C43: ='Design the Converter'!E51 -> 43.2 | D43: 43.2 | H43: 0402 | I43: Std | J43: Std
A44: 1 | B44: RENT | C44: ='Variable Management'!D313 -> 100 | D44: =C44 -> 100 | H44: 0402 | I44: Std | J44: Std
A45: 1 | B45: RENB | C45: ='Variable Management'!D314 -> 33.2 | D45: 33.2 | H45: 0402 | I45: Std | J45: Std
A46: 1 | B46: RPGOOD | C46: 100 | D46: 100 | H46: 0402 | I46: Std | J46: Std
A47: 1 | B47: U1 | C47: ='Variable Management'!O34 -> 0 | D47: =CHOOSE(GPN, "IC, LMR36503E-Q1 Synchronous Buck DC/DC Converter, 3V–65V Input, 0.3A Output", "IC, LMR36503E-Q1 Synchronous Buck DC/DC Converter, 3V–65V Input, 0.3A Output", "IC, LMR36503E-Q1 Synchronous Buck DC/DC Converter, 3V–65V Input, 0.3A Output") ->  | H47: VQFN-22 | I47: =CHOOSE(VARIANT, "LM63460AASQRYFTQ1", "LM63460AFSQRYFTQ1", "LM64460APPQRYFRQ1", "LM64460BPPQRYFRQ1", "LM64460CPPQRYFRQ1") ->  | J47: TI
A50: NOTES:
A51: ** Effective input and output capacitances should be appropriately derated for applied voltage and temperature, particularly with ceramics **

Sheet EVMs (hidden)
A1: LM63460-Q1 & LM64460-Q1 Converter Design Tool
B6: LM64460EVM-2MHZ (BSR173) PCB Layout

Sheet MOSFET Parameters (hidden)
A3: MOSFET Parameters
E4: Internal Power MOSFETs
E5: High-side | F5: Low-side
D6: On-State Resistance, RDS(on) | E6: 35 | F6: 24 | G6: mΩ | H6: LMR60460 Switcher Template
D7: Total Gate Charge, QG | E7: 3.182 | F7: 5.047 | G7: nC | H7: LMR60460 FET parameter table @36V
D8: Gate-Drain Charge, QGD | E8: 1.446 | F8: 2.011 | G8: nC | H8: LMR60460 FET parameter table @36V
D9: Gate-Source Charge, QGS | E9: 1.977 | F9: 3.873 | G9: nC | H9: LMR60460 FET parameter table @36V
D10: Output Charge, QOSS | E10: =E11*36/1000 -> 4.086 | F10: =F11*36/1000 -> 8.5716 | G10: nC | H10: LMR60460 FET parameter table @36V
D11: Output Capacitance, COSS | E11: 113.5 | F11: 238.1 | G11: pF | H11: Qoss/36V
D12: Gate Resistance, RGATE | E12: 0 | F12: 0 | G12: Ω
D13: Transconductance, gFS | E13: 100 | F13: 100 | G13: S
D14: Gate-Source Miller Plateau Voltage, VTH | E14: 1.2 | F14: 1.1 | G14: V
D15: Body Diode Forward Voltage, VBD | E15: 0.7 | F15: 0.7 | G15: V | H15: LMR60440 Switcher Template
D16: Body Diode Rev Recovery Charge, QRR | E16: 4.5 | F16: 7 | G16: nC | H16: N/A
D17: Thermal Resistance, θJA | E17: 27 | F17: 27 | G17: °C/W
A20: Note:
A21: 2025-10-29 | B21: values from Corolla Parameter FET table (worst case)

Sheet Stability Calculations (hidden)
T1: 2025-03-21 | U1: AM matches
A2: Divider Network & EA Poles/Zeros | E2: Modulator | J2: Power Stage Poles/Zeros | M2: Complex Pole Pair | P2: Total System | U2: Afb matches
B3: Afb1 | C3: =Afb*1 -> 0.303030303 | D3: V/V | E3: Acs | F3: =Acs -> 18.29976851 | G3: A/V | H3: gm | I3: =gm -> 8.648e-06 | J3: z_ESR | K3: =Fesr -> 1326291.192 | L3: Hz | M3: p3 | N3: =Fsw/2 -> 200000 | O3: Hz | P3: Adc | Q3: =Am_stability*C3*0.8*Aea_stability -> 11394.46066 | R3: V/V | U3: p_dom matches SIMPLIS model if neglecting slope comp influence. Need to change back
B4: EA zero, z1 | C4: =Fz1_u -> 9529.87375 | D4: Hz | E4: Am | F4: =Am_new -> 10.06487268 | G4: V/V | J4: p_dom | K4: =Fp_load_buck_simplified -> 2913.821559 | L4: Hz | M4: pterm1 | N4: =Q*pole3 -> 119257.2509 | P4: Crossover | Q4: =AK7 -> 38.905 | R4: kHz | U4: z_ESR doesn't really matter (beyond half the switching frequency)
B5: EA pole, p1 | C5: =Fp1_u -> 11.10936208 | D5: Hz | E5: Q | F5: =Q -> 0.5962862546 | J5: p_L | K5: =FL -> 117132.6794 | L5: Hz | M5: pterm2 | N5: =pole3^2 -> 40000000000 | P5: Phase Margin | Q5: =AK9 -> 59.84607337 | R5: ° | U5: FF zero, FF pole don't matter (beyond)
B6: Aea | C6: =AEA -> 4669.92 | D6: V/V | E6: mc | F6: =mc -> 1.425959448 | H6: FF zero, z5 | I6: =1*Fz_ff -> 1000000000 | P6: radconv | Q6: =180/Pi -> 57.29577951 | U6: EA zero, z1 looks correct | AJ6: XOVER SEARCH
B7: EA pole, p2 | C7: =1*Fp2_u_simplified -> 611500.2323 | D7: Hz | H7: FF pole, p5 | I7: =Fp_ff -> 1000000000 | U7: EA HF pole seems off by 2x from SIMPLIS) | AJ7: xover | AK7: =SUM(AJ12:AJ613)/1000 -> 38.905
AJ9: phase margin | AK9: =SUM(AK13:AK613) -> 59.84607337
A10: Freq (Hz) | C10: Power Stage | I10: Error Amplifier | O10: FF Network | S10: Sampling Double Pole | U10: System Response | AB10: ERROR AMP Response | AG10: PLANT Response
C11: p_dom | E11: z_ESR | G11: z_RHP | I11: p1 | K11: z1 | M11: p2 | O11: z3 | Q11: p3 | S11: p3
C12: Gain(V/V) | D12: Phase(rad) | E12: Gain(V/V) | F12: Phase(rad) | G12: Gain(V/V) | H12: Phase(rad) | I12: Gain(V/V) | J12: Phase(rad) | K12: Gain(V/V) | L12: Phase(rad) | M12: Gain(V/V) | N12: Phase(rad) | O12: Gain(V/V) | P12: Phase(rad) | Q12: Gain(V/V) | R12: Phase(rad) | S12: Gain(V/V) | T12: Phase(rad) | U12: Gain (dB) | V12: Phase (°) | W12: Phase Margin (°) | Z12: Fsquare | AB12: Gain(dB) | AC12: Phase(Deg) | AG12: Gain(dB) | AH12: Phase(Deg)
A13: 1 | B13: =A13/1000 -> 0.001 | C13: =SQRT(1+(A13/p_dom)^2) -> 1.000000059 | D13: =ATAN(A13/p_dom) -> 0.0003431919012 | E13: =SQRT(1+(A13/z_ESR)^2) -> 1 | F13: =ATAN(A13/z_ESR) -> 7.539822369e-07 | G13: =IF(VIN_nom>Vout, 1, SQRT(1+(A13/z_RHP)^2)) -> 1 | H13: =IF(VIN_nom>Vout, 0, -ATAN(A13/z_RHP)) -> 0 | I13: =SQRT(1+(A13/EA_p1)^2) -> 1.004043102 | J13: =ATAN(A13/EA_p1) -> 0.08977222967 | K13: =SQRT(1+(A13/EA_z1)^2) -> 1.000000006 | L13: =ATAN(A13/EA_z1) -> 0.0001049331841 | M13: =SQRT(1+(A13/EA_hf_p)^2) -> 1 | N13: =ATAN(A13/EA_hf_p) -> 1.635322355e-06 | O13: =SQRT(1+(A13/Zero3)^2) -> 1 | P13: =ATAN(A13/Zero3) -> 1e-09 | Q13: =SQRT(1+(A13/pole5)^2) -> 1 | R13: =ATAN(A13/pole5) -> 1e-09 | S13: =SQRT((1-(Z13/pterm2))^2+(A13/pterm1)^2) -> 1 | T13: =IF((ATAN((A13/pterm1)/(1-A13^2/pterm2))>0),ATAN((A13/pterm1)/(1-A13^2/pterm2)),PI()+ATAN((A13/pterm1)/(1-A13^2/pterm2))) -> 8.385234376e-06 | U13: =20*LOG10(((E13*K13*G13*O13)/(C13*I13*S13*M13*Q13))*Adc) -> 81.09882787 | V13: =((F13+L13+H13+P13)-(D13+J13+T13+N13+R13))*radconv -> -5.157752032 | W13: =IF(V13>0,V13,V13+180) -> 174.842248 | Y13: =IF(U13<0,A13,1000000000) -> 1000000000 | Z13: =A13^2 -> 1 | AB13: =20*LOG10((K13/(I13*M13))*Aea_stability*Afb*0.8) -> 61.04266267 | AC13: =(L13-(J13+N13))*radconv -> -5.137651346 | AD13: 57dB | AF13: 33dB | AG13: =20*LOG10((E13*G13/(C13*S13))*Am_stability) -> 20.0561652 | AH13: =(F13+H13-(D13+T13))*radconv -> -0.02010068604 | AJ13: =SUM((U14<0)*(U13>0))*A13 -> 0 | AK13: =IF(AJ13>0,W11,0) -> 0
A14: 1.0965 | B14: =A14/1000 -> 0.0010965 | C14: 1.000000071 | D14: 0.0003763099167 | E14: 1 | F14: 8.267415227e-07 | G14: 1 | H14: 0 | I14: =SQRT(1+(A14/EA_p1)^2) -> 1.004859093 | J14: 0.09838189031 | K14: 1.000000007 | L14: 0.0001150592362 | M14: =SQRT(1+(A14/EA_hf_p)^2) -> 1 | N14: 1.793130962e-06 | O14: 1 | P14: 1.0965e-09 | Q14: 1 | R14: 1.0965e-09 | S14: 1 | T14: 9.194409494e-06 | U14: 81.09177158 | V14: -5.652417828 | W14: 174.3475822 | Y14: 1000000000 | Z14: 1.20231225 | AB14: 61.03560648 | AC14: -5.630377425 | AG14: 20.05616509 | AH14: -0.02204040208 | AJ14: 0 | AK14: 0
A15: 1.2023 | B15: 0.0012023 | C15: 1.000000085 | D15: 0.0004126196156 | E15: 1 | F15: 9.065128434e-07 | G15: 1 | H15: 0 | I15: 1.005839173 | J15: 0.1078044579 | K15: 1.000000008 | L15: 0.000126161167 | M15: 1 | N15: 1.966148068e-06 | O15: 1 | P15: 1.2023e-09 | Q15: 1 | R15: 1.2023e-09 | S15: 1 | T15: 1.008156729e-05 | U15: 81.08330389 | V15: -6.193791653 | W15: 173.8062083 | Y15: 1000000000 | Z15: 1.44552529 | AB15: 61.02713892 | AC15: -6.169624598 | AG15: 20.05616497 | AH15: -0.02416705442 | AJ15: 0 | AK15: 0
A16: 1.3183 | B16: 0.0013183 | C16: 1.000000102 | D16: 0.0004524298703 | E16: 1 | F16: 9.939747829e-07 | G16: 1 | H16: 0 | I16: 1.007016158 | J16: 0.11811334 | K16: 1.00000001 | L16: 0.0001383334162 | M16: 1 | N16: 2.155845461e-06 | O16: 1 | P16: 1.3183e-09 | Q16: 1 | R16: 1.3183e-09 | S16: 1 | T16: 1.105425448e-05 | U16: 81.07314588 | V16: -6.786092221 | W16: 173.2139078 | Y16: 1000000000 | Z16: 1.73791489 | AB16: 61.01698106 | AC16: -6.759593488 | AG16: 20.05616482 | AH16: -0.02649873366 | AJ16: 0 | AK16: 0
A17: 1.4454 | B17: 0.0014454 | C17: 1.000000123 | D17: 0.0004960495528 | E17: 1 | F17: 1.089805925e-06 | G17: 1 | H17: 0 | I17: 1.00842833 | J17: 0.1293797134 | K17: 1.000000012 | L17: 0.0001516704236 | M17: 1 | N17: 2.363694932e-06 | O17: 1 | P17: 1.4454e-09 | Q17: 1 | R17: 1.4454e-09 | S17: 1 | T17: 1.212001777e-05 | U17: 81.06097374 | V17: -7.433410417 | W17: 172.5665896 | Y17: 1000000000 | Z17: 2.08918116 | AB17: 61.0048091 | AC17: -7.404356886 | AG17: 20.05616464 | AH17: -0.02905353039 | AJ17: 0 | AK17: 0
A18: 1.5849 | B18: 0.0015849 | C18: 1.000000148 | D18: 0.000543924812 | E18: 1 | F18: 1.194986447e-06 | G18: 1 | H18: 0 | I18: 1.010125171 | J18: 0.1417072373 | K18: 1.000000014 | L18: 0.0001663086025 | M18: 1 | N18: 2.591822401e-06 | O18: 1 | P18: 1.5849e-09 | Q18: 1 | R18: 1.5849e-09 | S18: 1 | T18: 1.328975796e-05 | U18: 81.04637043 | V18: -8.14170392 | W18: 171.8582961 | Y18: 1000000000 | Z18: 2.51190801 | AB18: 60.99020601 | AC18: -8.109846344 | AG18: 20.05616442 | AH18: -0.03185757546 | AJ18: 0 | AK18: 0
A19: 1.7378 | B19: 0.0017378 | C19: 1.000000178 | D19: 0.0005963988387 | E19: 1 | F19: 1.310270331e-06 | G19: 1 | H19: 0 | I19: 1.012160703 | J19: 0.1551691514 | K19: 1.000000017 | L19: 0.0001823528859 | M19: 1 | N19: 2.841863189e-06 | O19: 1 | P19: 1.7378e-09 | Q19: 1 | R19: 1.7378e-09 | S19: 1 | T19: 1.45718603e-05 | U19: 81.02888463 | V19: -8.915183234 | W19: 171.0848168 | Y19: 1000000000 | Z19: 3.01994884 | AB19: 60.97272047 | AC19: -8.880252264 | AG19: 20.05616416 | AH19: -0.0349309695 | AJ19: 0 | AK19: 0
A20: 1.9055 | B20: 0.0019055 | C20: 1.000000214 | D20: 0.0006539521003 | E20: 1 | F20: 1.436713152e-06 | G20: 1 | H20: 0 | I20: 1.01460327 | J20: 0.1698690336 | K20: 1.00000002 | L20: 0.0001999501803 | M20: 1 | N20: 3.116106748e-06 | O20: 1 | P20: 1.9055e-09 | Q20: 1 | R20: 1.9055e-09 | S20: 1 | T20: 1.59780641e-05 | U20: 81.00794862 | V20: -9.759802785 | W20: 170.2401972 | Y20: 1000000000 | Z20: 3.63093025 | AB20: 60.95178477 | AC20: -9.721500931 | AG20: 20.05616385 | AH20: -0.03830185339 | AJ20: 0 | AK20: 0
A21: 2.0893 | B21: 0.0020893 | C21: 1.000000257 | D21: 0.0007170307445 | E21: 1 | F21: 1.575295087e-06 | G21: 1 | H21: 0 | I21: 1.017530858 | J21: 0.1858952546 | K21: 1.000000024 | L21: 0.0002192368988 | M21: 1 | N21: 3.416678997e-06 | O21: 1 | P21: 2.0893e-09 | Q21: 1 | R21: 2.0893e-09 | S21: 1 | T21: 1.751927018e-05 | U21: 80.98292167 | V21: -10.68064429 | W21: 169.3193557 | Y21: 1000000000 | Z21: 4.36517449 | AB21: 60.92675819 | AC21: -10.63864793 | AG21: 20.05616348 | AH21: -0.04199635792 | AJ21: 0 | AK21: 0
A22: 2.2909 | B22: 0.0022909 | C22: 1.000000309 | D22: 0.0007862181954 | E22: 1 | F22: 1.727297906e-06 | G22: 1 | H22: 0 | I22: 1.021040641 | J22: 0.20336284 | K22: 1.000000029 | L22: 0.0002403914276 | M22: 1 | N22: 3.746359983e-06 | O22: 1 | P22: 2.2909e-09 | Q22: 1 | R22: 2.2909e-09 | S22: 1 | T22: 1.920973343e-05 | U22: 80.95301245 | V22: -11.68432233 | W22: 168.3156777 | Y22: 1000000000 | Z22: 5.24822281 | AB22: 60.89684943 | AC22: -11.63827368 | AG22: 20.05616302 | AH22: -0.04604865414 | AJ22: 0 | AK22: 0
A23: 2.5119 | B23: 0.0025119 | C23: 1.000000372 | D23: 0.000862063557 | E23: 1 | F23: 1.893927981e-06 | G23: 1 | H23: 0 | I23: 1.025243479 | J23: 0.2223674626 | K23: 1.000000035 | L23: 0.0002635816599 | M23: 1 | N23: 4.107766224e-06 | O23: 1 | P23: 2.5119e-09 | Q23: 1 | R23: 2.5119e-09 | S23: 1 | T23: 2.106287023e-05 | U23: 80.91733223 | V23: -12.77634125 | W23: 167.2236587 | Y23: 1000000000 | Z23: 6.30964161 | AB23: 60.86116975 | AC23: -12.72585035 | AG23: 20.05616248 | AH23: -0.05049090298 | AJ23: 0 | AK23: 0
A24: 2.7542 | B24: 0.0027542 | C24: 1.000000447 | D24: 0.00094521889 | E24: 1 | F24: 2.076617877e-06 | G24: 1 | H24: 0 | I24: 1.030273193 | J24: 0.2430172575 | K24: 1.000000042 | L24: 0.0002890069686 | M24: 1 | N24: 4.50400483e-06 | O24: 1 | P24: 2.7542e-09 | Q24: 1 | R24: 2.7542e-09 | S24: 1 | T24: 2.309461252e-05 | U24: 80.87482395 | V24: -13.96292368 | W24: 166.0370763 | Y24: 1000000000 | Z24: 7.58561764 | AB24: 60.81866213 | AC24: -13.90756238 | AG24: 20.05616183 | AH24: -0.0553612955 | AJ24: 0 | AK24: 0
A25: 3.02 | B25: 0.00302 | C25: 1.000000537 | D25: 0.001036439211 | E25: 1 | F25: 2.277026355e-06 | G25: 1 | H25: 0 | I25: 1.036290743 | J25: 0.2654286165 | K25: 1.00000005 | L25: 0.0003168982064 | M25: 1 | N25: 4.938673512e-06 | O25: 1 | P25: 3.02e-09 | Q25: 1 | R25: 3.02e-09 | S25: 1 | T25: 2.532340782e-05 | U25: 80.82423887 | V25: -15.25076957 | W25: 164.7492304 | Y25: 1000000000 | Z25: 9.1204 | AB25: 60.76807782 | AC25: -15.19006552 | AG25: 20.05616104 | AH25: -0.06070405292 | AJ25: 0 | AK25: 0
A26: 3.3113 | B26: 0.0033113 | C26: 1.000000646 | D26: 0.001136410898 | E26: 1 | F26: 2.496661381e-06 | G26: 1 | H26: 0 | I26: 1.04347597 | J26: 0.2896796282 | K26: 1.00000006 | L26: 0.0003474652397 | M26: 1 | N26: 5.415042914e-06 | O26: 1 | P26: 3.3113e-09 | Q26: 1 | R26: 3.3113e-09 | S26: 1 | T26: 2.776602659e-05 | U26: 80.76422134 | V26: -16.64438145 | W26: 163.3556185 | Y26: 1000000000 | Z26: 10.96470769 | AB26: 60.70806124 | AC26: -16.57782208 | AG26: 20.0561601 | AH26: -0.06655937622 | AJ26: 0 | AK26: 0
A27: 3.6308 | B27: 0.0036308 | C27: 1.000000776 | D27: 0.001246060559 | E27: 1 | F27: 2.737558706e-06 | G27: 1 | H27: 0 | I27: 1.052052073 | J27: 0.3158802587 | K27: 1.000000073 | L27: 0.0003809913877 | M27: 1 | N27: 5.937528407e-06 | O27: 1 | P27: 3.6308e-09 | Q27: 1 | R27: 3.6308e-09 | S27: 1 | T27: 3.044510897e-05 | U27: 80.69312462 | V27: -18.15009819 | W27: 161.8499018 | Y27: 1000000000 | Z27: 13.18270864 | AB27: 60.63696566 | AC27: -18.07711665 | AG27: 20.05615896 | AH27: -0.07298153674 | AJ27: 0 | AK27: 0
A28: 3.9811 | B28: 0.0039811 | C28: 1.000000933 | D28: 0.001366280481 | E28: 1 | F28: 3.001678683e-06 | G28: 1 | H28: 0 | I28: 1.062270493 | J28: 0.344098913 | K28: 1.000000087 | L28: 0.0004177494763 | M28: 1 | N28: 6.510381828e-06 | O28: 1 | P28: 3.9811e-09 | Q28: 1 | R28: 3.9811e-09 | S28: 1 | T28: 3.338245658e-05 | U28: 80.60916576 | V28: -19.77187598 | W28: 160.228124 | Y28: 1000000000 | Z28: 15.84915721 | AB28: 60.55300816 | AC28: -19.69185319 | AG28: 20.0561576 | AH28: -0.08002279557 | AJ28: 0 | AK28: 0
A29: 4.3652 | B29: 0.0043652 | C29: 1.000001122 | D29: 0.001498100225 | E29: 1 | F29: 3.29128326e-06 | G29: 1 | H29: 0 | I29: 1.074427228 | J29: 0.3743966023 | K29: 1.000000105 | L29: 0.0004580543047 | M29: 1 | N29: 7.138509144e-06 | O29: 1 | P29: 4.3652e-09 | Q29: 1 | R29: 4.3652e-09 | S29: 1 | T29: 3.66032251e-05 | U29: 80.51032651 | V29: -21.51325306 | W29: 158.4867469 | Y29: 1000000000 | Z29: 19.05497104 | AB29: 60.45417055 | AC29: -21.4255096 | AG29: 20.05615596 | AH29: -0.08774345388 | AJ29: 0 | AK29: 0
A30: 4.7863 | B30: 0.0047863 | C30: 1.000001349 | D30: 0.001642617984 | E30: 1 | F30: 3.60878518e-06 | G30: 1 | H30: 0 | I30: 1.088861167 | J30: 0.4068023927 | K30: 1.000000126 | L30: 0.0005022416585 | M30: 1 | N30: 7.827143388e-06 | O30: 1 | P30: 4.7863e-09 | Q30: 1 | R30: 4.7863e-09 | S30: 1 | T30: 4.01342473e-05 | U30: 80.39441465 | V30: -23.37594016 | W30: 156.6240598 | Y30: 1000000000 | Z30: 22.90866769 | AB30: 60.33826066 | AC30: -23.27973233 | AG30: 20.05615399 | AH30: -0.09620783266 | AJ30: 0 | AK30: 0
A31: 5.2481 | B31: 0.0052481 | C31: 1.000001622 | D31: 0.00180110354 | E31: 1 | F31: 3.956974177e-06 | G31: 1 | H31: 0 | I31: 1.105967873 | J31: 0.4413275819 | K31: 1.000000152 | L31: 0.0005506997897 | M31: 1 | N31: 8.582335252e-06 | O31: 1 | P31: 5.2481e-09 | Q31: 1 | R31: 5.2481e-09 | S31: 1 | T31: 4.400654853e-05 | U31: 80.25901246 | V31: -25.36063709 | W31: 154.6393629 | Y31: 1000000000 | Z31: 27.54255361 | AB31: 60.20286084 | AC31: -25.25514679 | AG31: 20.05615162 | AH31: -0.1054903029 | AJ31: 0 | AK31: 0
A32: 5.7544 | B32: 0.0057544 | C32: 1.00000195 | D32: 0.001974860987 | E32: 1 | F32: 4.338715384e-06 | G32: 1 | H32: 0 | I32: 1.126188585 | J32: 0.4779259845 | K32: 1.000000182 | L32: 0.0006038274432 | M32: 1 | N32: 9.41029896e-06 | O32: 1 | P32: 5.7544e-09 | Q32: 1 | R32: 5.7544e-09 | S32: 1 | T32: 4.82519927e-05 | U32: 80.10163769 | V32: -27.46475148 | W32: 152.5352485 | Y32: 1000000000 | Z32: 33.11311936 | AB32: 60.04548892 | AC32: -27.34908424 | AG32: 20.05614877 | AH32: -0.1156672451 | AJ32: 0 | AK32: 0
A33: 6.3096 | B33: 0.0063096 | C33: 1.000002344 | D33: 0.002165400321 | E33: 1 | F33: 4.757326322e-06 | G33: 1 | H33: 0 | I33: 1.150030899 | J33: 0.5165224502 | K33: 1.000000219 | L33: 0.0006620863239 | M33: 1 | N33: 1.031822993e-05 | O33: 1 | P33: 6.3096e-09 | Q33: 1 | R33: 6.3096e-09 | S33: 1 | T33: 5.290747483e-05 | U33: 79.91966682 | V33: -29.68403996 | W33: 150.31596 | Y33: 1000000000 | Z33: 39.81105216 | AB33: 59.86352148 | AC33: -29.55721286 | AG33: 20.05614534 | AH33: -0.1268270996 | AJ33: 0 | AK33: 0
A34: 6.9183 | B34: 0.0069183 | C34: 1.000002819 | D34: 0.002374300162 | E34: 1 | F34: 5.216275309e-06 | G34: 1 | H34: 0 | I34: 1.178054061 | J34: 0.5569761187 | K34: 1.000000264 | L34: 0.0007259591225 | M34: 1 | N34: 1.131365065e-05 | O34: 1 | P34: 6.9183e-09 | Q34: 1 | R34: 6.9183e-09 | S34: 1 | T34: 5.801156699e-05 | U34: 79.71054886 | V34: -32.01049705 | W34: 147.989503 | Y34: 1000000000 | Z34: 47.86287489 | AB34: 59.65440763 | AC34: -31.87143472 | AG34: 20.05614122 | AH34: -0.139062326 | AJ34: 0 | AK34: 0
A35: 7.5858 | B35: 0.0075858 | C35: 1.000003389 | D35: 0.002603379345 | E35: 1 | F35: 5.719558452e-06 | G35: 1 | H35: 0 | I35: 1.210890625 | J35: 0.5991089369 | K35: 1.000000317 | L35: 0.0007960019825 | M35: 1 | N35: 1.240522832e-05 | O35: 1 | P35: 7.5858e-09 | Q35: 1 | R35: 7.5858e-09 | S35: 1.000000001 | T35: 6.360871094e-05 | U35: 79.47175044 | V35: -34.43399622 | W35: 145.5660038 | Y35: 1000000000 | Z35: 57.54436164 | AB35: 59.41561417 | AC35: -34.28151677 | AG35: 20.05613627 | AH35: -0.1524794531 | AJ35: 0 | AK35: 0
A36: 8.3176 | B36: 0.0083176 | C36: 1.000004074 | D36: 0.002854525317 | E36: 1 | F36: 6.271322653e-06 | G36: 1 | H36: 0 | I36: 1.249221545 | J36: 0.6426697782 | K36: 1.000000381 | L36: 0.0008727920334 | M36: 1 | N36: 1.360195722e-05 | O36: 1 | P36: 8.3176e-09 | Q36: 1 | R36: 8.3176e-09 | S36: 1.000000001 | T36: 6.974502546e-05 | U36: 79.20105407 | V36: -36.94022697 | W36: 143.059773 | Y36: 1000000000 | Z36: 69.18246976 | AB36: 59.14492375 | AC36: -36.77303794 | AG36: 20.05613032 | AH36: -0.1671890284 | AJ36: 0 | AK36: 0
A37: 9.1201 | B37: 0.0091201 | C37: 1.000004898 | D37: 0.003129934361 | E37: 1 | F37: 6.876393398e-06 | G37: 1 | H37: 0 | I37: 1.293808166 | J37: 0.6873783974 | K37: 1.000000458 | L37: 0.0009570008434 | M37: 1 | N37: 1.491430341e-05 | O37: 1 | P37: 9.1201e-09 | Q37: 1 | R37: 9.1201e-09 | S37: 1.000000001 | T37: 7.647417605e-05 | U37: 78.89643913 | V37: -39.51322321 | W37: 140.4867768 | Y37: 1000000000 | Z37: 83.17622401 | AB37: 58.84031598 | AC37: -39.32990352 | AG37: 20.05612316 | AH37: -0.1833196882 | AJ37: 0 | AK37: 0
A38: 10 | B38: 0.01 | C38: 1.000005889 | D38: 0.003431905673 | E38: 1 | F38: 7.539822368e-06 | G38: 1 | H38: 0 | I38: 1.345457197 | J38: 0.73289338 | K38: 1.000000551 | L38: 0.001049331459 | M38: 1 | N38: 1.635322355e-05 | O38: 1 | P38: 1e-08 | Q38: 1 | R38: 1e-08 | S38: 1.000000001 | T38: 8.385234378e-05 | U38: 78.55643137 | V38: -42.13351831 | W38: 137.8664817 | Y38: 1000000000 | Z38: 100 | AB38: 58.50031682 | AC38: -41.93251221 | AG38: 20.05611455 | AH38: -0.2010060962 | AJ38: 0 | AK38: 0
A39: 10.965 | B39: 0.010965 | C39: 1.00000708 | D39: 0.003763081582 | E39: 1 | F39: 8.267415227e-06 | G39: 1 | H39: 0 | I39: 1.405055015 | J39: 0.7788584489 | K39: 1.000000662 | L39: 0.00115059186 | M39: 1 | N39: 1.793130962e-05 | O39: 1 | P39: 1.0965e-08 | Q39: 1 | R39: 1.0965e-08 | S39: 1.000000001 | T39: 9.194409496e-05 | U39: 78.17995312 | V39: -44.7808083 | W39: 135.2191917 | Y39: 1000000000 | Z39: 120.231225 | AB39: 58.12384892 | AC39: -44.56040529 | AG39: 20.0561042 | AH39: -0.2204030132 | AJ39: 0 | AK39: 0
A40: 12.023 | B40: 0.012023 | C40: 1.000008513 | D40: 0.004126172974 | E40: 1 | F40: 9.065128434e-06 | G40: 1 | H40: 0 | I40: 1.473514232 | J40: 0.824873738 | K40: 1.000000796 | L40: 0.001261611007 | M40: 1 | N40: 1.966148067e-05 | O40: 1 | P40: 1.2023e-08 | Q40: 1 | R40: 1.2023e-08 | S40: 1.000000001 | T40: 0.0001008156729 | U40: 77.76672173 | V40: -47.43229457 | W40: 132.5677054 | Y40: 1000000000 | Z40: 144.552529 | AB40: 57.71062997 | AC40: -47.19062535 | AG40: 20.05609176 | AH40: -0.2416692159 | AJ40: 0 | AK40: 0
A41: 13.183 | B41: 0.013183 | C41: 1.000010235 | D41: 0.004524268142 | E41: 1 | F41: 9.939747828e-06 | G41: 1 | H41: 0 | I41: 1.551822911 | J41: 0.8705534566 | K41: 1.000000957 | L41: 0.001383333288 | M41: 1 | N41: 2.15584546e-05 | O41: 1 | P41: 1.3183e-08 | Q41: 1 | R41: 1.3183e-08 | S41: 1.000000002 | T41: 0.0001105425448 | U41: 77.31695167 | V41: -50.06600054 | W41: 129.9339995 | Y41: 1000000000 | Z41: 173.791489 | AB41: 57.26087488 | AC41: -49.80101495 | AG41: 20.0560768 | AH41: -0.2649855856 | AJ41: 0 | AK41: 0
A42: 14.454 | B42: 0.014454 | C42: 1.000012303 | D42: 0.004960455249 | E42: 1 | F42: 1.089805925e-05 | G42: 1 | H42: 0 | I42: 1.640966064 | J42: 0.9154963348 | K42: 1.00000115 | L42: 0.001516703085 | M42: 1 | N42: 2.363694932e-05 | O42: 1 | P42: 1.4454e-08 | Q42: 1 | R42: 1.4454e-08 | S42: 1.000000002 | T42: 0.0001212001777 | U42: 76.83178658 | V42: -52.65906275 | W42: 127.3409373 | Y42: 1000000000 | Z42: 208.918116 | AB42: 56.77572775 | AC42: -52.36852975 | AG42: 20.05605883 | AH42: -0.2905329961 | AJ42: 0 | AK42: 0
A43: 15.849 | B43: 0.015849 | C43: 1.000014793 | D43: 0.005439195016 | E43: 1 | F43: 1.194986447e-05 | G43: 1 | H43: 0 | I43: 1.742207277 | J43: 0.9594328289 | K43: 1.000001383 | L43: 0.001663084507 | M43: 1 | N43: 2.5918224e-05 | O43: 1 | P43: 1.5849e-08 | Q43: 1 | R43: 1.5849e-08 | S43: 1.000000003 | T43: 0.0001328975797 | U43: 76.3117625 | V43: -55.19622182 | W43: 124.8037782 | Y43: 1000000000 | Z43: 251.190801 | AB43: 56.2557253 | AC43: -54.8776491 | AG43: 20.0560372 | AH43: -0.318572712 | AJ43: 0 | AK43: 0
A44: 17.378 | B44: 0.017378 | C44: 1.000017784 | D44: 0.005963918384 | E44: 1 | F44: 1.310270331e-05 | G44: 1 | H44: 0 | I44: 1.856590653 | J44: 1.001995955 | K44: 1.000001663 | L44: 0.001823526858 | M44: 1 | N44: 2.841863188e-05 | O44: 1 | P44: 1.7378e-08 | Q44: 1 | R44: 1.7378e-08 | S44: 1.000000003 | T44: 0.0001457186031 | U44: 75.75941221 | V44: -57.65659287 | W44: 122.3434071 | Y44: 1000000000 | Z44: 301.994884 | AB44: 55.703401 | AC44: -57.30728718 | AG44: 20.05601121 | AH44: -0.3493056841 | AJ44: 0 | AK44: 0
A45: 19.055 | B45: 0.019055 | C45: 1.000021382 | D45: 0.006539428716 | E45: 1 | F45: 1.436713152e-05 | G45: 1 | H45: 0 | I45: 1.985441925 | J45: 1.042958983 | K45: 1.000001999 | L45: 0.001999499165 | M45: 1 | N45: 3.116106747e-05 | O45: 1 | P45: 1.9055e-08 | Q45: 1 | R45: 1.9055e-08 | S45: 1.000000004 | T45: 0.0001597806411 | U45: 75.1765633 | V45: -60.02738373 | W45: 119.9726163 | Y45: 1000000000 | Z45: 363.093025 | AB45: 55.12058335 | AC45: -59.64437048 | AG45: 20.05597995 | AH45: -0.3830132462 | AJ45: 0 | AK45: =IF(AJ45>0,W43,0) -> 0
A46: 20.893 | B46: 0.020893 | C46: 1.000025706 | D46: 0.007170185795 | E46: 1 | F46: 1.575295087e-05 | G46: 1 | H46: 0 | I46: 2.130001116 | J46: 1.082090818 | K46: 1.000002403 | L46: 0.00219236551 | M46: 1.000000001 | N46: 3.416678995e-05 | O46: 1 | P46: 2.0893e-08 | Q46: 1 | R46: 2.0893e-08 | S46: 1.000000004 | T46: 0.0001751927019 | U46: 74.5660764 | V46: -62.29553785 | W46: 117.7044621 | Y46: 1000000000 | Z46: 436.517449 | AB46: 54.51013401 | AC46: -61.87558124 | AG46: 20.05594239 | AH46: -0.4199566092 | AJ46: 0 | AK46: 0
A47: 22.909 | B47: 0.022909 | C47: 1.000030906 | D47: 0.007862021583 | E47: 1 | F47: 1.727297906e-05 | G47: 1 | H47: 0 | I47: 2.291811321 | J47: 1.119273678 | K47: 1.000002889 | L47: 0.002403909692 | M47: 1.000000001 | N47: 3.746359982e-05 | O47: 1 | P47: 2.2909e-08 | Q47: 1 | R47: 2.2909e-08 | S47: 1.000000005 | T47: 0.0001920973345 | U47: 73.93005486 | V47: -64.45454785 | W47: 115.5454521 | Y47: 1000000000 | Z47: 524.822281 | AB47: 53.87415764 | AC47: -63.9940705 | AG47: 20.05589722 | AH47: -0.4604773528 | AJ47: 0 | AK47: 0
A48: 25.119 | B48: 0.025119 | C48: 1.000037157 | D48: 0.008620424166 | E48: 1 | F48: 1.893927981e-05 | G48: 1 | H48: 0 | I48: 2.472330701 | J48: 1.154389836 | K48: 1.000003474 | L48: 0.002635810556 | M48: 1.000000001 | N48: 4.107766221e-05 | O48: 1 | P48: 2.5119e-08 | Q48: 1 | R48: 2.5119e-08 | S48: 1.000000006 | T48: 0.0002106287025 | U48: 73.2714516 | V48: -66.49789518 | W48: 113.5021048 | Y48: 1000000000 | Z48: 630.964161 | AB48: 53.21560869 | AC48: -65.99299826 | AG48: 20.05584292 | AH48: -0.5048969172 | AJ48: 0 | AK48: 0
A49: 27.542 | B49: 0.027542 | C49: 1.000044671 | D49: 0.009451910231 | E49: 1 | F49: 2.076617876e-05 | G49: 1 | H49: 0 | I49: 2.673253662 | J49: 1.187396103 | K49: 1.000004176 | L49: 0.00289006172 | M49: 1.000000001 | N49: 4.504004827e-05 | O49: 1 | P49: 2.7542e-08 | Q49: 1 | R49: 2.7542e-08 | S49: 1.000000008 | T49: 0.0002309461255 | U49: 72.59272026 | V49: -68.42337459 | W49: 111.5766254 | Y49: 1000000000 | Z49: 758.561764 | AB49: 52.53694262 | AC49: -67.86977761 | AG49: 20.05577765 | AH49: -0.5535969885 | AJ49: 0 | AK49: 0
A50: 30.2 | B50: 0.0302 | C50: 1.000053709 | D50: 0.01036402473 | E50: 1 | F50: 2.277026355e-05 | G50: 1 | H50: 0 | I50: 2.896523835 | J50: 1.218300318 | K50: 1.000005021 | L50: 0.003168971562 | M50: 1.000000001 | N50: 4.938673508e-05 | O50: 1 | P50: 3.02e-08 | Q50: 1 | R50: 3.02e-08 | S50: 1.000000009 | T50: 0.0002532340785 | U50: 71.89591036 | V50: -70.23174684 | W50: 109.7682532 | Y50: 1000000000 | Z50: 912.04 | AB50: 51.84021123 | AC50: -69.62472736 | AG50: 20.05569913 | AH50: -0.6070194798 | AJ50: 0 | AK50: 0
A51: 33.113 | B51: 0.033113 | C51: 1.000064569 | D51: 0.01136362471 | E51: 1 | F51: 2.49666138e-05 | G51: 1 | H51: 0 | I51: 3.143916344 | J51: 1.247098383 | K51: 1.000006037 | L51: 0.003474638553 | M51: 1.000000001 | N51: 5.415042909e-05 | O51: 1 | P51: 3.3113e-08 | Q51: 1 | R51: 3.3113e-08 | S51: 1.000000011 | T51: 0.0002776602664 | U51: 71.18394734 | V51: -71.92306046 | W51: 108.0769395 | Y51: 1000000000 | Z51: 1096.470769 | AB51: 51.12834255 | AC51: -71.25749444 | AG51: 20.05560479 | AH51: -0.6655660157 | AJ51: 0 | AK51: 0
A52: 36.308 | B52: 0.036308 | C52: 1.00007763 | D52: 0.01245996719 | E52: 1 | F52: 2.737558705e-05 | G52: 1 | H52: 0 | I52: 3.417799949 | J52: 1.273866387 | K52: 1.000007258 | L52: 0.003809895627 | M52: 1.000000002 | N52: 5.9375284e-05 | O52: 1 | P52: 3.6308e-08 | Q52: 1 | R52: 3.6308e-08 | S52: 1.000000013 | T52: 0.0003044510904 | U52: 70.45833134 | V52: -73.50205742 | W52: 106.4979426 | Y52: 1000000000 | Z52: 1318.270864 | AB52: 50.40284 | AC52: -72.77227863 | AG52: 20.05549133 | AH52: -0.72977879 | AJ52: 0 | AK52: 0
A53: 39.811 | B53: 0.039811 | C53: 1.000093332 | D53: 0.01366196325 | E53: 1 | F53: 3.001678682e-05 | G53: 1 | H53: 0 | I53: 3.720465019 | J53: 1.298666386 | K53: 1.000008726 | L53: 0.004177470705 | M53: 1.000000002 | N53: 6.510381819e-05 | O53: 1 | P53: 3.9811e-08 | Q53: 1 | R53: 3.9811e-08 | S53: 1.000000016 | T53: 0.0003338245666 | U53: 69.72119596 | V53: -74.97266139 | W53: 105.0273386 | Y53: 1000000000 | Z53: 1584.915721 | AB53: 49.66584102 | AC53: -74.17248165 | AG53: 20.05535494 | AH53: -0.8001797379 | AJ53: 0 | AK53: 0
A54: 43.652 | B54: 0.043652 | C54: 1.000112209 | D54: 0.01497989288 | E54: 1.000000001 | F54: 3.291283259e-05 | G54: 1 | H54: 0 | I54: 4.054551376 | J54: 1.321588422 | K54: 1.000010491 | L54: 0.004580511333 | M54: 1.000000003 | N54: 7.138509132e-05 | O54: 1 | P54: 4.3652e-08 | Q54: 1 | R54: 4.3652e-08 | S54: 1.000000019 | T54: 0.0003660322521 | U54: 68.97413566 | V54: -76.34045589 | W54: 103.6595441 | Y54: 1000000000 | Z54: 1905.497104 | AB54: 48.9189447 | AC54: -75.46308492 | AG54: 20.05519096 | AH54: -0.8773709763 | AJ54: 0 | AK54: 0
A55: 47.863 | B55: 0.047863 | C55: 1.000134901 | D55: 0.01642471748 | E55: 1.000000001 | F55: 3.608785179e-05 | G55: 1 | H55: 0 | I55: 4.422879617 | J55: 1.342727232 | K55: 1.000012612 | L55: 0.005022374778 | M55: 1.000000003 | N55: 7.827143372e-05 | O55: 1 | P55: 4.7863e-08 | Q55: 1 | R55: 4.7863e-08 | S55: 1.000000023 | T55: 0.0004013424744 | U55: 68.21871076 | V55: -77.61132171 | W55: 102.3886783 | Y55: 1000000000 | Z55: 2290.866769 | AB55: 48.1637169 | AC55: -76.64932717 | AG55: 20.05499386 | AH55: -0.9619945397 | AJ55: 0 | AK55: 0
A56: 52.481 | B56: 0.052481 | C56: 1.000162186 | D56: 0.01800910767 | E56: 1.000000001 | F56: 3.956974175e-05 | G56: 1 | H56: 0 | I56: 4.828715529 | J56: 1.36219228 | K56: 1.000015163 | L56: 0.005506942784 | M56: 1.000000004 | N56: 8.582335231e-05 | O56: 1 | P56: 5.2481e-08 | Q56: 1 | R56: 5.2481e-08 | S56: 1.000000028 | T56: 0.0004400654872 | U56: 67.45596587 | V56: -78.79205387 | W56: 101.2079461 | Y56: 1000000000 | Z56: 2754.255361 | AB56: 47.40120902 | AC56: -77.73726129 | AG56: 20.05475686 | AH56: -1.054792578 | AJ56: 0 | AK56: 0
A57: 57.544 | B57: 0.057544 | C57: 1.000194985 | D57: 0.01974606876 | E57: 1.000000001 | F57: 4.338715381e-05 | G57: 1 | H57: 0 | I57: 5.275421575 | J57: 1.380084045 | K57: 1.00001823 | L57: 0.006038201781 | M57: 1.000000004 | N57: 9.410298932e-05 | O57: 1 | P57: 5.7544e-08 | Q57: 1 | R57: 5.7544e-08 | S57: 1.000000034 | T57: 0.0004825199295 | U57: 66.68719661 | V57: -79.88894626 | W57: 100.1110537 | Y57: 1000000000 | Z57: 3311.311936 | AB57: 46.63272464 | AC57: -78.7324194 | AG57: 20.05447197 | AH57: -1.156526857 | AJ57: 0 | AK57: 0
A58: 63.096 | B58: 0.063096 | C58: 1.000234421 | D58: 0.0216506535 | E58: 1.000000001 | F58: 4.757326318e-05 | G58: 1 | H58: 0 | I58: 5.766897501 | J58: 1.396511885 | K58: 1.000021918 | L58: 0.006620767465 | M58: 1.000000005 | N58: 0.000103182299 | O58: 1 | P58: 6.3096e-08 | Q58: 1 | R58: 6.3096e-08 | S58: 1.00000004 | T58: 0.0005290747515 | U58: 65.91318488 | V58: -80.90888603 | W58: 99.09111397 | Y58: 1000000000 | Z58: 3981.105216 | AB58: 45.85905543 | AC58: -79.64080696 | AG58: 20.05412945 | AH58: -1.268079072 | AJ58: 0 | AK58: 0
A59: 69.183 | B59: 0.069183 | C59: 1.000281826 | D59: 0.02373858617 | E59: 1.000000001 | F59: 5.216275305e-05 | G59: 1 | H59: 0 | I59: 6.307228945 | J59: 1.411576214 | K59: 1.00002635 | L59: 0.007259464973 | M59: 1.000000006 | N59: 0.000113136506 | O59: 1 | P59: 6.9183e-08 | Q59: 1 | R59: 6.9183e-08 | S59: 1.000000049 | T59: 0.0005801156742 | U59: 65.13488439 | V59: -81.85827534 | W59: 98.14172466 | Y59: 1000000000 | Z59: 4786.287489 | AB59: 45.08116666 | AC59: -80.46790506 | AG59: 20.05371773 | AH59: -1.390370273 | AJ59: 0 | AK59: 0
A60: 75.858 | B60: 0.075858 | C60: 1.000338823 | D60: 0.02602797308 | E60: 1.000000002 | F60: 5.719558446e-05 | G60: 1 | H60: 0 | I60: 6.901131115 | J60: 1.425380599 | K60: 1.00003168 | L60: 0.007959853392 | M60: 1.000000008 | N60: 0.0001240522826 | O60: 1 | P60: 7.5858e-08 | Q60: 1 | R60: 7.5858e-08 | S60: 1.000000058 | T60: 0.0006360871151 | U60: 64.35280202 | V60: -82.74379525 | W60: 97.25620475 | Y60: 1000000000 | Z60: 5754.436164 | AB60: 44.29957929 | AC60: -81.2193342 | AG60: 20.05322273 | AH60: -1.524461048 | AJ60: 0 | AK60: 0
A61: 83.176 | B61: 0.083176 | C61: 1.000407335 | D61: 0.02853758123 | E61: 1.000000002 | F61: 6.271322645e-05 | G61: 1 | H61: 0 | I61: 7.553505594 | J61: 1.438017658 | K61: 1.000038088 | L61: 0.008727700939 | M61: 1.000000009 | N61: 0.0001360195714 | O61: 1 | P61: 8.3176e-08 | Q61: 1 | R61: 8.3176e-08 | S61: 1.00000007 | T61: 0.000697450262 | U61: 63.56769716 | V61: -83.5715263 | W61: 96.4284737 | Y61: 1000000000 | Z61: 6918.246976 | AB61: 43.51506939 | AC61: -81.90007559 | AG61: 20.05262777 | AH61: -1.671450715 | AJ61: 0 | AK61: 0
A62: 91.201 | B62: 0.091201 | C62: 1.000489708 | D62: 0.03128923093 | E62: 1.000000002 | F62: 6.876393388e-05 | G62: 1 | H62: 0 | I62: 8.27006391 | J62: 1.449581661 | K62: 1.000045792 | L62: 0.009569719214 | M62: 1.000000011 | N62: 0.000149143033 | O62: 1 | P62: 9.1201e-08 | Q62: 1 | R62: 9.1201e-08 | S62: 1.000000084 | T62: 0.0007647417703 | U62: 62.77984257 | V62: -84.34776942 | W62: 95.65223058 | Y62: 1000000000 | Z62: 8317.622401 | AB62: 42.72793008 | AC62: -82.51515195 | AG62: 20.05191249 | AH62: -1.832617469 | AJ62: 0 | AK62: 0
A63: 100 | B63: 0.1 | C63: 1.00058873 | D63: 0.03430572719 | E63: 1.000000003 | F63: 7.539822354e-05 | G63: 1 | H63: 0 | I63: 9.056793408 | J63: 1.460156383 | K63: 1.000055053 | L63: 0.01049293333 | M63: 1.000000013 | N63: 0.0001635322341 | O63: 1 | P63: 1e-07 | Q63: 1 | R63: 1e-07 | S63: 1.000000102 | T63: 0.0008385234508 | U63: 61.9897513 | V63: -85.0782643 | W63: 94.9217357 | Y63: 1000000000 | Z63: 10000 | AB63: 41.93869859 | AC63: -83.06896707 | AG63: 20.05105271 | AH63: -2.009297236 | AJ63: 0 | AK63: 0
A64: 109.65 | B64: 0.10965 | C64: 1.000707795 | D64: 0.03761324555 | E64: 1.000000003 | F64: 8.267415208e-05 | G64: 1 | H64: 0 | I64: 9.920582615 | J64: 1.469824309 | K64: 1.000066191 | L64: 0.01150541597 | M64: 1.000000016 | N64: 0.0001793130943 | O64: 1 | P64: 1.0965e-07 | Q64: 1 | R64: 1.0965e-07 | S64: 1.000000122 | T64: 0.0009194409667 | U64: 61.19755998 | V64: -85.76881505 | W64: 94.23118495 | Y64: 1000000000 | Z64: 12023.1225 | AB64: 41.14754096 | AC64: -83.56579162 | AG64: 20.05001902 | AH64: -2.203023431 | AJ64: 0 | AK64: 0
A65: 120.23 | B65: 0.12023 | C65: 1.000850913 | D65: 0.04123857095 | E65: 1.000000004 | F65: 9.065128409e-05 | G65: 1 | H65: 0 | I65: 10.86850584 | J65: 1.478657043 | K65: 1.00007958 | L65: 0.01261544748 | M65: 1.000000019 | N65: 0.0001966148042 | O65: 1 | P65: 1.2023e-07 | Q65: 1 | R65: 1.2023e-07 | S65: 1.000000147 | T65: 0.001008156752 | U65: 60.4037806 | V65: -86.42462647 | W65: 93.57537353 | Y65: 1000000000 | Z65: 14455.2529 | AB65: 40.35500392 | AC65: -84.00926121 | AG65: 20.04877668 | AH65: -2.41536526 | AJ65: 0 | AK65: 0
A66: 131.83 | B66: 0.13183 | C66: 1.001022941 | D66: 0.04521215826 | E66: 1.000000005 | F66: 9.939747796e-05 | G66: 1 | H66: 0 | I66: 11.90862859 | J66: 1.486724599 | K66: 1.000095676 | L66: 0.01383245942 | M66: 1.000000023 | N66: 0.0002155845427 | O66: 1 | P66: 1.3183e-07 | Q66: 1 | R66: 1.3183e-07 | S66: 1.000000177 | T66: 0.001105425478 | U66: 59.60858915 | V66: -87.05096237 | W66: 92.94903763 | Y66: 1000000000 | Z66: 17379.1489 | AB66: 39.56130554 | AC66: -84.40285536 | AG66: 20.04728361 | AH66: -2.648107009 | AJ66: 0 | AK66: 0
A67: 144.54 | B67: 0.14454 | C67: 1.00122957 | D67: 0.04956433247 | E67: 1.000000006 | F67: 0.0001089805921 | G67: 1 | H67: 0 | I67: 13.04902151 | J67: 1.49408702 | K67: 1.000115013 | L67: 0.01516587964 | M67: 1.000000028 | N67: 0.0002363694888 | O67: 1 | P67: 1.4454e-07 | Q67: 1 | R67: 1.4454e-07 | S67: 1.000000212 | T67: 0.001212001816 | U67: 58.81264008 | V67: -87.65250808 | W67: 92.34749192 | Y67: 1000000000 | Z67: 20891.8116 | AB67: 38.76714951 | AC67: -84.74948255 | AG67: 20.04549057 | AH67: -2.903025526 | AJ67: 0 | AK67: 0
A68: 158.49 | B68: 0.15849 | C68: 1.001478179 | D68: 0.05433894075 | E68: 1.000000007 | F68: 0.0001194986442 | G68: 1 | H68: 0 | I68: 14.30135027 | J68: 1.500815754 | K68: 1.000138283 | L68: 0.01662932737 | M68: 1.000000034 | N68: 0.0002591822343 | O68: 1 | P68: 1.5849e-07 | Q68: 1 | R68: 1.5849e-07 | S68: 1.000000255 | T68: 0.001328975848 | U68: 58.01470336 | V68: -88.23515823 | W68: 91.76484177 | Y68: 1000000000 | Z68: 25119.0801 | AB68: 37.97136962 | AC68: -85.05246832 | AG68: 20.04333374 | AH68: -3.182689907 | AJ68: 0 | AK68: 0
A69: 173.78 | B69: 0.17378 | C69: 1.00177688 | D69: 0.05956933009 | E69: 1.000000009 | F69: 0.0001310270324 | G69: 1 | H69: 0 | I69: 15.67459363 | J69: 1.506955463 | K69: 1.000166249 | L69: 0.01823326796 | M69: 1.00000004 | N69: 0.0002841863112 | O69: 1 | P69: 1.7378e-07 | Q69: 1 | R69: 1.7378e-07 | S69: 1.000000307 | T69: 0.001457186099 | U69: 57.21597054 | V69: -88.80283583 | W69: 91.19716417 | Y69: 1000000000 | Z69: 30199.4884 | AB69: 37.1752275 | AC69: -85.31378131 | AG69: 20.04074303 | AH69: -3.48905452 | AJ69: 0 | AK69: 0
A70: 190.55 | B70: 0.19055 | C70: 1.002135986 | D70: 0.06530223618 | E70: 1.00000001 | F70: 0.0001436713142 | G70: 1 | H70: 0 | I70: 17.18132602 | J70: 1.51256069 | K70: 1.00019988 | L70: 0.01999235426 | M70: 1.000000049 | N70: 0.0003116106647 | O70: 1 | P70: 1.9055e-07 | Q70: 1 | R70: 1.9055e-07 | S70: 1.000000369 | T70: 0.001597806501 | U70: 56.41594117 | V70: -89.3605786 | W70: 90.6394214 | Y70: 1000000000 | Z70: 36309.3025 | AB70: 36.37831173 | AC70: -85.53572027 | AG70: 20.03762944 | AH70: -3.824858335 | AJ70: 0 | AK70: 0
A71: 208.93 | B71: 0.20893 | C71: 1.002567371 | D71: 0.07158058128 | E71: 1.000000012 | F71: 0.0001575295074 | G71: 1 | H71: 0 | I71: 18.83322796 | J71: 1.517673703 | K71: 1.000240295 | L71: 0.02192017871 | M71: 1.000000058 | N71: 0.0003416678864 | O71: 1 | P71: 2.0893e-07 | Q71: 1 | R71: 2.0893e-07 | S71: 1.000000443 | T71: 0.001751927138 | U71: 55.61519156 | V71: -89.9125577 | W71: 90.0874423 | Y71: 1000000000 | Z71: 43651.7449 | AB71: 35.58130091 | AC71: -85.71994024 | AG71: 20.03389064 | AH71: -4.192617458 | AJ71: 0 | AK71: 0
A72: 229.09 | B72: 0.22909 | C72: 1.003085935 | D72: 0.07846043643 | E72: 1.000000015 | F72: 0.0001727297889 | G72: 1 | H72: 0 | I72: 20.64557854 | J72: 1.522340846 | K72: 1.000288898 | L72: 0.02403451425 | M72: 1.00000007 | N72: 0.0003746359808 | O72: 1 | P72: 2.2909e-07 | Q72: 1 | R72: 2.2909e-07 | S72: 1.000000533 | T72: 0.001920973501 | U72: 54.81307537 | V72: -90.46371315 | W72: 89.53628685 | Y72: 1000000000 | Z72: 52482.2281 | AB72: 34.78367698 | AC72: -85.8680943 | AG72: 20.02939839 | AH72: -4.595618853 | AJ72: 0 | AK72: 0
A73: 251.19 | B73: 0.25119 | C73: 1.003708892 | D73: 0.08599377553 | E73: 1.000000018 | F73: 0.0001893927958 | G73: 1 | H73: 0 | I73: 22.63276186 | J73: 1.526598201 | K73: 1.000347316 | L73: 0.02635206501 | M73: 1.000000084 | N73: 0.0004107765993 | O73: 1 | P73: 2.5119e-07 | Q73: 1 | R73: 2.5119e-07 | S73: 1.000000641 | T73: 0.002106287231 | U73: 54.00997904 | V73: -91.01821796 | W73: 88.98178204 | Y73: 1000000000 | Z73: 63096.4161 | AB73: 33.98597417 | AC73: -85.98130759 | AG73: 20.02400487 | AH73: -5.036910363 | AJ73: 0 | AK73: 0
A74: 275.42 | B74: 0.27542 | C74: 1.004457263 | D74: 0.09424191795 | E74: 1.000000022 | F74: 0.0002076617847 | G74: 1 | H74: 0 | I74: 24.81186236 | J74: 1.530482105 | K74: 1.000417538 | L74: 0.02889265525 | M74: 1.000000101 | N74: 0.0004504004526 | O74: 1 | P74: 2.7542e-07 | Q74: 1 | R74: 2.7542e-07 | S74: 1.00000077 | T74: 0.002309461526 | U74: 53.20567748 | V74: -91.58063248 | W74: 88.41936752 | Y74: 1000000000 | Z74: 75856.1764 | AB74: 33.18814754 | AC74: -86.06054407 | AG74: 20.01752994 | AH74: -5.520088406 | AJ74: 0 | AK74: 0
A75: 302 | B75: 0.302 | C75: 1.005356688 | D75: 0.1032752151 | E75: 1.000000026 | F75: 0.0002277026316 | G75: 1 | H75: 0 | I75: 27.20266591 | J75: 1.534026939 | K75: 1.000501996 | L75: 0.03167921998 | M75: 1.000000122 | N75: 0.0004938673111 | O75: 1 | P75: 3.02e-07 | Q75: 1 | R75: 3.02e-07 | S75: 1.000000926 | T75: 0.002532341143 | U75: 52.399593 | V75: -92.1557602 | W75: 87.8442398 | Y75: 1000000000 | Z75: 91204 | AB75: 32.38983854 | AC75: -86.10648018 | AG75: 20.00975446 | AH75: -6.049280013 | AJ75: 0 | AK75: 0
A76: 331.13 | B76: 0.33113 | C76: 1.00643644 | D76: 0.1131556958 | E76: 1.000000031 | F76: 0.0002496661329 | G76: 1 | H76: 0 | I76: 29.8231621 | J76: 1.537259055 | K76: 1.000603478 | L76: 0.03473255208 | M76: 1.000000147 | N76: 0.0005415042385 | O76: 1 | P76: 3.3113e-07 | Q76: 1 | R76: 3.3113e-07 | S76: 1.000001114 | T76: 0.002776603135 | U76: 51.59230411 | V76: -92.74757977 | W76: 87.25242023 | Y76: 1000000000 | Z76: 109647.0769 | AB76: 31.59187487 | AC76: -86.11945315 | AG76: 20.00042925 | AH76: -6.628126622 | AJ76: 0 | AK76: 0
A77: 363.08 | B77: 0.36308 | C77: =SQRT(1+(A77/p_dom)^2) -> 1.00773344 | D77: =ATAN(A77/p_dom) -> 0.1239671558 | E77: =SQRT(1+(A77/z_ESR)^2) -> 1.000000037 | F77: =ATAN(A77/z_ESR) -> 0.0002737558637 | G77: =IF(VIN_nom>Vout, 1, SQRT(1+(A77/z_RHP)^2)) -> 1 | H77: =IF(VIN_nom>Vout, 0, -ATAN(A77/z_RHP)) -> 0 | I77: =SQRT(1+(A77/EA_p1)^2) -> 32.69763981 | J77: =ATAN(A77/EA_p1) -> 1.54020831 | K77: =SQRT(1+(A77/EA_z1)^2) -> 1.000725509 | L77: =ATAN(A77/EA_z1) -> 0.03808072245 | M77: =SQRT(1+(A77/EA_hf_p)^2) -> 1.000000176 | N77: =ATAN(A77/EA_hf_p) -> 0.0005937527709 | O77: =SQRT(1+(A77/Zero3)^2) -> 1 | P77: =ATAN(A77/Zero3) -> 3.6308e-07 | Q77: =SQRT(1+(A77/pole5)^2) -> 1 | R77: =ATAN(A77/pole5) -> 3.6308e-07 | S77: =SQRT((1-(Z77/pterm2))^2+(A77/pterm1)^2) -> 1.000001339 | T77: =IF((ATAN((A77/pterm1)/(1-A77^2/pterm2))>0),ATAN((A77/pterm1)/(1-A77^2/pterm2)),PI()+ATAN((A77/pterm1)/(1-A77^2/pterm2))) -> 0.003044511525 | U77: =20*LOG10(((E77*K77*G77*O77)/(C77*I77*S77*M77*Q77))*Adc) -> 50.78292053 | V77: =((F77+L77+H77+P77)-(D77+J77+T77+N77+R77))*radconv -> -93.36113802 | W77: =IF(V77>0,V77,V77+180) -> 86.63886198 | Y77: =IF(U77<0,A77,1000000000) -> 1000000000 | Z77: =A77^2 -> 131827.0864 | AB77: =20*LOG10((K77/(I77*M77))*Aea_stability*Afb*0.8) -> 30.79367953 | AC77: =(L77-(J77+N77))*radconv -> -86.09959059 | AG77: =20*LOG10((E77*G77/(C77*S77))*Am_stability) -> 19.98924101 | AH77: =(F77+H77-(D77+T77))*radconv -> -7.261547434 | AJ77: =SUM((U78<0)*(U77>0))*A77 -> 0 | AK77: =IF(AJ77>0,W75,0) -> 0
A78: 398.11 | B78: =A78/1000 -> 0.39811 | C78: 1.009290467 | D78: 0.135787373 | E78: 1.000000045 | F78: 0.0003001678593 | G78: 1 | H78: 0 | I78: 35.84949087 | J78: 1.542898309 | K78: 1.000872193 | L78: 0.04175067434 | M78: 1.000000212 | N78: 0.0006510380908 | O78: 1 | P78: 3.9811e-07 | Q78: 1 | R78: 3.9811e-07 | S78: 1.00000161 | T78: 0.003338246484 | U78: 49.97144923 | V78: -94.00083811 | W78: 85.99916189 | Y78: 1000000000 | Z78: 158491.5721 | AB78: 29.99562054 | AC78: -86.04672564 | AG78: 19.97582869 | AH78: -7.95411247 | AJ78: 0 | AK78: 0
A79: 436.52 | B79: 0.43652 | C79: 1.011159274 | D79: 0.148704255 | E79: 1.000000054 | F79: 0.0003291283142 | G79: 1 | H79: 0 | I79: 39.30570806 | J79: 1.545351984 | K79: 1.001048519 | L79: 0.04577343858 | M79: 1.000000255 | N79: 0.0007138507932 | O79: 1 | P79: 4.3652e-07 | Q79: 1 | R79: 4.3652e-07 | S79: 1.000001935 | T79: 0.0036603236 | U79: 49.1574556 | V79: -94.67141198 | W79: 85.32858802 | Y79: 1000000000 | Z79: 190549.7104 | AB79: 29.19769761 | AC79: -85.96042234 | AG79: 19.95975799 | AH79: -8.710989639 | AJ79: 0 | AK79: 0
A80: 478.63 | B80: 0.47863 | C80: 1.013401197 | D80: 0.1628080409 | E80: 1.000000065 | F80: 0.0003608785024 | G80: 1 | H80: 0 | I80: 43.09508569 | J80: 1.547589742 | K80: 1.001260439 | L80: 0.05018200427 | M80: 1.000000306 | N80: 0.000782714179 | O80: 1 | P80: 4.7863e-07 | Q80: 1 | R80: 4.7863e-07 | S80: 1.000002327 | T80: 0.004013426166 | U80: 48.34061107 | V80: -95.37747898 | W80: 84.62252102 | Y80: 1000000000 | Z80: 229086.6769 | AB80: 28.40009327 | AC80: -85.8399898 | AG80: 19.9405178 | AH80: -9.537489178 | AJ80: 0 | AK80: 0
A81: 524.81 | B81: 0.52481 | C81: 1.016090454 | D81: 0.1782000156 | E81: 1.000000078 | F81: 0.0003956973971 | G81: 1 | H81: 0 | I81: 47.25091921 | J81: 1.549631137 | K81: 1.001515204 | L81: 0.05501441531 | M81: 1.000000368 | N81: 0.0008582333145 | O81: 1 | P81: 5.2481e-07 | Q81: 1 | R81: 5.2481e-07 | S81: 1.000002797 | T81: 0.004400656747 | U81: 47.52014693 | V81: -96.12397937 | W81: 83.87602063 | Y81: 1000000000 | Z81: 275425.5361 | AB81: 27.60265226 | AC81: -85.6844033 | AG81: 19.91749467 | AH81: -10.43957607 | AJ81: 0 | AK81: 0
A82: 575.44 | B82: 0.57544 | C82: 1.019313917 | D82: 0.1949774297 | E82: 1.000000094 | F82: 0.0004338715112 | G82: 1 | H82: 0 | I82: 51.80740564 | J82: 1.551492868 | K82: 1.00182138 | L82: 0.06030952507 | M82: 1.000000443 | N82: 0.0009410296182 | O82: 1 | P82: 5.7544e-07 | Q82: 1 | R82: 5.7544e-07 | S82: 1.000003363 | T82: 0.004825201766 | U82: 46.69565317 | V82: -96.91541758 | W82: 83.08458242 | Y82: 1000000000 | Z82: 331131.1936 | AB82: 26.80567493 | AC82: -85.49242907 | AG82: 19.88997824 | AH82: -11.42298851 | AJ82: 0 | AK82: 0
A83: 630.96 | B83: 0.63096 | C83: 1.023176296 | D83: 0.2132480059 | E83: 1.000000113 | F83: 0.0004757325963 | G83: 1 | H83: 0 | I83: 56.80414315 | J83: 1.553191068 | K83: 1.002189395 | L83: 0.066112152 | M83: 1.000000532 | N83: 0.001031822627 | O83: 1 | P83: 6.3096e-07 | Q83: 1 | R83: 6.3096e-07 | S83: 1.000004043 | T83: 0.005290750773 | U83: 45.8662231 | V83: -97.7565557 | W83: 82.2434443 | Y83: 1000000000 | Z83: 398110.5216 | AB83: 26.00910093 | AC83: -85.26246475 | AG83: 19.85712217 | AH83: -12.49409095 | AJ83: 0 | AK83: 0
A84: 691.83 | B84: 0.69183 | C84: 1.027800187 | D84: 0.2331139749 | E84: 1.000000136 | F84: 0.0005216274836 | G84: 1 | H84: 0 | I84: 62.28253123 | J84: 1.55473977 | K84: 1.002631621 | L84: 0.07246879584 | M84: 1.00000064 | N84: 0.001131364582 | O84: 1 | P84: 6.9183e-07 | Q84: 1 | R84: 6.9183e-07 | S84: 1.000004861 | T84: 0.005801161037 | U84: 45.03115788 | V84: -98.65163525 | W84: 81.34836475 | Y84: 1000000000 | Z84: 478628.7489 | AB84: 25.21320706 | AC84: -84.99269336 | AG84: 19.81795082 | AH84: -13.6589419 | AJ84: 0 | AK84: 0
A85: 758.58 | B85: 0.75858 | C85: 1.033332544 | D85: 0.2546851199 | E85: 1.000000164 | F85: 0.0005719557829 | G85: 1 | H85: 0 | I85: 68.29027066 | J85: 1.556152429 | K85: 1.003163095 | L85: 0.07943273052 | M85: 1.000000769 | N85: 0.001240522196 | O85: 1 | P85: 7.5858e-07 | Q85: 1 | R85: 7.5858e-07 | S85: 1.000005844 | T85: 0.006360876813 | U85: 44.18927154 | V85: -99.60494616 | W85: 80.39505384 | Y85: 1000000000 | Z85: 575443.6164 | AB85: 24.41795732 | AC85: -84.68088293 | AG85: 19.77131422 | AH85: -14.92406322 | AJ85: 0 | AK85: 0
A86: 831.76 | B86: 0.83176 | C86: 1.039944032 | D86: 0.2780583601 | E86: 1.000000197 | F86: 0.0006271321831 | G86: 1 | H86: 0 | I86: 74.87686342 | J86: 1.557440669 | K86: 1.003801605 | L86: 0.08705861171 | M86: 1.000000925 | N86: 0.001360194883 | O86: 1 | P86: 8.3176e-07 | Q86: 1 | R86: 8.3176e-07 | S86: 1.000007026 | T86: 0.006974510084 | U86: 43.33961361 | V86: -100.6198681 | W86: 79.38013193 | Y86: 1000000000 | Z86: 691824.6976 | AB86: 23.62370657 | AC86: -84.32461961 | AG86: 19.71590704 | AH86: -16.29524846 | AJ86: 0 | AK86: 0
A87: 912.01 | B87: 0.91201 | C87: 1.047838504 | D87: 0.3033352721 | E87: 1.000000236 | F87: 0.0006876392315 | G87: 1 | H87: 0 | I87: 82.09991295 | J87: 1.558615745 | K87: 1.004568819 | L87: 0.09540955169 | M87: 1.000001112 | N87: 0.001491429235 | O87: 1 | P87: 9.1201e-07 | Q87: 1 | R87: 9.1201e-07 | S87: 1.000008448 | T87: 0.007647427542 | U87: 42.48064737 | V87: -101.6995894 | W87: 78.30041061 | Y87: 1000000000 | Z87: 831762.2401 | AB87: 22.83044004 | AC87: -83.92099202 | AG87: 19.65020733 | AH87: -17.77859737 | AJ87: 0 | AK87: 0
A88: 1000 | B88: 1 | C88: 1.057251479 | D88: 0.3305968825 | E88: 1.000000284 | F88: 0.000753982094 | G88: 1 | H88: 0 | I88: 90.01972386 | J88: 1.559687422 | K88: 1.005490414 | L88: 0.1045505702 | M88: 1.000001337 | N88: 0.001635320897 | O88: 1 | P88: 1e-06 | Q88: 1 | R88: 1e-06 | S88: 1.000010156 | T88: 0.008385247478 | U88: 41.61101724 | V88: -102.8459426 | W88: 77.15405742 | Y88: 1000000000 | Z88: 1000000 | AB88: 22.03850331 | AC88: -83.46689719 | AG88: 19.57251393 | AH88: -19.37904539 | AJ88: 0 | AK88: 0
A89: 1096.5 | B89: 1.0965 | C89: 1.068461121 | D89: 0.3599186111 | E89: 1.000000342 | F89: 0.0008267413344 | G89: 1 | H89: 0 | I89: 98.70560239 | J89: 1.560665016 | K89: 1.00659755 | L89: 0.1145554899 | M89: 1.000001608 | N89: 0.001793129041 | O89: 1 | P89: 1.0965e-06 | Q89: 1 | R89: 1.0965e-06 | S89: 1.000012211 | T89: 0.009194426766 | U89: 40.72886525 | V89: -104.0599617 | W89: 75.94003826 | Y89: 1000000000 | Z89: 1202312.25 | AB89: 21.24797711 | AC89: -82.9587113 | AG89: 19.48088814 | AH89: -21.10125044 | AJ89: 0 | AK89: 0
A90: 1202.3 | B90: 1.2023 | C90: 1.081783235 | D90: 0.3913378168 | E90: 1.000000411 | F90: 0.0009065125951 | G90: 1 | H90: 0 | I90: 108.2286558 | J90: 1.561556498 | K90: 1.007926902 | L90: 0.1254981342 | M90: 1.000001933 | N90: 0.001966145534 | O90: 1 | P90: 1.2023e-06 | Q90: 1 | R90: 1.2023e-06 | S90: 1.000014681 | T90: 0.01008159006 | U90: 39.83266525 | V90: -105.3404337 | W90: 74.65956629 | Y90: 1000000000 | Z90: 1445525.29 | AB90: 20.45942842 | AC90: -82.39273523 | AG90: 19.37323683 | AH90: -22.94769848 | AJ90: 0 | AK90: =IF(AJ90>0,W90,0) -> 0
A91: 1318.3 | B91: 1.3183 | C91: 1.097584992 | D91: 0.4248727954 | E91: 1.000000494 | F91: 0.0009939744555 | G91: 1 | H91: 0 | I91: 118.6698929 | J91: 1.56236949 | K91: 1.009522726 | L91: 0.137461023 | M91: 1.000002324 | N91: 0.002155842121 | O91: 1 | P91: 1.3183e-06 | Q91: 1 | R91: 1.3183e-06 | S91: 1.000017651 | T91: 0.01105428449 | U91: 38.92045405 | V91: -106.6845933 | W91: 73.31540669 | Y91: 1000000000 | Z91: 1737914.89 | AB91: 19.67320057 | AC91: -81.764762 | AG91: 19.24725348 | AH91: -24.91983131 | AJ91: 0 | AK91: 0
A92: 1445.4 | B92: 1.4454 | C92: 1.116272905 | D92: 0.4604822927 | E92: 1.000000594 | F92: 0.001089805494 | G92: 1 | H92: 0 | I92: 130.1103233 | J92: 1.563110466 | K92: 1.011436561 | L92: 0.1505232132 | M92: 1.000002794 | N92: 0.00236369053 | O92: 1 | P92: 1.4454e-06 | Q92: 1 | R92: 1.4454e-06 | S92: 1.000021219 | T92: 0.01212005733 | U92: 37.99080223 | V92: -108.0863961 | W92: 71.91360395 | Y92: 1000000000 | Z92: 2089181.16 | AB92: 18.89022334 | AC92: -81.07071726 | AG92: 19.10057889 | AH92: -27.01567879 | AJ92: 0 | AK92: 0
A93: 1584.9 | B93: 1.5849 | C93: 1.138355946 | D93: 0.4981670384 | E93: 1.000000714 | F93: 0.001194985878 | G93: 1 | H93: 0 | I93: 142.6669617 | J93: 1.563786938 | K93: 1.013734951 | L93: 0.1648002719 | M93: 1.000003359 | N93: 0.002591816597 | O93: 1 | P93: 1.5849e-06 | Q93: 1 | R93: 1.5849e-06 | S93: 1.000025513 | T93: 0.01328981012 | U93: 37.04008945 | V93: -109.5403829 | W93: 70.45961711 | Y93: 1000000000 | Z93: 2511908.01 | AB93: 18.10970074 | AC93: -80.30453172 | AG93: 18.93038871 | AH93: -29.23585118 | AJ93: 0 | AK93: 0
A94: 1737.8 | B94: 1.7378 | C94: 1.164341728 | D94: 0.5377674323 | E94: 1.000000858 | F94: 0.001310269581 | G94: 1 | H94: 0 | I94: 156.4298198 | J94: 1.56440364 | K94: 1.016490323 | L94: 0.1803710466 | M94: 1.000004038 | N94: 0.002841855538 | O94: 1 | P94: 1.7378e-06 | Q94: 1 | R94: 1.7378e-06 | S94: 1.000030673 | T94: 0.01457192905 | U94: 36.06764625 | V94: -111.033694 | W94: 68.966306 | Y94: 1000000000 | Z94: 3019948.84 | AB94: 17.33334875 | AC94: -79.46205265 | AG94: 18.7342975 | AH94: -31.57164135 | AJ94: 0 | AK94: 0
A95: 1905.5 | B95: 1.9055 | C95: 1.194844539 | D95: 0.5791485484 | E95: 1.000001032 | F95: 0.001436712164 | G95: 1 | H95: 0 | I95: 171.5249147 | J95: 1.564966237 | K95: 1.019794134 | L95: 0.1973476584 | M95: 1.000004855 | N95: 0.003116096662 | O95: 1 | P95: 1.9055e-06 | Q95: 1 | R95: 1.9055e-06 | S95: 1.000036879 | T95: 0.01597815473 | U95: 35.07099983 | V95: -112.5532425 | W95: 67.44675745 | Y95: 1000000000 | Z95: 3630930.25 | AB95: 16.56137353 | AC95: -78.53731172 | AG95: 18.50962629 | AH95: -34.01593082 | AJ95: 0 | AK95: 0
A96: 2089.3 | B96: 2.0893 | C96: 1.230501225 | D96: 0.6220648635 | E96: 1.000001241 | F96: 0.001575293784 | G96: 1 | H96: 0 | I96: 188.0692626 | J96: 1.565479112 | K96: 1.02375037 | L96: 0.2158223197 | M96: 1.000005837 | N96: 0.003416665702 | O96: 1 | P96: 2.0893e-06 | Q96: 1 | R96: 2.0893e-06 | S96: 1.000044338 | T96: 0.01751938964 | U96: 34.04933443 | V96: -114.0806192 | W96: 65.91938084 | Y96: 1000000000 | Z96: 4365174.49 | AB96: 15.79518405 | AC96: -77.5253985 | AG96: 18.25415037 | AH96: -36.55522066 | AJ96: 0 | AK96: 0
A97: 2290.9 | B97: 2.2909 | C97: 1.272061046 | D97: 0.6662808268 | E97: 1.000001492 | F97: 0.001727296189 | G97: 1 | H97: 0 | I97: 206.2158852 | J97: 1.565947021 | K97: 1.028488231 | L97: 0.2359150615 | M97: 1.000007018 | N97: 0.003746342456 | O97: 1 | P97: 2.2909e-06 | Q97: 1 | R97: 2.2909e-06 | S97: 1.000053309 | T97: 0.01920989089 | U97: 33.00074957 | V97: -115.5966257 | W97: 64.40337426 | Y97: 1000000000 | Z97: 5248222.81 | AB97: 15.03519299 | AC97: -76.4198675 | AG97: 17.96555657 | AH97: -39.17675824 | AJ97: 0 | AK97: 0
A98: 2511.9 | B98: 2.5119 | C98: 1.320285554 | D98: 0.7114561455 | E98: 1.000001793 | F98: 0.001893925716 | G98: 1 | H98: 0 | I98: 226.1088033 | J98: 1.566373663 | K98: 1.034154386 | L98: 0.2577199986 | M98: 1.000008437 | N98: 0.00410774312 | O98: 1 | P98: 2.5119e-06 | Q98: 1 | R98: 2.5119e-06 | S98: 1.000064092 | T98: 0.02106307778 | U98: 31.9252618 | V98: -117.0774341 | W98: 62.92256589 | Y98: 1000000000 | Z98: 6309641.61 | AB98: 14.28299461 | AC98: -75.21568815 | AG98: 17.64226718 | AH98: -41.86174596 | AJ98: 0 | AK98: 0
A99: 2754.2 | B99: 2.7542 | C99: 1.376022995 | D99: 0.7572438278 | E99: 1.000002156 | F99: 0.002076614892 | G99: 1 | H99: 0 | I99: 247.919042 | J99: 1.566762741 | K99: 1.040925085 | L99: 0.2813411901 | M99: 1.000010143 | N99: 0.004503974375 | O99: 1 | P99: 2.7542e-06 | Q99: 1 | R99: 2.7542e-06 | S99: 1.000077055 | T99: 0.02309488608 | U99: 30.82281479 | V99: -118.4984221 | W99: 61.50157789 | Y99: 1000000000 | Z99: 7585617.64 | AB99: 13.53981345 | AC99: -73.90728849 | AG99: 17.28300134 | AH99: -44.59113362 | AJ99: 0 | AK99: 0
A100: 3020 | B100: 3.02 | C100: 1.440210751 | D100: 0.8032900244 | E100: 1.000002592 | F100: 0.00227702242 | G100: 1 | H100: 0 | I100: 271.8446307 | J100: 1.567117747 | K100: 1.049011192 | L100: 0.3068867526 | M100: 1.000012195 | N100: 0.004938633361 | O100: 1 | P100: 3.02e-06 | Q100: 1 | R100: 3.02e-06 | S100: 1.000092649 | T100: 0.02532376841 | U100: 29.69365362 | V100: -119.8344894 | W100: 60.16551058 | Y100: 1000000000 | Z100: 9120400 | AB100: 12.80679107 | AC100: -72.48888002 | AG100: 16.88686255 | AH100: -47.3456094 | AJ100: 0 | AK100: 0
A101: 3311.3 | B101: 3.3113 | C101: 1.513747284 | D101: 0.8491623153 | E101: 1.000003117 | F101: 0.002496656193 | G101: 1 | H101: 0 | I101: 298.0655964 | J101: 1.567441354 | K101: 1.058646354 | L101: 0.3344149112 | M101: 1.000014661 | N101: 0.005414989988 | O101: 1 | P101: 3.3113e-06 | Q101: 1 | R101: 3.3113e-06 | S101: 1.00011139 | T101: 0.02776650184 | U101: 28.54052128 | V101: -121.0587396 | W101: 58.94126042 | Y101: 1000000000 | Z101: 10964707.69 | AB101: 12.0863635 | AC101: -70.95746729 | AG101: 16.45415777 | AH101: -50.10127229 | AJ101: 0 | AK101: 0
A102: 3630.8 | B102: 3.6308 | C102: 1.597707271 | D102: 0.8945153356 | E102: 1.000003747 | F102: 0.002737551867 | G102: 1 | H102: 0 | I102: 326.8249759 | J102: 1.56773658 | K102: 1.070118896 | L102: 0.3640130355 | M102: 1.000017627 | N102: 0.005937458634 | O102: 1 | P102: 3.6308e-06 | Q102: 1 | R102: 3.6308e-06 | S102: 1.00013393 | T102: 0.03044573537 | U102: 27.36498335 | V102: -122.1479856 | W102: 57.85201444 | Y102: 1000000000 | Z102: 13182708.64 | AB102: 11.37989255 | AC102: -69.30847014 | AG102: 15.9850908 | AH102: -52.83951541 | AJ102: 0 | AK102: 0
A103: 3981.1 | B103: 3.9811 | C103: 1.693140478 | D103: 0.9389713007 | E103: 1.000004505 | F103: 0.003001669668 | G103: 1 | H103: 0 | I103: 358.3568049 | J103: 1.568005808 | K103: 1.083750269 | L103: 0.3957134163 | M103: 1.000021192 | N103: 0.006510289849 | O103: 1 | P103: 3.9811e-06 | Q103: 1 | R103: 3.9811e-06 | S103: 1.000161031 | T103: 0.03338328212 | U103: 26.17074334 | V103: -123.0802493 | W103: 56.91975067 | Y103: 1000000000 | Z103: 15849157.21 | AB103: 10.68979694 | AC103: -67.54041855 | AG103: 15.48094641 | AH103: -55.53983078 | AJ103: 0 | AK103: 0
A104: 4365.2 | B104: 4.3652 | C104: 1.80119617 | D104: 0.9822090097 | E104: 1.000005416 | F104: 0.003291271376 | G104: 1 | H104: 0 | I104: 392.9311245 | J104: 1.568251349 | K104: 1.099915349 | L104: 0.4295316923 | M104: 1.000025479 | N104: 0.007138387893 | O104: 1 | P104: 4.3652e-06 | Q104: 1 | R104: 4.3652e-06 | S104: 1.000193618 | T104: 0.03660431307 | U104: 24.96165595 | V104: -123.8379574 | W104: 56.16204259 | Y104: 1000000000 | Z104: 19054971.04 | AB104: 10.01834508 | AC104: -65.65282986 | AG104: 14.94331087 | AH104: -58.18512755 | AJ104: 0 | AK104: 0
A105: 4786.3 | B105: 4.7863 | C105: 1.923070122 | D105: 1.023943223 | E105: 1.000006512 | F105: 0.003608769514 | G105: 1 | H105: 0 | I105: 430.8359793 | J105: 1.568475256 | K105: 1.119038304 | L105: 0.465439361 | M105: 1.000030632 | N105: 0.007826983553 | O105: 1 | P105: 4.7863e-06 | Q105: 1 | R105: 4.7863e-06 | S105: 1.000232799 | T105: 0.04013568097 | U105: 23.74240149 | V105: -124.4082176 | W105: 55.59178244 | Y105: 1000000000 | Z105: 22908667.69 | AB105: 9.368103463 | AC105: -63.64775454 | AG105: 14.37429803 | AH105: -60.76046301 | AJ105: 0 | AK105: 0
A106: 5248.1 | B106: 5.2481 | C106: 2.060092468 | D106: 1.063958428 | E106: 1.000007829 | F106: 0.003956953525 | G106: 1 | H106: 0 | I106: 472.4044206 | J106: 1.568679495 | K106: 1.141608654 | L106: 0.5033803614 | M106: 1.000036828 | N106: 0.008582124546 | O106: 1 | P106: 5.2481e-06 | Q106: 1 | R106: 5.2481e-06 | S106: 1.000279922 | T106: 0.0440084377 | U106: 22.51752426 | V106: -124.7839723 | W106: 55.21602769 | Y106: 1000000000 | Z106: 27542553.61 | AB106: 8.741455874 | AC106: -61.52886378 | AG106: 13.77606839 | AH106: -63.25510852 | AJ106: 0 | AK106: 0
A107: 5370.3 | B107: 5.3703 | C107: 2.09685705 | D107: 1.073667094 | E107: 1.000008198 | F107: 0.004049088678 | G107: 1 | H107: 0 | I107: 483.404128 | J107: 1.568727663 | K107: 1.147849211 | L107: 0.5131659938 | M107: 1.000038563 | N107: 0.008781945875 | O107: 1 | P107: 5.3703e-06 | Q107: 1 | R107: 5.3703e-06 | S107: 1.000293119 | T107: 0.04503324816 | U107: 22.21117932 | V107: -124.8472095 | W107: 55.15279048 | Y107: 1000000000 | Z107: 28840122.09 | AB107: 8.588864522 | AC107: -60.98239708 | AG107: 13.6223148 | AH107: -63.86481244 | AJ107: 0 | AK107: 0
A108: 5432.85 | B108: 5.43285 | C108: 2.115750047 | D108: 1.07850584 | E108: 1.00000839 | F108: 0.004096249485 | G108: 1 | H108: 0 | I108: 489.0345024 | J108: 1.56875148 | K108: 1.15108572 | L108: 0.5181336262 | M108: 1.000039466 | N108: 0.008884227307 | O108: 1 | P108: 5.43285e-06 | Q108: 1 | R108: 5.43285e-06 | S108: 1.000299993 | T108: 0.04555781598 | U108: 22.05707636 | V108: -124.8744032 | W108: 55.12559677 | Y108: 1000000000 | Z108: 29515859.12 | AB108: 8.512730277 | AC108: -60.70499763 | AG108: 13.54434608 | AH108: -64.1694056 | AJ108: 0 | AK108: 0
A109: 5495.4 | B109: 5.4954 | C109: 2.134691704 | D109: 1.083258826 | E109: 1.000008584 | F109: 0.004143410273 | G109: 1 | H109: 0 | I109: 494.664877 | J109: 1.568774755 | K109: 1.154350474 | L109: 0.5230732808 | M109: 1.00004038 | N109: 0.008986508554 | O109: 1 | P109: 5.4954e-06 | Q109: 1 | R109: 5.4954e-06 | S109: 1.000306946 | T109: 0.04608238547 | U109: 21.90476258 | V109: -124.8982552 | W109: 55.10174479 | Y109: 1000000000 | Z109: 30199421.16 | AB109: 8.437891241 | AC109: -60.4291701 | AG109: 13.46687134 | AH109: -64.46908511 | AJ109: 0 | AK109: 0
A110: 5559.4 | B110: 5.5594 | C110: 2.154121482 | D110: 1.088035365 | E110: 1.000008785 | F110: 0.004191664298 | G110: 1 | H110: 0 | I110: 500.4257722 | J110: 1.568798027 | K110: 1.157719897 | L110: 0.5280984821 | M110: 1.000041326 | N110: 0.009091160634 | O110: 1 | P110: 5.5594e-06 | Q110: 1 | R110: 5.5594e-06 | S110: 1.000314142 | T110: 0.04661911697 | U110: 21.7507374 | V110: -124.9193251 | W110: 55.08067487 | Y110: 1000000000 | Z110: 30906928.36 | AB110: 8.362627397 | AC110: -60.1485768 | AG110: 13.38811 | AH110: -64.77074832 | AJ110: 0 | AK110: 0
A111: 5623.4 | B111: 5.6234 | C111: 2.173599527 | D111: 1.092726402 | E111: 1.000008989 | F111: 0.004239918304 | G111: 1 | H111: 0 | I111: 506.1866677 | J111: 1.56882077 | K111: 1.161118385 | L111: 0.5330943925 | M111: 1.000042283 | N111: 0.009195812515 | O111: 1 | P111: 5.6234e-06 | Q111: 1 | R111: 5.6234e-06 | S111: 1.000321423 | T111: 0.04715585025 | U111: 21.59852026 | V111: -124.9371442 | W111: 55.06285584 | Y111: 1000000000 | Z111: 31622627.56 | AB111: 8.288658491 | AC111: -59.86963139 | AG111: 13.30986177 | AH111: -65.06751277 | AJ111: 0 | AK111: 0
A112: 5688.9 | B112: 5.6889 | C112: 2.193582725 | D112: 1.097441019 | E112: 1.000009199 | F112: 0.004289303242 | G112: 1 | H112: 0 | I112: 512.0825844 | J112: 1.568843516 | K112: 1.164626355 | L112: 0.5381770741 | M112: 1.000043274 | N112: 0.009302916965 | O112: 1 | P112: 5.6889e-06 | Q112: 1 | R112: 5.6889e-06 | S112: 1.00032896 | T112: 0.04770516507 | U112: 21.44457447 | V112: -124.9521393 | W112: 55.04786065 | Y112: 1000000000 | Z112: 32363583.21 | AB112: 8.214266053 | AC112: -59.58585506 | AG112: 13.23030842 | AH112: -65.36628429 | AJ112: 0 | AK112: 0
A113: 5754.4 | B113: 5.7544 | C113: 2.2136138 | D113: 1.102070412 | E113: 1.000009412 | F113: 0.004338688159 | G113: 1 | H113: 0 | I113: 517.9785014 | J113: 1.568865744 | K113: 1.168164231 | L113: 0.543229099 | M113: 1.000044276 | N113: 0.009410021203 | O113: 1 | P113: 5.7544e-06 | Q113: 1 | R113: 5.7544e-06 | S113: 1.000336585 | T113: 0.04825448178 | U113: 21.29245591 | V113: -124.9639785 | W113: 55.03602152 | Y113: 1000000000 | Z113: 33113119.36 | AB113: 8.141168574 | AC113: -59.30380555 | AG113: 13.15128734 | AH113: -65.66017294 | AJ113: 0 | AK113: 0
A114: 5821.4 | B114: 5.8214 | C114: 2.234151794 | D114: 1.106719833 | E114: 1.000009633 | F114: 0.004389204007 | G114: 1 | H114: 0 | I114: 524.0094396 | J114: 1.568887963 | K114: 1.171813784 | L114: 0.5483651232 | M114: 1.000045313 | N114: 0.009519577985 | O114: 1 | P114: 5.8214e-06 | Q114: 1 | R114: 5.8214e-06 | S114: 1.000344476 | T114: 0.04881638026 | U114: 21.1387103 | V114: -124.9729485 | W114: 55.02705152 | Y114: 1000000000 | Z114: 33888697.96 | AB114: 8.067706021 | AC114: -59.01708326 | AG114: 13.07100427 | AH114: -65.95586521 | AJ114: 0 | AK114: 0
A115: 5888.4 | B115: 5.8884 | C115: 2.254737204 | D115: 1.111284454 | E115: 1.000009856 | F115: 0.004439719833 | G115: 1 | H115: 0 | I115: 530.0403781 | J115: 1.568909677 | K115: 1.175494056 | L115: 0.5534691212 | M115: 1.000046362 | N115: 0.00962913454 | O115: 1 | P115: 5.8884e-06 | Q115: 1 | R115: 5.8884e-06 | S115: 1.000352458 | T115: 0.04937828077 | U115: 20.98680855 | V115: -124.9788659 | W115: 55.02113411 | Y115: 1000000000 | Z115: 34673254.56 | AB115: 7.995536722 | AC115: -58.73216696 | AG115: 12.99127183 | AH115: -66.24669893 | AJ115: 0 | AK115: 0
A116: 5957 | B116: 5.957 | C116: 2.275861989 | D116: 1.115872427 | E116: 1.000010087 | F116: 0.004491441983 | G116: 1 | H116: 0 | I116: 536.2153393 | J116: 1.568931403 | K116: 1.179293743 | L116: 0.5586618602 | M116: 1.000047448 | N116: 0.00974130713 | O116: 1 | P116: 5.957e-06 | Q116: 1 | R116: 5.957e-06 | S116: 1.000360725 | T116: 0.04995360193 | U116: 20.83315507 | V116: -124.9818872 | W116: 55.0181128 | Y116: 1000000000 | Z116: 35485849 | AB116: 7.922952852 | AC116: -58.44231678 | AG116: 12.91020222 | AH116: -66.53957042 | AJ116: 0 | AK116: 0
A117: 6025.6 | B117: 6.0256 | C117: 2.297033798 | D117: 1.120375918 | E117: 1.00001032 | F117: 0.004543164109 | G117: 1 | H117: 0 | I117: 542.3903007 | J117: 1.568952635 | K117: 1.183125024 | L117: 0.5638211065 | M117: 1.000048547 | N117: 0.009853479476 | O117: 1 | P117: 6.0256e-06 | Q117: 1 | R117: 6.0256e-06 | S117: 1.000369089 | T117: 0.05052892527 | U117: 20.68136496 | V117: -124.9819588 | W117: 55.01804117 | Y117: 1000000000 | Z117: 36307855.36 | AB117: 7.851662599 | AC117: -58.15435723 | AG117: 12.82970237 | AH117: -66.8276016 | AJ117: 0 | AK117: 0
A118: 6095.8 | B118: 6.0958 | C118: 2.318746748 | D118: 1.124899213 | E118: 1.000010562 | F118: 0.004596092556 | G118: 1 | H118: 0 | I118: 548.7092847 | J118: 1.568973867 | K118: 1.187078053 | L118: 0.5690660648 | M118: 1.000049685 | N118: 0.009968267829 | O118: 1 | P118: 6.0958e-06 | Q118: 1 | R118: 6.0958e-06 | S118: 1.000377748 | T118: 0.05111766952 | U118: 20.52792818 | V118: -124.979104 | W118: 55.02089603 | Y118: 1000000000 | Z118: 37158777.64 | AB118: 7.780017545 | AC118: -57.86163665 | AG118: 12.74791064 | AH118: -67.11746732 | AJ118: 0 | AK118: 0
A119: 6166 | B119: 6.166 | C119: 2.34050626 | D119: 1.129338493 | E119: 1.000010807 | F119: 0.004649020978 | G119: 1 | H119: 0 | I119: 555.0282691 | J119: 1.568994616 | K119: 1.191063521 | L119: 0.5742760648 | M119: 1.000050836 | N119: 0.01008305592 | O119: 1 | P119: 6.166e-06 | Q119: 1 | R119: 6.166e-06 | S119: 1.000386507 | T119: 0.0517064161 | U119: 20.37637155 | V119: -124.9734107 | W119: 55.02658928 | Y119: 1000000000 | Z119: 38019556 | AB119: 7.709664618 | AC119: -57.57089132 | AG119: 12.66670693 | AH119: -67.4025194 | AJ119: 0 | AK119: 0
A120: 6237.8 | B120: 6.2378 | C120: 2.362808539 | D120: 1.133794281 | E120: 1.00001106 | F120: 0.004703155719 | G120: 1 | H120: 0 | I120: 561.491276 | J120: 1.569015354 | K120: 1.195173044 | L120: 0.5795687202 | M120: 1.000052027 | N120: 0.01020045999 | O120: 1 | P120: 6.2378e-06 | Q120: 1 | R120: 6.2378e-06 | S120: 1.000395569 | T120: 0.05230858384 | U120: 20.22326935 | V120: -124.9647768 | W120: 55.03522324 | Y120: 1000000000 | Z120: 38910148.84 | AB120: 7.639013402 | AC120: -57.2755595 | AG120: 12.58425595 | AH120: -67.68921726 | AJ120: 0 | AK120: 0
A121: 6309.6 | B121: 6.3096 | C121: 2.385156851 | D121: 1.138166656 | E121: 1.000011316 | F121: 0.004757290433 | G121: 1 | H121: 0 | I121: 567.9542833 | J121: 1.569035621 | K121: 1.199315817 | L121: 0.5848249572 | M121: 1.000053232 | N121: 0.01031786378 | O121: 1 | P121: 6.3096e-06 | Q121: 1 | R121: 6.3096e-06 | S121: 1.000404738 | T121: 0.05291075409 | U121: 20.07206137 | V121: -124.9534232 | W121: 55.04657676 | Y121: 1000000000 | Z121: 39811052.16 | AB121: 7.569651049 | AC121: -56.98228722 | AG121: 12.50241032 | AH121: -67.97113602 | AJ121: 0 | AK121: 0
A122: 6383.05 | B122: 6.38305 | C122: 2.408065036 | D122: 1.142555449 | E122: 1.000011581 | F122: 0.00481266916 | G122: 1 | H122: 0 | I122: 574.5658139 | J122: 1.569055881 | K122: 1.203587838 | L122: 0.590164393 | M122: 1.000054478 | N122: 0.01043796527 | O122: 1 | P122: 6.38305e-06 | Q122: 1 | R122: 6.38305e-06 | S122: 1.000414225 | T122: 0.05352676512 | U122: 19.91930164 | V122: -124.9391194 | W122: 55.06088057 | Y122: 1000000000 | Z122: 40743327.3 | AB122: 7.49999675 | AC122: -56.68440224 | AG122: 12.41930489 | AH122: -68.25471719 | AJ122: 0 | AK122: 0
A123: 6456.5 | B123: 6.4565 | C123: 2.431018728 | D123: 1.146861446 | E123: 1.000011849 | F123: 0.004868047858 | G123: 1 | H123: 0 | I123: 581.1773447 | J123: 1.569075681 | K123: 1.207893931 | L123: 0.5954659092 | M123: 1.000055739 | N123: 0.01055806646 | O123: 1 | P123: 6.4565e-06 | Q123: 1 | R123: 6.4565e-06 | S123: 1.000423823 | T123: 0.05414277883 | U123: 19.76845011 | V123: -124.9222181 | W123: 55.07778191 | Y123: 1000000000 | Z123: 41686392.25 | AB123: 7.431628082 | AC123: -56.38866345 | AG123: 12.33682203 | AH123: -68.53355464 | AJ123: 0 | AK123: 0
A124: 6531.7 | B124: 6.5317 | C124: 2.454565123 | D124: 1.151186518 | E124: 1.000012127 | F124: 0.004924745963 | G124: 1 | H124: 0 | I124: 587.9464003 | J124: 1.569095491 | K124: 1.212337537 | L124: 0.600854565 | M124: 1.000057045 | N124: 0.01068102883 | O124: 1 | P124: 6.5317e-06 | Q124: 1 | R124: 6.5317e-06 | S124: 1.000433765 | T124: 0.05477347231 | U124: 19.61594366 | V124: -124.902347 | W124: 55.09765299 | Y124: 1000000000 | Z124: 42663104.89 | AB124: 7.362930617 | AC124: -56.08809646 | AG124: 12.25301304 | AH124: -68.81425055 | AJ124: 0 | AK124: 0
A125: 6606.9 | B125: 6.6069 | C125: 2.478156561 | D125: 1.155429321 | E125: 1.000012408 | F125: 0.004981444036 | G125: 1 | H125: 0 | I125: 594.7154562 | J125: 1.56911485 | K125: 1.21681609 | L125: 0.6062037088 | M125: 1.000058366 | N125: 0.01080399088 | O125: 1 | P125: 6.6069e-06 | Q125: 1 | R125: 6.6069e-06 | S125: 1.000443821 | T125: 0.05540416866 | U125: 19.46536172 | V125: -124.8800004 | W125: 55.11999956 | Y125: 1000000000 | Z125: 43651127.61 | AB125: 7.295517173 | AC125: -55.7897675 | AG125: 12.16984455 | AH125: -69.09023294 | AJ125: 0 | AK125: 0
A126: 6683.85 | B126: 6.68385 | C126: 2.502342301 | D126: 1.159687967 | E126: 1.000012698 | F126: 0.005039461512 | G126: 1 | H126: 0 | I126: 601.6420369 | J126: 1.569134208 | K126: 1.221434638 | L126: 0.6116365678 | M126: 1.000059733 | N126: 0.01092981407 | O126: 1 | P126: 6.68385e-06 | Q126: 1 | R126: 6.68385e-06 | S126: 1.000454232 | T126: 0.05604954512 | U126: 19.31322925 | V126: -124.8546945 | W126: 55.14530553 | Y126: 1000000000 | Z126: 44673850.82 | AB126: 7.227832111 | AC126: -55.4868059 | AG126: 12.08539714 | AH126: -69.36788857 | AJ126: 0 | AK126: 0
A127: 6760.8 | B127: 6.7608 | C127: 2.526572553 | D127: 1.163865005 | E127: 1.000012992 | F127: 0.005097478955 | G127: 1 | H127: 0 | I127: 608.5686177 | J127: 1.569153126 | K127: 1.226088965 | L127: 0.6170283379 | M127: 1.000061117 | N127: 0.01105563692 | O127: 1 | P127: 6.7608e-06 | Q127: 1 | R127: 6.7608e-06 | S127: 1.000464763 | T127: 0.05669492465 | U127: 19.16303467 | V127: -124.8270419 | W127: 55.17295814 | Y127: 1000000000 | Z127: 45708416.64 | AB127: 7.161427534 | AC127: -55.18617326 | AG127: 12.00160714 | AH127: -69.6408686 | AJ127: 0 | AK127: 0
A128: 6839.55 | B128: 6.83955 | C128: 2.551414359 | D128: 1.168057535 | E128: 1.000013297 | F128: 0.005156853495 | G128: 1 | H128: 0 | I128: 615.6572241 | J128: 1.569172046 | K128: 1.230888787 | L128: 0.6225038506 | M128: 1.000062549 | N128: 0.01118440263 | O128: 1 | P128: 6.83955e-06 | Q128: 1 | R128: 6.83955e-06 | S128: 1.000475666 | T128: 0.05735540399 | U128: 19.01129389 | V128: -124.7964348 | W128: 55.20356516 | Y128: 1000000000 | Z128: 46779444.2 | AB128: 7.094763197 | AC128: -54.88091124 | AG128: 11.91653069 | AH128: -69.9155236 | AJ128: 0 | AK128: 0
A129: 6918.3 | B129: 6.9183 | C129: 2.576300147 | D129: 1.17216914 | E129: 1.000013605 | F129: 0.005216227999 | G129: 1 | H129: 0 | I129: 622.7458307 | J129: 1.569190535 | K129: 1.235725225 | L129: 0.6279366644 | M129: 1.000063997 | N129: 0.01131316798 | O129: 1 | P129: 6.9183e-06 | Q129: 1 | R129: 6.9183e-06 | S129: 1.000486697 | T129: 0.05801588661 | U129: 18.86150392 | V129: -124.7636132 | W129: 55.23638684 | Y129: 1000000000 | Z129: 47862874.89 | AB129: 7.029375574 | AC129: -54.57807099 | AG129: 11.83212835 | AH129: -70.18554217 | AJ129: 0 | AK129: 0
A130: 6998.9 | B130: 6.9989 | C130: 2.601814779 | D130: 1.176295817 | E130: 1.000013924 | F130: 0.005276997295 | G130: 1 | H130: 0 | I130: 630.0009635 | J130: 1.569209027 | K130: 1.240712751 | L130: 0.6334530795 | M130: 1.000065497 | N130: 0.01144495789 | O130: 1 | P130: 6.9989e-06 | Q130: 1 | R130: 6.9989e-06 | S130: 1.000498117 | T130: 0.05869188878 | U130: 18.71017512 | V130: -124.7278478 | W130: 55.27215217 | Y130: 1000000000 | Z130: 48984601.21 | AB130: 6.963741516 | AC130: -54.27061423 | AG130: 11.74643361 | AH130: -70.4572336 | AJ130: 0 | AK130: 0
A131: 7079.5 | B131: 7.0795 | C131: 2.627372858 | D131: 1.180342276 | E131: 1.000014246 | F131: 0.005337766551 | G131: 1 | H131: 0 | I131: 637.2560965 | J131: 1.569227098 | K131: 1.24573773 | L131: 0.6389251565 | M131: 1.000067014 | N131: 0.01157674741 | O131: 1 | P131: 7.0795e-06 | Q131: 1 | R131: 7.0795e-06 | S131: 1.000509671 | T131: 0.05936789447 | U131: 18.56080953 | V131: -124.6900028 | W131: 55.3099972 | Y131: 1000000000 | Z131: 50119320.25 | AB131: 6.899380084 | AC131: -53.96567371 | AG131: 11.66142945 | AH131: -70.7243291 | AJ131: 0 | AK131: 0
A132: 7161.95 | B132: 7.16195 | C132: 2.653561213 | D132: 1.184400893 | E132: 1.00001458 | F132: 0.005399930595 | G132: 1 | H132: 0 | I132: 644.6777557 | J132: 1.569245164 | K132: 1.250916328 | L132: 0.6444771745 | M132: 1.000068584 | N132: 0.01171156146 | O132: 1 | P132: 7.16195e-06 | Q132: 1 | R132: 7.16195e-06 | S132: 1.000521627 | T132: 0.0600594201 | U132: 18.4100061 | V132: -124.6492563 | W132: 55.35074366 | Y132: 1000000000 | Z132: 51293527.8 | AB132: 6.834825583 | AC132: -53.65632585 | AG132: 11.57518052 | AH132: -70.99293049 | AJ132: 0 | AK132: 0
A133: 7244.4 | B133: 7.2444 | C133: 2.679792424 | D133: 1.188380119 | E133: 1.000014917 | F133: 0.005462094596 | G133: 1 | H133: 0 | I133: 652.0994152 | J133: 1.569262818 | K133: 1.256133167 | L133: 0.6499832449 | M133: 1.000070172 | N133: 0.01184637508 | O133: 1 | P133: 7.2444e-06 | Q133: 1 | R133: 7.2444e-06 | S133: 1.000533723 | T133: 0.0607509495 | U133: 18.26117527 | V133: -124.6065703 | W133: 55.39342968 | Y133: 1000000000 | Z133: 52481331.36 | AB133: 6.771537712 | AC133: -53.34958701 | AG133: 11.48963756 | AH133: -71.25698332 | AJ133: 0 | AK133: 0
A134: 7328.75 | B134: 7.32875 | C134: 2.706671163 | D134: 1.192371164 | E134: 1.000015267 | F134: 0.005525691079 | G134: 1 | H134: 0 | I134: 659.6921015 | J134: 1.569280468 | K134: 1.261509302 | L134: 0.6555688993 | M134: 1.000071816 | N134: 0.01198429494 | O134: 1 | P134: 7.32875e-06 | Q134: 1 | R134: 7.32875e-06 | S134: 1.000546241 | T134: 0.06145841863 | U134: 18.11091455 | V134: -124.5610106 | W134: 55.43898938 | Y134: 1000000000 | Z134: 53710576.56 | AB134: 6.708069453 | AC134: -53.03846607 | AG134: 11.4028451 | AH134: -71.52254454 | AJ134: 0 | AK134: 0
A135: 7413.1 | B135: 7.4131 | C135: 2.733592167 | D135: 1.196283661 | E135: 1.00001562 | F135: 0.005589287516 | G135: 1 | H135: 0 | I135: 667.2847881 | J135: 1.569297716 | K135: 1.266924461 | L135: 0.6611069762 | M135: 1.000073479 | N135: 0.01212221434 | O135: 1 | P135: 7.4131e-06 | Q135: 1 | R135: 7.4131e-06 | S135: 1.000558905 | T135: 0.06216589179 | U135: 17.96263522 | V135: -124.5136536 | W135: 55.48634638 | Y135: 1000000000 | Z135: 54954051.61 | AB135: 6.64586149 | AC135: -52.73004809 | AG135: 11.31677372 | AH135: -71.78360553 | AJ135: 0 | AK135: 0
A136: 7499.45 | B136: 7.49945 | C136: 2.761193976 | D136: 1.200209838 | E136: 1.000015986 | F136: 0.005654391824 | G136: 1 | H136: 0 | I136: 675.057503 | J136: 1.569314971 | K136: 1.27250792 | L136: 0.6667273638 | M136: 1.0000752 | N136: 0.01226340343 | O136: 1 | P136: 7.49945e-06 | Q136: 1 | R136: 7.49945e-06 | S136: 1.00057202 | T136: 0.06289014388 | U136: 17.81285024 | V136: -124.4634271 | W136: 55.53657292 | Y136: 1000000000 | Z136: 56241750.3 | AB136: 6.583451106 | AC136: -52.41710179 | AG136: 11.22939913 | AH136: -72.04632528 | AJ136: 0 | AK136: 0
A137: 7585.8 | B137: 7.5858 | C137: 2.788837507 | D137: 1.204058239 | E137: 1.000016357 | F137: 0.005719496085 | G137: 1 | H137: 0 | I137: 682.8302181 | J137: 1.569331833 | K137: 1.278131223 | L137: 0.6722984708 | M137: 1.000076942 | N137: 0.01240459203 | O137: 1 | P137: 7.5858e-06 | Q137: 1 | R137: 7.5858e-06 | S137: 1.000585289 | T137: 0.06361440029 | U137: 17.66505702 | V137: -124.4115456 | W137: 55.58845441 | Y137: 1000000000 | Z137: 57544361.64 | AB137: 6.522295716 | AC137: -52.10695653 | AG137: 11.1427613 | AH137: -72.30458906 | AJ137: 0 | AK137: 0
A138: 7674.15 | B138: 7.67415 | C138: 2.817163204 | D138: 1.207917547 | E138: 1.00001674 | F138: 0.005786108211 | G138: 1 | H138: 0 | I138: 690.7829615 | J138: 1.569348694 | K138: 1.283925465 | L138: 0.6779479246 | M138: 1.000078744 | N138: 0.01254905027 | O138: 1 | P138: 7.67415e-06 | Q138: 1 | R138: 7.67415e-06 | S138: 1.000599022 | T138: 0.06435543612 | U138: 17.51585921 | V138: -124.3568623 | W138: 55.6431377 | Y138: 1000000000 | Z138: 58892578.22 | AB138: 6.460989734 | AC138: -51.79250954 | AG138: 11.05486948 | AH138: -72.56435277 | AJ138: 0 | AK138: 0
A139: 7762.5 | B139: 7.7625 | C139: 2.845530025 | D139: 1.211699965 | E139: 1.000017127 | F139: 0.005852720286 | G139: 1 | H139: 0 | I139: 698.7357051 | J139: 1.56936517 | K139: 1.289760317 | L139: 0.6835464397 | M139: 1.000080568 | N139: 0.01269350799 | O139: 1 | P139: 7.7625e-06 | Q139: 1 | R139: 7.7625e-06 | S139: 1.000612916 | T139: 0.06509647658 | U139: 17.36866041 | V139: -124.3006703 | W139: 55.69932968 | Y139: 1000000000 | Z139: 60256406.25 | AB139: 6.400931467 | AC139: -51.4809591 | AG139: 10.96772894 | AH139: -72.81971122 | AJ139: 0 | AK139: 0
A140: 7852.9 | B140: 7.8529 | C140: 2.874596343 | D140: 1.215492822 | E140: 1.000017529 | F140: 0.005920877918 | G140: 1 | H140: 0 | I140: 706.8729778 | J140: 1.569381645 | K140: 1.295772016 | L140: 0.689222487 | M140: 1.000082455 | N140: 0.01284131703 | O140: 1 | P140: 7.8529e-06 | Q140: 1 | R140: 7.8529e-06 | S140: 1.000627297 | T140: 0.06585471637 | U140: 17.22007158 | V140: -124.241723 | W140: 55.75827696 | Y140: 1000000000 | Z140: 61668038.41 | AB140: 6.340737924 | AC140: -51.16515832 | AG140: 10.87933366 | AH140: -73.07656472 | AJ140: 0 | AK140: 0
A141: 7943.3 | B141: 7.9433 | C141: =SQRT(1+(A141/p_dom)^2) -> 2.903703186 | D141: =ATAN(A141/p_dom) -> 1.219209692 | E141: =SQRT(1+(A141/z_ESR)^2) -> 1.000017935 | F141: =ATAN(A141/z_ESR) -> 0.005989035495 | G141: =IF(VIN_nom>Vout, 1, SQRT(1+(A141/z_RHP)^2)) -> 1 | H141: =IF(VIN_nom>Vout, 0, -ATAN(A141/z_RHP)) -> 0 | I141: =SQRT(1+(A141/EA_p1)^2) -> 715.0102507 | J141: =ATAN(A141/EA_p1) -> 1.569397745 | K141: =SQRT(1+(A141/EA_z1)^2) -> 1.301825076 | L141: =ATAN(A141/EA_z1) -> 0.6948459306 | M141: =SQRT(1+(A141/EA_hf_p)^2) -> 1.000084365 | N141: =ATAN(A141/EA_hf_p) -> 0.01298912552 | O141: =SQRT(1+(A141/Zero3)^2) -> 1 | P141: =ATAN(A141/Zero3) -> 7.9433e-06 | Q141: =SQRT(1+(A141/pole5)^2) -> 1 | R141: =ATAN(A141/pole5) -> 7.9433e-06 | S141: =SQRT((1-(Z141/pterm2))^2+(A141/pterm1)^2) -> 1.000641846 | T141: =IF((ATAN((A141/pterm1)/(1-A141^2/pterm2))>0),ATAN((A141/pterm1)/(1-A141^2/pterm2)),PI()+ATAN((A141/pterm1)/(1-A141^2/pterm2))) -> 0.0666129611 | U141: =20*LOG10(((E141*K141*G141*O141)/(C141*I141*S141*M141*Q141))*Adc) -> 17.07348815 | V141: =((F141+L141+H141+P141)-(D141+J141+T141+N141+R141))*radconv -> -124.1814148 | W141: =IF(V141>0,V141,V141+180) -> 55.81858522 | Y141: =IF(U141<0,A141,1000000000) -> 1000000000 | Z141: =A141^2 -> 63096014.89 | AB141: =20*LOG10((K141/(I141*M141))*Aea_stability*Afb*0.8) -> 6.281784302 | AC141: =(L141-(J141+N141))*radconv -> -50.85235 | AG141: =20*LOG10((E141*G141/(C141*S141))*Am_stability) -> 10.79170385 | AH141: =(F141+H141-(D141+T141))*radconv -> -73.32906477 | AJ141: =SUM((U142<0)*(U141>0))*A141 -> 0 | AK141: 0
A142: 8035.8 | B142: =A142/1000 -> 8.0358 | C142: 2.933526873 | D142: 1.222936504 | E142: 1.000018355 | F142: 0.006058776321 | G142: 1 | H142: 0 | I142: 723.3365533 | J142: 1.569413844 | K142: 1.308060963 | L142: 0.7005459498 | M142: 1.000086341 | N142: 0.01314036702 | O142: 1 | P142: 8.0358e-06 | Q142: 1 | R142: 8.0358e-06 | S142: 1.000656907 | T142: 0.06738882511 | U142: 16.92553106 | V142: -124.1184041 | W142: 55.88159588 | Y142: 1000000000 | Z142: 64574081.64 | AB142: 6.222711294 | AC142: -50.53535087 | AG142: 10.70281977 | AH142: -73.58305326 | AJ142: 0 | AK142: 0
A143: 8128.3 | B143: 8.1283 | C143: 2.963390483 | D143: 1.226588252 | E143: 1.00001878 | F143: 0.006128517088 | G143: 1 | H143: 0 | I143: 731.6628561 | J143: 1.569429577 | K143: 1.314338944 | L143: 0.7061916983 | M143: 1.00008834 | N143: 0.01329160791 | O143: 1 | P143: 8.1283e-06 | Q143: 1 | R143: 8.1283e-06 | S143: 1.000672143 | T143: 0.06816469442 | U143: 16.77958484 | V143: -124.0541814 | W143: 55.94581863 | Y143: 1000000000 | Z143: 66069260.89 | AB143: 6.164869849 | AC143: -50.22144018 | AG143: 10.61471499 | AH143: -73.83274119 | AJ143: 0 | AK143: 0
A144: 8222.95 | B144: 8.22295 | C144: 2.993988301 | D144: 1.23024942 | E144: 1.00001922 | F144: 0.006199878795 | G144: 1 | H144: 0 | I144: 740.1826893 | J144: 1.569445309 | K144: 1.320805795 | L144: 0.7119129295 | M144: 1.000090409 | N144: 0.01344636351 | O144: 1 | P144: 8.22295e-06 | Q144: 1 | R144: 8.22295e-06 | S144: 1.000687915 | T144: 0.06895860299 | U144: 16.63228291 | V144: -123.9873155 | W144: 56.01268446 | Y144: 1000000000 | Z144: 67616906.7 | AB144: 6.106925341 | AC144: -49.90340599 | AG144: 10.52535757 | AH144: -74.08390954 | AJ144: 0 | AK144: 0
A145: 8270.275 | B145: 8.270275 | C145: 3.00930203 | D145: 1.232052073 | E145: 1.000019441 | F145: 0.006235559625 | G145: 1 | H145: 0 | I145: 744.442606 | J145: 1.569453039 | K145: 1.324055313 | L145: 0.7147525413 | M145: 1.000091453 | N145: 0.01352374107 | O145: 1 | P145: 8.270275e-06 | Q145: 1 | R145: 8.270275e-06 | S145: 1.00069587 | T145: 0.06935555939 | U145: 16.55939047 | V145: -123.9534781 | W145: 56.04652192 | Y145: 1000000000 | Z145: 68397448.58 | AB145: 6.0784136 | AC145: -49.74558458 | AG145: 10.48097687 | AH145: -74.20789349 | AJ145: 0 | AK145: 0
A146: 8317.6 | B146: 8.3176 | C146: 3.024625439 | D146: 1.233836466 | E146: 1.000019665 | F146: 0.006271240439 | G146: 1 | H146: 0 | I146: 748.7025228 | J146: 1.569460682 | K146: 1.327315456 | L146: 0.7175782265 | M146: 1.000092502 | N146: 0.01360111847 | O146: 1 | P146: 8.3176e-06 | Q146: 1 | R146: 8.3176e-06 | S146: 1.000703871 | T146: 0.06975251723 | U146: 16.48699634 | V146: -123.9193874 | W146: 56.08061261 | Y146: 1000000000 | Z146: 69182469.76 | AB146: 6.050203433 | AC146: -49.58855605 | AG146: 10.43679291 | AH146: -74.33083133 | AJ146: 0 | AK146: 0
A147: 8366.05 | B147: 8.36605 | C147: 3.040322988 | D147: 1.235644638 | E147: 1.000019894 | F147: 0.006307769434 | G147: 1 | H147: 0 | I147: 753.0637054 | J147: 1.569468418 | K147: 1.330664023 | L147: 0.7204567161 | M147: 1.000093583 | N147: 0.01368033509 | O147: 1 | P147: 8.36605e-06 | Q147: 1 | R147: 8.36605e-06 | S147: 1.000712109 | T147: 0.07015891295 | U147: 16.41339185 | V147: -123.8842365 | W147: 56.11576353 | Y147: 1000000000 | Z147: 69990792.6 | AB147: 6.021630905 | AC147: -49.42861271 | AG147: 10.39176094 | AH147: -74.45562376 | AJ147: 0 | AK147: 0
A148: 8414.5 | B148: 8.4145 | C148: 3.056030374 | D148: 1.237434228 | E148: 1.000020125 | F148: 0.006344298411 | G148: 1 | H148: 0 | I148: 757.4248881 | J148: 1.569476063 | K148: 1.334023559 | L148: 0.7233207312 | M148: 1.00009467 | N148: 0.01375955155 | O148: 1 | P148: 8.4145e-06 | Q148: 1 | R148: 8.4145e-06 | S148: 1.000720396 | T148: 0.07056531017 | U148: 16.34029822 | V148: -123.8488452 | W148: 56.15115478 | Y148: 1000000000 | Z148: 70803810.25 | AB148: 5.993366063 | AC148: -49.26949358 | AG148: 10.34693216 | AH148: -74.57935163 | AJ148: 0 | AK148: 0
A149: 8462.95 | B149: 8.46295 | C149: 3.071747448 | D149: 1.239205511 | E149: 1.000020358 | F149: 0.006380827372 | G149: 1 | H149: 0 | I149: 761.7860708 | J149: 1.569483622 | K149: 1.337393983 | L149: 0.7261703342 | M149: 1.000095763 | N149: 0.01383876783 | O149: 1 | P149: 8.46295e-06 | Q149: 1 | R149: 8.46295e-06 | S149: 1.000728731 | T149: 0.07097170892 | U149: 16.2677098 | V149: -123.8132258 | W149: 56.18677418 | Y149: 1000000000 | Z149: 71621522.7 | AB149: 5.965404762 | AC149: -49.11119518 | AG149: 10.30230504 | AH149: -74.70203063 | AJ149: 0 | AK149: 0
A150: 8511.4 | B150: 8.5114 | C150: 3.087474061 | D150: 1.240958754 | E150: 1.000020592 | F150: 0.006417356315 | G150: 1 | H150: 0 | I150: 766.1472536 | J150: 1.569491094 | K150: 1.340775213 | L150: 0.7290055876 | M150: 1.000096863 | N150: 0.01391798394 | O150: 1 | P150: 8.5114e-06 | Q150: 1 | R150: 8.5114e-06 | S150: 1.000737115 | T150: 0.0713781092 | U150: 16.195621 | V150: -123.7773902 | W150: 56.22260983 | Y150: 1000000000 | Z150: 72443929.96 | AB150: 5.937742924 | AC150: -48.95371401 | AG150: 10.25787807 | AH150: -74.82367615 | AJ150: 0 | AK150: 0
A151: 8560.95 | B151: 8.56095 | C151: 3.103567444 | D151: 1.24273342 | E151: 1.000020832 | F151: 0.006454714588 | G151: 1 | H151: 0 | I151: 770.6074519 | J151: 1.569498649 | K151: 1.3442443 | L151: 0.7318904356 | M151: 1.000097994 | N151: 0.01399899837 | O151: 1 | P151: 8.56095e-06 | Q151: 1 | R151: 8.56095e-06 | S151: 1.000745738 | T151: 0.0717937379 | U151: 16.12240653 | V151: -123.7405293 | W151: 56.2594707 | Y151: 1000000000 | Z151: 73289864.9 | AB151: 5.909758619 | AC151: -48.79349903 | AG151: 10.21264792 | AH151: -74.94703028 | AJ151: 0 | AK151: 0
A152: 8610.5 | B152: 8.6105 | C152: 3.119670501 | D152: 1.244489769 | E152: 1.000021074 | F152: 0.006492072842 | G152: 1 | H152: 0 | I152: 775.0676503 | J152: 1.569506116 | K152: 1.347724517 | L152: 0.7347604084 | M152: 1.000099132 | N152: 0.01408001263 | O152: 1 | P152: 8.6105e-06 | Q152: 1 | R152: 8.6105e-06 | S152: 1.000754412 | T152: 0.07220936822 | U152: 16.04970307 | V152: -123.7034664 | W152: 56.29653356 | Y152: 1000000000 | Z152: 74140710.25 | AB152: 5.882079117 | AC152: -48.63413134 | AG152: 10.16762396 | AH152: -75.0693351 | AJ152: 0 | AK152: 0
A153: 8660.05 | B153: 8.66005 | C153: 3.135783082 | D153: 1.246228075 | E153: 1.000021317 | F153: 0.006529431078 | G153: 1 | H153: 0 | I153: 779.5278487 | J153: 1.569513499 | K153: 1.351215777 | L153: 0.7376155738 | M153: 1.000100276 | N153: 0.01416102669 | O153: 1 | P153: 8.66005e-06 | Q153: 1 | R153: 8.66005e-06 | S153: 1.000763136 | T153: 0.07262500016 | U153: 15.97750489 | V153: -123.6662133 | W153: 56.33378668 | Y153: 1000000000 | Z153: 74996466 | AB153: 5.85470027 | AC153: -48.47560714 | AG153: 10.12280462 | AH153: -75.19060617 | AJ153: 0 | AK153: 0
A154: 8709.6 | B154: 8.7096 | C154: 3.151905042 | D154: 1.247948603 | E154: 1.000021562 | F154: 0.006566789296 | G154: 1 | H154: 0 | I154: 783.9880471 | J154: 1.569520797 | K154: 1.354717996 | L154: 0.7404559998 | M154: 1.000101426 | N154: 0.01424204057 | O154: 1 | P154: 8.7096e-06 | Q154: 1 | R154: 8.7096e-06 | S154: 1.000771911 | T154: 0.07304063373 | U154: 15.90580634 | V154: -123.6287814 | W154: 56.37121862 | Y154: 1000000000 | Z154: 75857132.16 | AB154: 5.827617997 | AC154: -48.31792263 | AG154: 10.07818834 | AH154: -75.31085876 | AJ154: 0 | AK154: =IF(AJ154>0,W154,0) -> 0
A155: 8760.325 | B155: 8.760325 | C155: 3.168418873 | D155: 1.249691789 | E155: 1.000021814 | F155: 0.006605033386 | G155: 1 | H155: 0 | I155: 788.5540122 | J155: 1.569528183 | K155: 1.358314527 | L155: 0.7433485857 | M155: 1.000102611 | N155: 0.01432497538 | O155: 1 | P155: 8.760325e-06 | Q155: 1 | R155: 8.760325e-06 | S155: 1.000780946 | T155: 0.0734661251 | U155: 15.83291931 | V155: -123.5902882 | W155: 56.40971179 | Y155: 1000000000 | Z155: 76743294.11 | AB155: 5.800196528 | AC155: -48.15736465 | AG155: 10.03272278 | AH155: -75.43292356 | AJ155: 0 | AK155: 0
A156: 8811.05 | B156: 8.81105 | C156: 3.184942233 | D156: 1.251416892 | E156: 1.000022067 | F156: 0.006643277457 | G156: 1 | H156: 0 | I156: 793.1199773 | J156: 1.569535483 | K156: 1.361922363 | L156: 0.7462258703 | M156: 1.000103803 | N156: 0.01440790999 | O156: 1 | P156: 8.81105e-06 | Q156: 1 | R156: 8.81105e-06 | S156: 1.000790034 | T156: 0.0738916182 | U156: 15.76054417 | V156: -123.5516309 | W156: 56.44836906 | Y156: 1000000000 | Z156: 77634602.1 | AB156: 5.773077425 | AC156: -47.99767849 | AG156: 9.98746674 | AH156: -75.55395245 | AJ156: 0 | AK156: 0
A157: 8861.775 | B157: 8.861775 | C157: 3.201474973 | D157: 1.253124184 | E157: 1.000022322 | F157: 0.006681521508 | G157: 1 | H157: 0 | I157: 797.6859424 | J157: 1.5695427 | K157: 1.365541414 | L157: 0.7490879272 | M157: 1.000105001 | N157: 0.01449084439 | O157: 1 | P157: 8.861775e-06 | Q157: 1 | R157: 8.861775e-06 | S157: 1.000799175 | T157: 0.07431711304 | U157: 15.68867511 | V157: -123.5128209 | W157: 56.48717912 | Y157: 1000000000 | Z157: 78531056.15 | AB157: 5.746256525 | AC157: -47.83886 | AG157: 9.94241859 | AH157: -75.67396088 | AJ157: 0 | AK157: 0
A158: 8912.5 | B158: 8.9125 | C158: 3.218016949 | D158: 1.254813928 | E158: 1.000022578 | F158: 0.00671976554 | G158: 1 | H158: 0 | I158: 802.2519076 | J158: 1.569549835 | K158: 1.369171592 | L158: 0.7519348307 | M158: 1.000106207 | N158: 0.0145737786 | O158: 1 | P158: 8.9125e-06 | Q158: 1 | R158: 8.9125e-06 | S158: 1.000808369 | T158: 0.07474260963 | U158: 15.61730644 | V158: -123.473869 | W158: 56.52613097 | Y158: 1000000000 | Z158: 79432656.25 | AB158: 5.719729732 | AC158: -47.68090503 | AG158: 9.897576703 | AH158: -75.792964 | AJ158: 0 | AK158: 0
A159: 8964.4 | B159: 8.9644 | C159: 3.234951517 | D159: 1.256524922 | E159: 1.000022842 | F159: 0.006758895441 | G159: 1 | H159: 0 | I159: 806.9236393 | J159: 1.569557052 | K159: 1.372897284 | L159: 0.7548320735 | M159: 1.000107447 | N159: 0.0146586337 | O159: 1 | P159: 8.9644e-06 | Q159: 1 | R159: 8.9644e-06 | S159: 1.000817831 | T159: 0.07517796429 | U159: 15.54479657 | V159: -123.4338793 | W159: 56.56612068 | Y159: 1000000000 | Z159: 80360467.36 | AB159: 5.692888677 | AC159: -47.52018057 | AG159: 9.851907898 | AH159: -75.91369875 | AJ159: 0 | AK159: 0
A160: 9016.3 | B160: 9.0163 | C160: 3.251895457 | D160: 1.258218091 | E160: 1.000023107 | F160: 0.006798025321 | G160: 1 | H160: 0 | I160: 811.5953712 | J160: 1.569564185 | K160: 1.376634437 | L160: 0.7577136101 | M160: 1.000108695 | N160: 0.01474348859 | O160: 1 | P160: 9.0163e-06 | Q160: 1 | R160: 9.0163e-06 | S160: 1.000827348 | T160: 0.07561332081 | U160: 15.47279868 | V160: -123.3937635 | W160: 56.60623647 | Y160: 1000000000 | Z160: 81293665.69 | AB160: 5.666347057 | AC160: -47.36035123 | AG160: 9.806451625 | AH160: -76.03341229 | AJ160: 0 | AK160: 0
A161: 9068.2 | B161: 9.0682 | C161: 3.268848623 | D161: 1.259893702 | E161: 1.000023374 | F161: 0.00683715518 | G161: 1 | H161: 0 | I161: 816.267103 | J161: 1.569571237 | K161: 1.380382959 | L161: 0.7605795203 | M161: 1.00010995 | N161: 0.01482834327 | O161: 1 | P161: 9.0682e-06 | Q161: 1 | R161: 9.0682e-06 | S161: 1.00083692 | T161: 0.07604867918 | U161: 15.40130689 | V161: -123.3535325 | W161: 56.64646751 | Y161: 1000000000 | Z161: 82232251.24 | AB161: 5.640100703 | AC161: -47.20141253 | AG161: 9.761206188 | AH161: -76.15211996 | AJ161: 0 | AK161: 0
A162: 9120.1 | B162: 9.1201 | C162: 3.285810871 | D162: 1.261552017 | E162: 1.000023642 | F162: 0.006876285019 | G162: 1 | H162: 0 | I162: 820.9388349 | J162: 1.569578209 | K162: 1.384142758 | L162: 0.7634298843 | M162: 1.000111212 | N162: 0.01491319773 | O162: 1 | P162: 9.1201e-06 | Q162: 1 | R162: 9.1201e-06 | S162: 1.000846548 | T162: 0.07648403943 | U162: 15.33031542 | V162: -123.3131967 | W162: 56.68680326 | Y162: 1000000000 | Z162: 83176224.01 | AB162: 5.614145516 | AC162: -47.04335995 | AG162: 9.716169905 | AH162: -76.26983678 | AJ162: 0 | AK162: 0
A163: 9173.2 | B163: 9.1732 | C163: 3.303174565 | D163: 1.263231044 | E163: 1.000023918 | F163: 0.006916319571 | G163: 1 | H163: 0 | I163: 825.7185838 | J163: 1.56958526 | K163: 1.388001062 | L163: 0.7663301468 | M163: 1.000112511 | N163: 0.01500001392 | O163: 1 | P163: 9.1732e-06 | Q163: 1 | R163: 9.1732e-06 | S163: 1.000856456 | T163: 0.07692946776 | U163: 15.25819439 | V163: -123.2718307 | W163: 56.72816934 | Y163: 1000000000 | Z163: 84147598.24 | AB163: 5.587887346 | AC163: -46.88256536 | AG163: 9.670307047 | AH163: -76.3892653 | AJ163: 0 | AK163: 0
A164: 9226.3 | B164: 9.2263 | C164: 3.320547474 | D164: 1.264892507 | E164: 1.000024196 | F164: 0.006956354102 | G164: 1 | H164: 0 | I164: 830.4983327 | J164: 1.56959223 | K164: 1.391870977 | L164: 0.7692143058 | M164: 1.000113817 | N164: 0.01508682989 | O164: 1 | P164: 9.2263e-06 | Q164: 1 | R164: 9.2263e-06 | S164: 1.000866421 | T164: 0.07737489807 | U164: 15.18658511 | V164: -123.2303763 | W164: 56.76962368 | Y164: 1000000000 | Z164: 85124611.69 | AB164: 5.561925499 | AC164: -46.72268876 | AG164: 9.624659613 | AH164: -76.50768756 | AJ164: 0 | AK164: 0
A165: 9279.4 | B165: 9.2794 | C165: 3.337929454 | D165: 1.26653667 | E165: 1.000024475 | F165: 0.00699638861 | G165: 1 | H165: 0 | I165: 835.2780816 | J165: 1.56959912 | K165: 1.395752406 | L165: 0.7720824475 | M165: 1.000115131 | N165: 0.01517364563 | O165: 1 | P165: 9.2794e-06 | Q165: 1 | R165: 9.2794e-06 | S165: 1.000876445 | T165: 0.07782033038 | U165: 15.11548165 | V165: -123.1888441 | W165: 56.81115595 | Y165: 1000000000 | Z165: 86107264.36 | AB165: 5.536255801 | AC165: -46.56372531 | AG165: 9.57922585 | AH165: -76.62511875 | AJ165: 0 | AK165: 0
A166: 9332.5 | B166: 9.3325 | C166: 3.355320363 | D166: 1.268163794 | E166: 1.000024756 | F166: 0.007036423096 | G166: 1 | H166: 0 | I166: 840.0578306 | J166: 1.569605932 | K166: 1.399645254 | L166: 0.7749346582 | M166: 1.000116452 | N166: 0.01526046114 | O166: 1 | P166: 9.3325e-06 | Q166: 1 | R166: 9.3325e-06 | S166: 1.000886527 | T166: 0.07826576468 | U166: 15.04487817 | V166: -123.1472439 | W166: 56.8527561 | Y166: 1000000000 | Z166: 87095556.25 | AB166: 5.510874151 | AC166: -46.40567012 | AG166: 9.534004021 | AH166: -76.74157378 | AJ166: 0 | AK166: 0
A167: 9386.85 | B167: 9.38685 | C167: 3.373129766 | D167: 1.269811842 | E167: 1.000025045 | F167: 0.00707739999 | G167: 1 | H167: 0 | I167: 844.9500973 | J167: 1.569612825 | K167: 1.403641465 | L167: 0.7778376034 | M167: 1.000117812 | N167: 0.01534932009 | O167: 1 | P167: 9.38685e-06 | Q167: 1 | R167: 9.38685e-06 | S167: 1.000896906 | T167: 0.07872168681 | U167: 14.97312442 | V167: -123.1046043 | W167: 56.89539568 | Y167: 1000000000 | Z167: 88112952.92 | AB167: 5.485189093 | AC167: -46.24482976 | AG167: 9.48793533 | AH167: -76.85977456 | AJ167: 0 | AK167: 0
A168: 9441.2 | B168: 9.4412 | C168: 3.390948235 | D168: 1.271442574 | E168: 1.000025336 | F168: 0.00711837686 | G168: 1 | H168: 0 | I168: 849.842364 | J168: 1.569619638 | K168: 1.407649439 | L168: 0.7807240419 | M168: 1.000119181 | N168: 0.0154381788 | O168: 1 | P168: 9.4412e-06 | Q168: 1 | R168: 9.4412e-06 | S168: 1.000907346 | T168: 0.07917761107 | U168: 14.90188237 | V168: -123.061914 | W168: 56.93808604 | Y168: 1000000000 | Z168: 89136257.44 | AB168: 5.459797328 | AC168: -46.08493061 | AG168: 9.442085038 | AH168: -76.97698335 | AJ168: 0 | AK168: 0
A169: 9495.55 | B169: 9.49555 | C169: 3.408775627 | D169: 1.273056253 | E169: 1.000025629 | F169: 0.007159353706 | G169: 1 | H169: 0 | I169: 854.7346307 | J169: 1.569626373 | K169: 1.411669073 | L169: 0.7835940663 | M169: 1.000120557 | N169: 0.01552703727 | O169: 1 | P169: 9.49555e-06 | Q169: 1 | R169: 9.49555e-06 | S169: 1.000917847 | T169: 0.07963353745 | U169: 14.83114601 | V169: -123.0191826 | W169: 56.98081735 | Y169: 1000000000 | Z169: 90165469.8 | AB169: 5.434694678 | AC169: -45.92596743 | AG169: 9.396451334 | AH169: -77.09321522 | AJ169: 0 | AK169: 0
A170: 9549.9 | B170: 9.5499 | C170: 3.426611803 | D170: 1.274653137 | E170: 1.000025923 | F170: 0.007200330528 | G170: 1 | H170: 0 | I170: 859.6268975 | J170: 1.569633031 | K170: 1.415700269 | L170: 0.7864477693 | M170: 1.00012194 | N170: 0.01561589549 | O170: 1 | P170: 9.5499e-06 | Q170: 1 | R170: 9.5499e-06 | S170: 1.000928409 | T170: 0.08008946598 | U170: 14.76090946 | V170: -122.9764199 | W170: 57.02358008 | Y170: 1000000000 | Z170: 91200590.01 | AB170: 5.409877034 | AC170: -45.76793499 | AG170: 9.351032427 | AH170: -77.20848493 | AJ170: 0 | AK170: 0
A171: 9605.525 | B171: 9.605525 | C171: 3.444875352 | D171: 1.276270356 | E171: 1.000026226 | F171: 0.007242268603 | G171: 1 | H171: 0 | I171: 864.6339323 | J171: 1.569639768 | K171: 1.419837903 | L171: 0.7893516141 | M171: 1.000123365 | N171: 0.01570683799 | O171: 1 | P171: 9.605525e-06 | Q171: 1 | R171: 9.605525e-06 | S171: 1.000939281 | T171: 0.0805560924 | U171: 14.68953669 | V171: -122.9326311 | W171: 57.06736886 | Y171: 1000000000 | Z171: 92266110.53 | AB171: 5.384768094 | AC171: -45.60715353 | AG171: 9.304768594 | AH171: -77.32547761 | AJ171: 0 | AK171: 0
A172: 9661.15 | B172: 9.66115 | C172: 3.463147816 | D172: 1.277870514 | E172: 1.00002653 | F172: 0.007284206652 | G172: 1 | H172: 0 | I172: 869.6409671 | J172: 1.569646427 | K172: 1.423987439 | L172: 0.7922385594 | M172: 1.000124798 | N172: 0.01579778022 | O172: 1 | P172: 9.66115e-06 | Q172: 1 | R172: 9.66115e-06 | S172: 1.000950217 | T172: 0.08102272109 | U172: 14.61867522 | V172: -122.8888287 | W172: 57.11117126 | Y172: 1000000000 | Z172: 93337819.32 | AB172: 5.359949207 | AC172: -45.44733589 | AG172: 9.258726009 | AH172: -77.44149286 | AJ172: 0 | AK172: 0
A173: 9716.775 | B173: 9.716775 | C173: 3.481429054 | D173: 1.27945387 | E173: 1.000026837 | F173: 0.007326144676 | G173: 1 | H173: 0 | I173: 874.648002 | J173: 1.569653009 | K173: 1.428148775 | L173: 0.7951087046 | M173: 1.000126239 | N173: 0.0158887222 | O173: 1 | P173: 9.716775e-06 | Q173: 1 | R173: 9.716775e-06 | S173: 1.000961217 | T173: 0.08148935206 | U173: 14.548319 | V173: -122.845022 | W173: 57.15497795 | Y173: 1000000000 | Z173: 94415716.4 | AB173: 5.335416193 | AC173: -45.28847644 | AG173: 9.212902805 | AH173: -77.55654561 | AJ173: 0 | AK173: 0
A174: 9772.4 | B174: 9.7724 | C174: 3.499718928 | D174: 1.281020681 | E174: 1.000027145 | F174: 0.007368082674 | G174: 1 | H174: 0 | I174: 879.6550369 | J174: 1.569659517 | K174: 1.432321807 | L174: 0.797962149 | M174: 1.000127688 | N174: 0.01597966391 | O174: 1 | P174: 9.7724e-06 | Q174: 1 | R174: 9.7724e-06 | S174: 1.000972281 | T174: 0.08195598532 | U174: 14.47846208 | V174: -122.8012201 | W174: 57.19877994 | Y174: 1000000000 | Z174: 95499801.76 | AB174: 5.311164944 | AC174: -45.13056957 | AG174: 9.167297134 | AH174: -77.6706505 | AJ174: 0 | AK174: 0
A175: 9829.3 | B175: 9.8293 | C175: 3.518436827 | D175: 1.282606547 | E175: 1.000027462 | F175: 0.007410981921 | G175: 1 | H175: 0 | I175: 884.7768399 | J175: 1.569666098 | K175: 1.436602485 | L175: 0.8008638222 | M175: 1.00012918 | N175: 0.01607268986 | O175: 1 | P175: 9.8293e-06 | Q175: 1 | R175: 9.8293e-06 | S175: 1.000983664 | T175: 0.08243331684 | U175: 14.40751442 | V175: -122.7564281 | W175: 57.24357194 | Y175: 1000000000 | Z175: 96615138.49 | AB175: 5.28664514 | AC175: -44.97002298 | AG175: 9.120869283 | AH175: -77.78640508 | AJ175: 0 | AK175: 0
A176: 9886.2 | B176: 9.8862 | C176: 3.537163481 | D176: 1.284175625 | E176: 1.000027781 | F176: 0.00745388114 | G176: 1 | H176: 0 | I176: 889.8986429 | J176: 1.569672603 | K176: 1.440895188 | L176: 0.8037482304 | M176: 1.000130679 | N176: 0.01616571552 | O176: 1 | P176: 9.8862e-06 | Q176: 1 | R176: 9.8862e-06 | S176: 1.000995114 | T176: 0.08291065079 | U176: 14.3370769 | V176: -122.7116592 | W176: 57.28834083 | Y176: 1000000000 | Z176: 97736950.44 | AB176: 5.262411694 | AC176: -44.81046125 | AG176: 9.074665201 | AH176: -77.90119792 | AJ176: 0 | AK176: 0
A177: 9943.1 | B177: 9.9431 | C177: 3.555898752 | D177: 1.285728173 | E177: 1.000028102 | F177: 0.007496780332 | G177: 1 | H177: 0 | I177: 895.0204459 | J177: 1.569679034 | K177: 1.445199807 | L177: 0.8066154795 | M177: 1.000132188 | N177: 0.01625874091 | O177: 1 | P177: 9.9431e-06 | Q177: 1 | R177: 9.9431e-06 | S177: 1.001006631 | T177: 0.08338798717 | U177: 14.2671434 | V177: -122.6669222 | W177: 57.33307785 | Y177: 1000000000 | Z177: 98865237.61 | AB177: 5.238460432 | AC177: -44.65187838 | AG177: 9.028682971 | AH177: -78.01504377 | AJ177: 0 | AK177: 0
A178: 10000 | B178: 10 | C178: 3.574642504 | D178: 1.287264443 | E178: 1.000028424 | F178: 0.007539679497 | G178: 1 | H178: 0 | I178: 900.1422489 | J178: 1.569685391 | K178: 1.449516237 | L178: 0.8094656756 | M178: 1.000133705 | N178: 0.01635176602 | O178: 1 | P178: 1e-05 | Q178: 1 | R178: 1e-05 | S178: 1.001018214 | T178: 0.08386532601 | U178: 14.19770795 | V178: -122.6222255 | W178: 57.37777452 | Y178: 1000000000 | Z178: 100000000 | AB178: 5.214787253 | AC178: -44.49426838 | AG178: 8.982920695 | AH178: -78.1279571 | AJ178: 0 | AK178: 0
A179: 10058.25 | B179: 10.05825 | C179: 3.593839614 | D179: 1.288820558 | E179: 1.000028756 | F179: 0.007583596451 | G179: 1 | H179: 0 | I179: 905.3855711 | J179: 1.569691825 | K179: 1.453947201 | L179: 0.8123659405 | M179: 1.000135267 | N179: 0.01644699793 | O179: 1 | P179: 1.005825e-05 | Q179: 1 | R179: 1.005825e-05 | S179: 1.001030142 | T179: 0.08435399267 | U179: 14.12713481 | V179: -122.5765187 | W179: 57.42348131 | Y179: 1000000000 | Z179: 101168393.1 | AB179: 5.19083626 | AC179: -44.33392045 | AG179: 8.936298554 | AH179: -78.24259824 | AJ179: 0 | AK179: 0
A180: 10116.5 | B180: 10.1165 | C180: 3.613045335 | D180: 1.290360134 | E180: 1.00002909 | F180: 0.007627513376 | G180: 1 | H180: 0 | I180: 910.6288933 | J180: 1.569698184 | K180: 1.458390322 | L180: 0.8152485577 | M180: 1.000136838 | N180: 0.01654222954 | O180: 1 | P180: 1.01165e-05 | Q180: 1 | R180: 1.01165e-05 | S180: 1.001042139 | T180: 0.08484266193 | U180: 14.0570712 | V180: -122.5308713 | W180: 57.46912874 | Y180: 1000000000 | Z180: 102343572.2 | AB180: 5.167168232 | AC180: -44.1745794 | AG180: 8.889902966 | AH180: -78.35629186 | AJ180: 0 | AK180: 0
A181: 10174.75 | B181: 10.17475 | C181: 3.632259528 | D181: 1.291883425 | E181: 1.000029426 | F181: 0.007671430271 | G181: 1 | H181: 0 | I181: 915.8722155 | J181: 1.569704471 | K181: 1.462845487 | L181: 0.8181136403 | M181: 1.000138419 | N181: 0.01663746085 | O181: 1 | P181: 1.017475e-05 | Q181: 1 | R181: 1.017475e-05 | S181: 1.001054207 | T181: 0.0853313338 | U181: 13.98751096 | V181: -122.4852914 | W181: 57.5147086 | Y181: 1000000000 | Z181: 103525537.6 | AB181: 5.143778995 | AC181: -44.01623882 | AG181: 8.843731961 | AH181: -78.46905258 | AJ181: 0 | AK181: 0
A182: 10233 | B182: 10.233 | C182: 3.651482061 | D182: 1.293390681 | E182: 1.000029764 | F182: 0.007715347137 | G182: 1 | H182: 0 | I182: 921.1155378 | J182: 1.569710686 | K182: 1.467312588 | L182: 0.8209613012 | M182: 1.000140008 | N182: 0.01673269186 | O182: 1 | P182: 1.0233e-05 | Q182: 1 | R182: 1.0233e-05 | S182: 1.001066345 | T182: 0.0858200083 | U182: 13.91844804 | V182: -122.4397871 | W182: 57.56021295 | Y182: 1000000000 | Z182: 104714289 | AB182: 5.12066445 | AC182: -43.85889231 | AG182: 8.797783587 | AH182: -78.58089474 | AJ182: 0 | AK182: 0
A183: 10292.5 | B183: 10.2925 | C183: 3.671125569 | D183: 1.294913982 | E183: 1.000030111 | F183: 0.007760206394 | G183: 1 | H183: 0 | I183: 926.4713777 | J183: 1.569716962 | K183: 1.471887758 | L183: 0.8238522013 | M183: 1.000141641 | N183: 0.01682996614 | O183: 1 | P183: 1.02925e-05 | Q183: 1 | R183: 1.02925e-05 | S183: 1.001078815 | T183: 0.08631917211 | U183: 13.84841033 | V183: -122.3933921 | W183: 57.60660787 | Y183: 1000000000 | Z183: 105935556.2 | AB183: 5.097333295 | AC183: -43.69918893 | AG183: 8.751077039 | AH183: -78.6942032 | AJ183: 0 | AK183: 0
A184: 10352 | B184: 10.352 | C184: 3.690777505 | D184: 1.296421065 | E184: 1.00003046 | F184: 0.00780506562 | G184: 1 | H184: 0 | I184: 931.8272177 | J184: 1.569723166 | K184: 1.476475152 | L184: 0.8267251613 | M184: 1.000143283 | N184: 0.01692724011 | O184: 1 | P184: 1.0352e-05 | Q184: 1 | R184: 1.0352e-05 | S184: 1.001091358 | T184: 0.08681833868 | U184: 13.77887906 | V184: -122.3470919 | W184: 57.65290814 | Y184: 1000000000 | Z184: 107163904 | AB184: 5.074280327 | AC184: -43.54050929 | AG184: 8.704598733 | AH184: -78.80658257 | AJ184: 0 | AK184: 0
A185: 10411.5 | B185: 10.4115 | C185: 3.710437735 | D185: 1.29791218 | E185: 1.000030811 | F185: 0.007849924814 | G185: 1 | H185: 0 | I185: 937.1830577 | J185: 1.569729299 | K185: 1.481074658 | L185: 0.8295803007 | M185: 1.000144935 | N185: 0.01702451375 | O185: 1 | P185: 1.04115e-05 | Q185: 1 | R185: 1.04115e-05 | S185: 1.001103975 | T185: 0.08731750805 | U185: 13.70984806 | V185: -122.3008938 | W185: 57.69910616 | Y185: 1000000000 | Z185: 108399332.2 | AB185: 5.051501405 | AC185: -43.38284661 | AG185: 8.658346656 | AH185: -78.91804723 | AJ185: 0 | AK185: 0
A186: 10471 | B186: 10.471 | C186: 3.730106127 | D186: 1.299387574 | E186: 1.000031165 | F186: 0.007894783977 | G186: 1 | H186: 0 | I186: 942.5388977 | J186: 1.569735362 | K186: 1.485686162 | L186: 0.8324177386 | M186: 1.000146596 | N186: 0.01712178707 | O186: 1 | P186: 1.0471e-05 | Q186: 1 | R186: 1.0471e-05 | S186: 1.001116664 | T186: 0.08781668021 | U186: 13.64131128 | V186: -122.2548054 | W186: 57.7451946 | Y186: 1000000000 | Z186: 109641841 | AB186: 5.02899246 | AC186: -43.22619414 | AG186: 8.612318819 | AH186: -79.02861126 | AJ186: 0 | AK186: 0
A187: 10532 | B187: 10.532 | C187: 3.750278702 | D187: 1.300884093 | E187: 1.000031529 | F187: 0.00794077401 | G187: 1 | H187: 0 | I187: 948.029759 | J187: 1.569741507 | K187: 1.490426263 | L187: 0.8353084566 | M187: 1.000148309 | N187: 0.01722151232 | O187: 1 | P187: 1.0532e-05 | Q187: 1 | R187: 1.0532e-05 | S187: 1.00112975 | T187: 0.08832843948 | U187: 13.5715535 | V187: -122.2076762 | W187: 57.79232377 | Y187: 1000000000 | Z187: 110923024 | AB187: 5.00619215 | AC187: -43.06663412 | AG187: 8.565361348 | AH187: -79.14104211 | AJ187: 0 | AK187: 0
A188: 10593 | B188: 10.593 | C188: 3.770459585 | D188: 1.302364595 | E188: 1.000031895 | F188: 0.00798676401 | G188: 1 | H188: 0 | I188: 953.5206203 | J188: 1.569747582 | K188: 1.495178738 | L188: 0.8381808219 | M188: 1.000150031 | N188: 0.01732123723 | O188: 1 | P188: 1.0593e-05 | Q188: 1 | R188: 1.0593e-05 | S188: 1.001142912 | T188: 0.08884020171 | U188: 13.50230257 | V188: -122.160677 | W188: 57.839323 | Y188: 1000000000 | Z188: 112211649 | AB188: 4.983667168 | AC188: -42.90812155 | AG188: 8.518635403 | AH188: -79.25255545 | AJ188: 0 | AK188: 0
A189: 10654 | B189: 10.654 | C189: 3.790648645 | D189: 1.303829331 | E189: 1.000032263 | F189: 0.008032753976 | G189: 1 | H189: 0 | I189: 959.0114816 | J189: 1.569753586 | K189: 1.499943472 | L189: 0.8410349619 | M189: 1.000151764 | N189: 0.0174209618 | O189: 1 | P189: 1.0654e-05 | Q189: 1 | R189: 1.0654e-05 | S189: 1.001156151 | T189: 0.08935196694 | U189: 13.43355227 | V189: -122.1138148 | W189: 57.88618522 | Y189: 1000000000 | Z189: 113507716 | AB189: 4.96141336 | AC189: -42.75064921 | AG189: 8.47213891 | AH189: -79.36316557 | AJ189: 0 | AK189: 0
A190: 10715 | B190: 10.715 | C190: 3.810845751 | D190: 1.305278544 | E190: 1.000032634 | F190: 0.008078743907 | G190: 1 | H190: 0 | I190: 964.502343 | J190: 1.569759522 | K190: 1.504720347 | L190: 0.8438710034 | M190: 1.000153507 | N190: 0.01752068601 | O190: 1 | P190: 1.0715e-05 | Q190: 1 | R190: 1.0715e-05 | S190: 1.001169467 | T190: 0.08986373518 | U190: 13.36529647 | V190: -122.0670964 | W190: 57.93290363 | Y190: 1000000000 | Z190: 114811225 | AB190: 4.939426647 | AC190: -42.5942099 | AG190: 8.425869822 | AH190: -79.47288647 | AJ190: 0 | AK190: 0
A191: 10777.5 | B191: 10.7775 | C191: 3.83154772 | D191: 1.306747543 | E191: 1.000033016 | F191: 0.008125864704 | G191: 1 | H191: 0 | I191: 970.1282255 | J191: 1.569765535 | K191: 1.509627158 | L191: 0.8467581443 | M191: 1.000155303 | N191: 0.01762286211 | O191: 1 | P191: 1.07775e-05 | Q191: 1 | R191: 1.07775e-05 | S191: 1.00118319 | T191: 0.09038809102 | U191: 13.29586882 | V191: -122.0193852 | W191: 57.98061484 | Y191: 1000000000 | Z191: 116154506.2 | AB191: 4.917172113 | AC191: -42.43498767 | AG191: 8.378696712 | AH191: -79.58439749 | AJ191: 0 | AK191: 0
A192: 10840 | B192: 10.84 | C192: 3.852257868 | D192: 1.308200751 | E192: 1.0000334 | F192: 0.008172985464 | G192: 1 | H192: 0 | I192: 975.7541082 | J192: 1.569771478 | K192: 1.514546471 | L192: 0.8496265539 | M192: 1.000157109 | N192: 0.01772503783 | O192: 1 | P192: 1.084e-05 | Q192: 1 | R192: 1.084e-05 | S192: 1.001196994 | T192: 0.09091245005 | U192: 13.22694758 | V192: -121.9718385 | W192: 58.02816145 | Y192: 1000000000 | Z192: 117505600 | AB192: 4.895189531 | AC192: -42.27683466 | AG192: 8.331758048 | AH192: -79.69500389 | AJ192: 0 | AK192: 0
A193: 10902.5 | B193: 10.9025 | C193: 3.872976065 | D193: 1.309638413 | E193: 1.000033786 | F193: 0.008220106188 | G193: 1 | H193: 0 | I193: 981.3799908 | J193: 1.569777353 | K193: 1.519478165 | L193: 0.8524763671 | M193: 1.000158926 | N193: 0.01782721318 | O193: 1 | P193: 1.09025e-05 | Q193: 1 | R193: 1.09025e-05 | S193: 1.001210879 | T193: 0.09143681229 | U193: 13.15852645 | V193: -121.9244631 | W193: 58.07553695 | Y193: 1000000000 | Z193: 118864506.2 | AB193: 4.873474746 | AC193: -42.11974323 | AG193: 8.285051703 | AH193: -79.80471982 | AJ193: 0 | AK193: 0
A194: 10965 | B194: 10.965 | C194: 3.893702182 | D194: 1.311060774 | E194: 1.000034174 | F194: 0.008267226875 | G194: 1 | H194: 0 | I194: 987.0058735 | J194: 1.569783161 | K194: 1.524422119 | L194: 0.8553077183 | M194: 1.000160753 | N194: 0.01792938817 | O194: 1 | P194: 1.0965e-05 | Q194: 1 | R194: 1.0965e-05 | S194: 1.001224845 | T194: 0.09196117776 | U194: 13.09059925 | V194: -121.8772649 | W194: 58.12273509 | Y194: 1000000000 | Z194: 120231225 | AB194: 4.852023677 | AC194: -41.96370573 | AG194: 8.238575572 | AH194: -79.91355919 | AJ194: 0 | AK194: 0
A195: 11028.75 | B195: 11.02875 | C195: 3.914850849 | D195: 1.312496063 | E195: 1.000034573 | F195: 0.008315289939 | G195: 1 | H195: 0 | I195: 992.7442738 | J195: 1.569789018 | K195: 1.529477459 | L195: 0.8581768159 | M195: 1.000162628 | N195: 0.01803360626 | O195: 1 | P195: 1.102875e-05 | Q195: 1 | R195: 1.102875e-05 | S195: 1.001239173 | T195: 0.09249603388 | U195: 13.02181604 | V195: -121.8293117 | W195: 58.17068826 | Y195: 1000000000 | Z195: 121633326.6 | AB195: 4.830411113 | AC195: -41.80562535 | AG195: 8.191404931 | AH195: -80.02368639 | AJ195: 0 | AK195: 0
A196: 11092.5 | B196: 11.0925 | C196: 3.936007494 | D196: 1.313915926 | E196: 1.000034974 | F196: 0.008363352963 | G196: 1 | H196: 0 | I196: 998.4826742 | J196: 1.569794807 | K196: 1.534545307 | L196: 0.8610269863 | M196: 1.000164513 | N196: 0.01813782396 | O196: 1 | P196: 1.10925e-05 | Q196: 1 | R196: 1.10925e-05 | S196: 1.001253585 | T196: 0.09303089339 | U196: 12.95353404 | V196: -121.7815554 | W196: 58.21844456 | Y196: 1000000000 | Z196: 123043556.2 | AB196: 4.809064577 | AC196: -41.64862554 | AG196: 8.144469464 | AH196: -80.1329299 | AJ196: 0 | AK196: 0
A197: 11156.25 | B197: 11.15625 | C197: 3.95717199 | D197: 1.315320603 | E197: 1.000035377 | F197: 0.00841141595 | G197: 1 | H197: 0 | I197: 1004.221075 | J197: 1.56980053 | K197: 1.539625539 | L197: 0.8638583705 | M197: 1.000166409 | N197: 0.01824204127 | O197: 1 | P197: 1.115625e-05 | Q197: 1 | R197: 1.115625e-05 | S197: 1.001268082 | T197: 0.09356575631 | U197: 12.88574699 | V197: -121.7340018 | W197: 58.26599815 | Y197: 1000000000 | Z197: 124461914.1 | AB197: 4.78797997 | AC197: -41.49269829 | AG197: 8.097767017 | AH197: -80.24130355 | AJ197: 0 | AK197: 0
A198: 11220 | B198: 11.22 | C198: 3.97834421 | D198: 1.316710332 | E198: 1.000035782 | F198: 0.008459478897 | G198: 1 | H198: 0 | I198: 1009.959475 | J198: 1.569806188 | K198: 1.544718032 | L198: 0.8666711086 | M198: 1.000168316 | N198: 0.01834625819 | O198: 1 | P198: 1.122e-05 | Q198: 1 | R198: 1.122e-05 | S198: 1.001282662 | T198: 0.09410062266 | U198: 12.81844873 | V198: -121.6866566 | W198: 58.31334343 | Y198: 1000000000 | Z198: 125888400 | AB198: 4.76715327 | AC198: -41.33783564 | AG198: 8.051295462 | AH198: -80.34882093 | AJ198: 0 | AK198: 0
A199: 11285.5 | B199: 11.2855 | C199: 4.000105546 | D199: 1.318122884 | E199: 1.000036201 | F199: 0.008508861179 | G199: 1 | H199: 0 | I199: 1015.8554 | J199: 1.569811935 | K199: 1.549962963 | L199: 0.8695417848 | M199: 1.000170287 | N199: 0.01845333554 | O199: 1 | P199: 1.12855e-05 | Q199: 1 | R199: 1.12855e-05 | S199: 1.001297731 | T199: 0.09465017521 | U199: 12.74980582 | V199: -121.6382342 | W199: 58.36176576 | Y199: 1000000000 | Z199: 127362510.2 | AB199: 4.74601933 | AC199: -41.17982235 | AG199: 8.003786494 | AH199: -80.45841189 | AJ199: 0 | AK199: 0
A200: 11351 | B200: 11.351 | C200: 4.021874777 | D200: 1.319520149 | E200: 1.000036623 | F200: 0.008558243419 | G200: 1 | H200: 0 | I200: 1021.751326 | J200: 1.569817615 | K200: 1.555220581 | L200: 0.872393075 | M200: 1.000172269 | N200: 0.01856041247 | O200: 1 | P200: 1.1351e-05 | Q200: 1 | R200: 1.1351e-05 | S200: 1.001312888 | T200: 0.09519973141 | U200: 12.68166607 | V200: -121.590043 | W200: 58.40995695 | Y200: 1000000000 | Z200: 128845201 | AB200: 4.725149275 | AC200: -41.02291597 | AG200: 7.956516796 | AH200: -80.56712708 | AJ200: 0 | AK200: 0
A201: 11416.5 | B201: 11.4165 | C201: 4.043651775 | D201: 1.320902365 | E201: 1.000037047 | F201: 0.008607625618 | G201: 1 | H201: 0 | I201: 1027.647251 | J201: 1.56982323 | K201: 1.560490757 | L201: 0.8752251291 | M201: 1.000174263 | N201: 0.01866748898 | O201: 1 | P201: 1.14165e-05 | Q201: 1 | R201: 1.14165e-05 | S201: 1.001328134 | T201: 0.09574929129 | U201: 12.61402312 | V201: -121.5420883 | W201: 58.45791167 | Y201: 1000000000 | Z201: 130336472.2 | AB201: 4.704538979 | AC201: -40.86710798 | AG201: 7.909484143 | AH201: -80.67498035 | AJ201: 0 | AK201: 0
... 434 more rows

Sheet Efficiency Calculations (hidden)
A1: BUCK CONTROLLER POWER DESIGN TOOL | G1: *Assuming CCM conditions | AO1: =Ext_VCC -> 1
H2: =AV19 -> 0.8914733653 | I2: 10% load
H3: =AV59 -> 0.9424710498 | I3: 50% load | P3: =Ext_VCC -> 1 | AN3: =IF(MODE=1, (Qg_Q1+Qg_Q2)*Fsw*Vin, (Qg_Q1+Qg_Q2+Qg_Q3+Qg_Q4)*Fsw*Vin) -> 0.0394992
H4: =AV109 -> 0.9227569853 | I4: 100% load | U4: 3 | AG4: 1 | AK4: 2 | AM4: I_VCC | AN4: =(Qg_Q1+Qg_Q2)*Fsw*1000 -> 3.2916 | AO4: mA | AP4: =AN4*5/1000 -> 0.016458
AP5: =VCC -> 3.15
A6: Enter the values of your design and MOSFET datasheet specifications below. Note that thermal resistance (θJA) will change when components are placed on the PCB
G7: Operating Point Condtions | R7: Filter Inductor | V7: Cout | Y7: Cin | AB7: High-side BUCK "Control" MOSFET Losses | AH7: Low-side BUCK "Sync" MOSFET Losses | AL7: Diode/FET | AM7: "Controller" Losses | AT7: RESULTS | AZ7: Consolidated Buck Efficiency & Losses
A8: Input Parameters | G8: Step | H8: Vin | I8: Mode | J8: Iout | K8: Iout/ phase | L8: Iin | M8: Duty Cycle BUCK Leg | N8: Ripple Current pk-pk | O8: Peak Inductor Current | P8: Valley Inductor Current | Q8: SW node voltage at Q1 turn-on | R8: Irms Lf | S8: DCR Loss | T8: Core Loss | U8: Total Inductor Loss | V8: Irms Cout | W8: Cout ESR Loss | X8: Total Cout Loss | Y8: Irms Cin | Z8: Cin ESR Loss | AA8: Total Cin Loss | AB8: Irms | AC8: RDS(on) Loss | AD8: Transition Loss (not including capacitive loss) | AE8: MOSFET Output Capacitance Loss | AF8: Dead Time Loss | AG8: Total Control MOSFET Loss | AH8: Irms | AI8: RDS(on) Loss | AJ8: Deadtime Loss | AK8: Total Sync MOSFET Loss | AL8: Reverse Recovery Loss | AM8: IQ Loss | AN8: Switching Current Loss | AO8: Switching Current Diss from VCC | AP8: LDO Loss Saved from Gate Drive Current (ext VCC = Vout) | AQ8: Total "Control" Loss | AR8: Total Loss (not considering total loss) | AS8: Total Loss (considering total loss) | AT8: Total Loss | AU8: Pout | AV8: EFF, h | AW8: =IF(Vin>Vout, "Buck ''CONTROL'' MOSFET Temp Rise", "Boost ''CONTROL'' MOSFET Temp Rise") -> Buck ''CONTROL'' MOSFET Temp Rise | AX8: =IF(Vin>Vout, "Buck ''SYNC'' MOSFET Temp Rise", "Boost ''SYNC'' MOSFET Temp Rise") -> Buck ''SYNC'' MOSFET Temp Rise | AZ8: h | BA8: Inductor Cu & Core Loss | BB8: Total MOSFET Loss | BC8: Control MOSFET Loss | BD8: SYNC MOSFET Loss | BE8: IC Power Loss
A9: Design | B9: Input Value | C9: Units | D9: Description | G9: 0 | H9: =Vin -> 12 | I9: =MODE -> 1 | J9: 0 | K9: =Iout*G9/100/Number_of_Phases -> 0 | L9: =Vout*K9/(Vin*Efficiency) -> 0 | M9: =(Vout+(Rdson2+Rs+Rdcr)*K9)/(Vin+(Rs+Rdson2-Rdson1)*K9) -> 0.275 | N9: =(Vin-(Rdson1+Rdcr)*K9-Vout)*M9/(Fsw*Lf) -> 1.8125 | O9: =K9+N9/2 -> 0.90625 | P9: =K9-N9/2 -> -0.90625 | Q9: =IF(MIN(Vin, -P9/(Coss_Q1+Coss_Q2)*0.00000002)<0, 0, MIN(Vin, -P9/(Coss_Q1+Coss_Q2)*0.00000002)) -> 12 | R9: =SQRT(K9^2+(N9^2)/12) -> 0.5232236815 | S9: =R9^2*Rdcr -> 0.001615201823 | T9: =Core_Loss -> 0.2 | U9: =(T9+S9*(1+Ltc*(Ta-25)))/(1-S9*Ltc*ThetaCa) -> 0.2016433614 | V9: =N9/SQRT(12) -> 0.5232236815 | W9: =RCoutEsr*V9^2 -> 0.0002737630208 | X9: =W9 -> 0.0002737630208 | Y9: =SQRT(M9*(1-M9))*SQRT(K9^2+(N9^2)/12) -> 0.2336268441 | Z9: =RCinEsr*Y9^2 -> 1.637445068e-05 | AA9: =Z9 -> 1.637445068e-05 | AB9: =SQRT(M9)*SQRT(K9^2+(N9^2)/12) -> 0.2743808133 | AC9: =Rdson1*AB9^2 -> 0.002634969076 | AD9: =(Vin*K9/2)*Fsw*(Tr_buck+Tf_buck) -> 0 | AE9: =(0.5*Coss_Q1*(Vin-Q9)^2-0.5*Coss_Q2*(Vin-Q9)^2+(Qoss_Q2*(Vin-Q9)/Vin)*Vin)*Fsw -> 0 | AF9: =IF(K9>N9/2,0,ABS(K9-N9/2)*Vsd_Q1*Deadtime*Fsw) -> 0.0014083125 | AG9: =(AF9+AE9+AD9+AC9*(1+RdsonTC*(Ta-25))/(1-AC9*RdsonTC*ThetaJA_Q1)) -> 0.004043920492 | AH9: =SQRT((1-M9))*SQRT(K9^2+(N9^2)/12) -> 0.4455089114 | AI9: =Rdson2*AH9^2 -> 0.004763476562 | AJ9: =IF(K9<N9/2,Deadtime*Fsw*Vsd_Q2*(K9+N9/2),2*Deadtime*Fsw*Vsd_Q2*K9) -> 0.0014083125 | AK9: =(AJ9+AI9*(1+RdsonTC*(Ta-25)))/(1-AI9*RdsonTC*ThetaJA_Q2) -> 0.006174494972 | AL9: =Qrr_Q2*K9/Iout*Fsw*Vin -> 0 | AM9: =Iq*Vin -> 0.00042 | AN9: =IF(Ext_VCC=1, (Qg_Q1+Qg_Q2)*Fsw*Vout, (Qg_Q1+Qg_Q2)*Fsw*Vin) -> 0.01086228 | AO9: =(Vin-VCC)*Fsw*(Qg_Q1+Qg_Q2) -> 0.02913066 | AP9: =(Qg_Q1+Qg_Q2)*Fsw*(Vin-Vout) -> 0.02863692 | AQ9: =SUM(AM9:AN9) -> 0.01128228 | AR9: =SUM(S9,T9,AC9,AD9,AE9,AF9,AI9,AJ9,AQ9, AL9) -> 0.2231125525 | AS9: =U9 + ((AF9+AE9+AD9+AC9*(1+RdsonTC*(Ta-25))) + (AJ9+AI9*(1+RdsonTC*(Ta-25))) + AQ9 + AL9) / (1-AC9*RdsonTC*ThetaJA_Q1 -AI9*RdsonTC*ThetaJA_Q2) -> 0.2231553543 | AT9: =AS9 -> 0.2231553543 | AU9: =Vout*K9 -> 0 | AV9: =AU9/(AU9+AT9) -> 0 | AW9: =ThetaJA_Q1*BC9 -> 0.09301017132 | AX9: =ThetaJA_Q2*BD9 -> 0.1420133844 | AZ9: =AV9*100 -> 0 | BA9: =U9 -> 0.2016433614 | BB9: =AG9+AK9+AL9 -> 0.01021841546 | BC9: =AG9+AL9*0.66 -> 0.004043920492 | BD9: =AK9+AL9*0.33 -> 0.006174494972 | BE9: =AS9-BA9 -> 0.02151199293
G10: 1 | H10: 12 | I10: 1 | J10: =Iout*G10/100 -> 0.06 | K10: 0.06 | L10: 0.01833333333 | M10: 0.275400142 | N10: 1.814625305 | O10: =K10+N10/2 -> 0.9673126527 | P10: =K10-N10/2 -> -0.8473126527 | Q10: 12 | R10: =SQRT(K10^2+(N10^2)/12) -> 0.5272621896 | S10: 0.001640231958 | T10: 0.2 | U10: 0.2016688315 | V10: =N10/SQRT(12) -> 0.5238372043 | W10: 0.0002744054166 | X10: =W10 -> 0.0002744054166 | Y10: =SQRT(M10*(1-M10))*SQRT(K10^2+(N10^2)/12) -> 0.2355362905 | Z10: 1.664320325e-05 | AA10: =Z10 -> 1.664320325e-05 | AB10: =SQRT(M10)*SQRT(K10^2+(N10^2)/12) -> 0.276699713 | AC10: 0.002679695592 | AD10: 0.0002318571429 | AE10: 0 | AF10: 0.001316723862 | AG10: =(AF10+AE10+AD10+AC10*(1+RdsonTopTc*Ta-RdsonTopTc*25))/(1-AC10*RdsonTopTc*ThetaJA_Q1) -> 0.004229319259 | AH10: 0.4488236685 | AI10: 0.004834624449 | AJ10: 0.001503203862 | AK10: =(AJ10+AI10*(1+RdsonBotTc*Ta-RdsonBotTc*25))/(1-AI10*RdsonBotTc*ThetaJA_Q2) -> 0.00634064854 | AL10: 0.000336 | AM10: 0.00042 | AN10: 0.01086228 | AO10: 0.02913066 | AP10: 0.02863692 | AQ10: 0.01128228 | AR10: =SUM(S10,T10,AC10,AD10,AE10,AF10,AI10,AJ10,AQ10, AL10) -> 0.2238246169 | AS10: 0.2238685635 | AT10: =AS10 -> 0.2238685635 | AU10: 0.198 | AV10: =AU10/(AU10+AT10) -> 0.469340494 | AW10: 0.102374823 | AX10: 0.1483851564 | AZ10: =AV10*100 -> 46.9340494 | BA10: 0.2016688315 | BB10: 0.0109059678 | BC10: 0.004451079259 | BD10: 0.00645152854 | BE10: =AS10-BA10 -> 0.02219973197
A11: Vin | B11: =Vin -> 12 | C11: V | D11: Vin | G11: 2 | H11: 12 | I11: 1 | J11: 0.12 | K11: 0.12 | L11: 0.03666666667 | M11: 0.275800068 | N11: 1.8167477 | O11: 1.02837385 | P11: -0.7883738502 | Q11: 12 | R11: 0.5380034237 | S11: 0.001707741335 | T11: 0.2 | U11: 0.2017375281 | V11: 0.5244498869 | W11: 0.0002750476839 | X11: 0.0002750476839 | Y11: 0.2404426267 | Z11: 1.734379702e-05 | AA11: 1.734379702e-05 | AB11: 0.2825414853 | AC11: 0.002794039181 | AD11: 0.0004637142857 | AE11: 0 | AF11: 0.001225132963 | AG11: 0.00448403906 | AH11: 0.457840576 | AI11: 0.005030831832 | AJ11: 0.001598092963 | AK11: 0.006631994325 | AL11: 0.000672 | AM11: 0.00042 | AN11: 0.01086228 | AO11: 0.02913066 | AP11: 0.02863692 | AQ11: 0.01128228 | AR11: 0.2247738326 | AS11: 0.2248202363 | AT11: 0.2248202363 | AU11: 0.396 | AV11: 0.6378658053 | AW11: 0.1133338584 | AX11: 0.1576363495 | AZ11: 63.78658053 | BA11: 0.2017375281 | BB11: 0.01178803338 | BC11: 0.00492755906 | BD11: 0.006853754325 | BE11: 0.02308270819
A12: Vout | B12: =Vout -> 3.3 | C12: V | D12: Vout | G12: 3 | H12: 12 | I12: 1 | J12: 0.18 | K12: 0.18 | L12: 0.055 | M12: 0.2761997782 | N12: 1.818867187 | O12: 1.089433594 | P12: -0.7294335937 | Q12: 12 | R12: 0.5550583937 | S12: 0.001817729941 | T12: 0.2 | U12: 0.2018494528 | V12: 0.5250617301 | W12: 0.0002756898205 | X12: 0.0002756898205 | Y12: 0.2481759501 | Z12: 1.847739067e-05 | AA12: 1.847739067e-05 | AB12: 0.2917093418 | AC12: 0.002978301902 | AD12: 0.0006955714286 | AE12: 0 | AF12: 0.001133539805 | AG12: 0.004808730746 | AH12: 0.4722239727 | AI12: 0.005351891529 | AJ12: 0.001692979805 | AK12: 0.007048341754 | AL12: 0.001008 | AM12: 0.00042 | AN12: 0.01086228 | AO12: 0.02913066 | AP12: 0.02863692 | AQ12: 0.01128228 | AR12: 0.2259602944 | AS12: 0.2260105338 | AT12: 0.2260105338 | AU12: 0.594 | AV12: 0.7243809385 | AW12: 0.1259022472 | AX12: 0.1697625803 | AZ12: 72.43809385 | BA12: 0.2018494528 | BB12: 0.0128650725 | BC12: 0.005474010746 | BD12: 0.007380981754 | BE12: 0.02416108099
A13: Fsw | B13: =Fsw/1000 -> 400 | C13: kHz | D13: Switching Frequency | G13: 4 | H13: 12 | I13: 1 | J13: 0.24 | K13: 0.24 | L13: 0.07333333333 | M13: 0.2765992728 | N13: 1.820983769 | O13: 1.150491884 | P13: -0.6704918844 | Q13: 12 | R13: 0.5778683447 | S13: 0.001970197761 | T13: 0.2 | U13: 0.2020046079 | V13: 0.5256727345 | W13: 0.0002763318238 | X13: 0.0002763318238 | Y13: 0.2584900867 | Z13: 2.004513748e-05 | AA13: 2.004513748e-05 | AB13: 0.3039165998 | AC13: 0.003232785487 | AD13: 0.0009274285714 | AE13: 0 | AF13: 0.001041944388 | AG13: 0.005203706114 | AH13: 0.4914941752 | AI13: 0.005797596581 | AJ13: 0.001787864388 | AK13: 0.007589509053 | AL13: 0.001344 | AM13: 0.00042 | AN13: 0.01086228 | AO13: 0.02913066 | AP13: 0.02863692 | AQ13: 0.01128228 | AR13: 0.2273840972 | AS13: 0.2274396386 | AT13: 0.2274396386 | AU13: 0.792 | AV13: 0.7768973954 | AW13: 0.1400871606 | AX13: 0.1847596682 | AZ13: 77.68973954 | BA13: 0.2020046079 | BB13: 0.01413721517 | BC13: 0.006090746114 | BD13: 0.008033029053 | BE13: 0.02543503072
A14: Iout | B14: =Iout -> 6 | C14: A | D14: Max Output Current | G14: 5 | H14: 12 | I14: 1 | J14: 0.3 | K14: 0.3 | L14: 0.09166666667 | M14: 0.276998552 | N14: 1.823097447 | O14: 1.211548723 | P14: -0.6115487234 | Q14: 12 | R14: 0.6057835354 | S14: 0.002165144781 | T14: 0.2 | U14: 0.2022029969 | V14: 0.5262829008 | W14: 0.0002769736917 | X14: 0.0002769736917 | Y14: 0.2710976784 | Z14: 2.204818536e-05 | AA14: 2.204818536e-05 | AB14: 0.3188278238 | AC14: 0.003557791342 | AD14: 0.001159285714 | AE14: 0 | AF14: 0.0009503467162 | AG14: 0.005669279423 | AH14: 0.5150946617 | AI14: 0.006367740252 | AJ14: 0.001882746716 | AK14: 0.008255323202 | AL14: 0.00168 | AM14: 0.00042 | AN14: 0.01086228 | AO14: 0.02913066 | AP14: 0.02863692 | AQ14: 0.01128228 | AR14: 0.2290453355 | AS14: 0.2291077557 | AT14: 0.2291077557 | AU14: 0.99 | AV14: 0.812069315 | AW14: 0.1558958267 | AX14: 0.2026236336 | AZ14: 81.2069315 | BA14: 0.2022029969 | BB14: 0.01560460262 | BC14: 0.006778079423 | BD14: 0.008809723202 | BE14: 0.02690475879
A15: Ta | B15: =Ta -> 25 | C15: °C | D15: Ambient Temperature | G15: 6 | H15: 12 | I15: 1 | J15: 0.36 | K15: 0.36 | L15: 0.11 | M15: 0.2773976159 | N15: 1.825208224 | O15: 1.272604112 | P15: -0.5526041119 | Q15: 12 | R15: 0.6381343289 | S15: 0.002402570988 | T15: 0.2 | U15: 0.2024446241 | V15: 0.5268922297 | W15: 0.0002776154217 | X15: 0.0002776154217 | Y15: 0.2857019243 | Z15: 2.448767687e-05 | AA15: 2.448767687e-05 | AB15: 0.336096098 | AC15: 0.003953620549 | AD15: 0.001391142857 | AE15: 0 | AF15: 0.0008587467899 | AG15: 0.006205767439 | AH15: 0.5424526104 | AI15: 0.00706211603 | AJ15: 0.00197762679 | AK15: 0.009045619892 | AL15: 0.002016 | AM15: 0.00042 | AN15: 0.01086228 | AO15: 0.02913066 | AP15: 0.02863692 | AQ15: 0.01128228 | AR15: 0.230944104 | AS15: 0.2310151118 | AT15: 0.2310151118 | AU15: 1.188 | AV15: 0.8372003865 | AW15: 0.1733355311 | AX15: 0.2233506975 | AZ15: 83.72003865 | BA15: 0.2024446241 | BB15: 0.01726738733 | BC15: 0.007536327439 | BD15: 0.009710899892 | BE15: 0.02857048771
A16: Vcc | B16: =VCC -> 3.15 | C16: V | D16: Subregulated VCC Voltage | G16: 7 | H16: 12 | I16: 1 | J16: 0.42 | K16: 0.42 | L16: 0.1283333333 | M16: 0.2777964647 | N16: 1.827316102 | O16: 1.333658051 | P16: -0.4936580512 | Q16: 12 | R16: 0.6742825902 | S16: 0.002682476368 | T16: 0.2 | U16: 0.2027294948 | V16: 0.5275007218 | W16: 0.0002782570115 | X16: 0.0002782570115 | Y16: 0.3020195866 | Z16: 2.73647492e-05 | AA16: 2.73647492e-05 | AB16: 0.3553900821 | AC16: 0.004420573865 | AD16: 0.001623 | AE16: 0 | AF16: 0.0007671446115 | AG16: 0.006813489474 | AH16: 0.5730226008 | AI16: 0.007880517625 | AJ16: 0.002072504612 | AK16: 0.009960243489 | AL16: 0.002352 | AM16: 0.00042 | AN16: 0.01086228 | AO16: 0.02913066 | AP16: 0.02863692 | AQ16: 0.01128228 | AR16: 0.2330804971 | AS16: 0.2331619559 | AT16: 0.2331619559 | AU16: 1.386 | AV16: 0.8559983731 | AW16: 0.1924136179 | AX16: 0.2469372803 | AZ16: 85.59983731 | BA16: 0.2027294948 | BB16: 0.01912573296 | BC16: 0.008365809474 | BD16: 0.01073640349 | BE16: 0.03043246114
A17: Components | B17: Input Value | C17: Units | D17: Description | G17: 8 | H17: 12 | I17: 1 | J17: 0.48 | K17: 0.48 | L17: 0.1466666667 | M17: 0.2781950986 | N17: 1.829421084 | O17: 1.394710542 | P17: -0.4347105422 | Q17: 12 | R17: 0.7136514967 | S17: 0.003004860906 | T17: 0.2 | U17: 0.2030576153 | V17: 0.5281083778 | W17: 0.0002788984587 | X17: 0.0002788984587 | Y17: 0.319794383 | Z17: 3.068053422e-05 | AA17: 3.068053422e-05 | AB17: 0.3764097965 | AC17: 0.004958951722 | AD17: 0.001854857143 | AE17: 0 | AF17: 0.0006755401827 | AG17: 0.007492767425 | AH17: 0.606311903 | AI17: 0.008822738971 | AJ17: 0.002167380183 | AK17: 0.01099904699 | AL17: 0.002688 | AM17: 0.00042 | AN17: 0.01086228 | AO17: 0.02913066 | AP17: 0.02863692 | AQ17: 0.01128228 | AR17: 0.2354546091 | AS17: 0.2355485593 | AT17: 0.2355485593 | AU17: 1.584 | AV17: 0.8705456042 | AW17: 0.2131374908 | AX17: 0.2733800008 | AZ17: 87.05456042 | BA17: 0.2030576153 | BB17: 0.02117981442 | BC17: 0.009266847425 | BD17: 0.01188608699 | BE17: 0.03249094397
A18: L | B18: =Lf*1000000 -> 3.3 | C18: uH | D18: Filter Inductance | G18: 9 | H18: 12 | I18: 1 | J18: 0.54 | K18: 0.54 | L18: 0.165 | M18: 0.2785935178 | N18: 1.831523173 | O18: 1.455761586 | P18: -0.3757615864 | Q18: 12 | R18: 0.7557378917 | S18: 0.00336972459 | T18: 0.2 | U18: 0.2034289929 | V18: 0.5287151984 | W18: 0.000279539761 | X18: 0.000279539761 | Y18: 0.3388025899 | Z18: 3.443615847e-05 | AA18: 3.443615847e-05 | AB18: 0.3988932629 | AC18: 0.00556905423 | AD18: 0.002086714286 | AE18: 0 | AF18: 0.0005839335052 | AG18: 0.008243925821 | AH18: 0.6418908987 | AI18: 0.009888574221 | AJ18: 0.002262253505 | AK18: 0.01216189199 | AL18: 0.003024 | AM18: 0.00042 | AN18: 0.01086228 | AO18: 0.02913066 | AP18: 0.02863692 | AQ18: 0.01128228 | AR18: 0.2380665343 | AS18: 0.2381752153 | AT18: 0.2381752153 | AU18: 1.782 | AV18: 0.8821017041 | AW18: 0.2355146139 | AX18: 0.3026756758 | AZ18: 88.21017041 | BA18: 0.2034289929 | BB18: 0.02342981781 | BC18: 0.01023976582 | BD18: 0.01315981199 | BE18: 0.03474622241
A19: Rdcr | B19: =Rdcr*1000 -> 5.9 | C19: mW | D19: Inductor DCR at 25°C | G19: 10 | H19: 12 | I19: 1 | J19: 0.6 | K19: 0.6 | L19: 0.1833333333 | M19: 0.2789917223 | N19: 1.833622369 | O19: 1.516811185 | P19: -0.3168111847 | Q19: 12 | R19: 0.8001130646 | S19: 0.003777067405 | T19: 0.2 | U19: 0.2038436357 | V19: 0.5293211843 | W19: 0.0002801809161 | X19: 0.0002801809161 | Y19: 0.3588534668 | Z19: 3.863274319e-05 | AA19: 3.863274319e-05 | AB19: 0.4226170565 | AC19: 0.006251181174 | AD19: 0.002318571429 | AE19: 0 | AF19: 0.000492324581 | AG19: 0.009067291862 | AH19: 0.6793936559 | AI19: 0.01107781775 | AJ19: 0.002357124581 | AK19: 0.01344864865 | AL19: 0.00336 | AM19: 0.00042 | AN19: 0.01086228 | AO19: 0.02913066 | AP19: 0.02863692 | AQ19: 0.01128228 | AR19: 0.2409163669 | AS19: 0.2410422397 | AT19: 0.2410422397 | AU19: 1.98 | AV19: 0.8914733653 | AW19: 0.2595525128 | AX19: 0.3348213189 | AZ19: 89.14733653 | BA19: 0.2038436357 | BB19: 0.02587594051 | BC19: 0.01128489186 | BD19: 0.01455744865 | BE19: 0.03719860406
A20: LTc | B20: 3930 | C20: ppm | D20: Inductor Series Resistance Temp Co | G20: 11 | H20: 12 | I20: 1 | J20: 0.66 | K20: 0.66 | L20: 0.2016666667 | M20: 0.2793897126 | N20: 1.835718677 | O20: 1.577859338 | P20: -0.2578593384 | Q20: 12 | R20: 0.8464171086 | S20: 0.004226889338 | T20: 0.2 | U20: 0.2043015527 | V20: 0.5299263361 | W20: 0.0002808219217 | X20: 0.0002808219217 | Y20: 0.3797868011 | Z20: 4.32714043e-05 | AA20: 4.32714043e-05 | AB20: 0.4473934675 | AC20: 0.007005632017 | AD20: 0.002550428571 | AE20: 0 | AF20: 0.0004007134118 | AG20: 0.00996319546 | AH20: 0.7185130527 | AI20: 0.01239026417 | AJ20: 0.002451993412 | AK20: 0.01485919564 | AL20: 0.003696 | AM20: 0.00042 | AN20: 0.01086228 | AO20: 0.02913066 | AP20: 0.02863692 | AQ20: 0.01128228 | AR20: 0.2440042009 | AS20: 0.2441499707 | AT20: 0.2441499707 | AU20: 2.178 | AV20: 0.8992011338 | AW20: 0.2852587756 | AX20: 0.3698141397 | AZ20: 89.92011338 | BA20: 0.2043015527 | BB20: 0.0285183911 | BC20: 0.01240255546 | BD20: 0.01607887564 | BE20: 0.03984841799
A21: ThetaCa | B21: =ThetaCa -> 22 | C21: °C/W | D21: Core to Ambient Thermal Resistance | G21: 12 | H21: 12 | I21: 1 | J21: 0.72 | K21: 0.72 | L21: 0.22 | M21: 0.2797874885 | N21: 1.837812097 | O21: 1.638906049 | P21: -0.1989060486 | Q21: 11.31433724 | R21: 0.8943504768 | S21: 0.004719190375 | T21: 0.2 | U21: 0.2048027542 | V21: 0.5305306545 | W21: 0.0002814627754 | X21: 0.0002814627754 | Y21: 0.4014691871 | Z21: 4.835325246e-05 | AA21: 4.835325246e-05 | AB21: 0.4730661657 | AC21: 0.007832705898 | AD21: 0.002782285714 | AE21: 0.002339175055 | AF21: 0.0003090999995 | AG21: 0.01327283119 | AH21: 0.7589935298 | AI21: 0.01382570828 | AJ21: 0.00254686 | AK21: 0.01639342014 | AL21: 0.004032 | AM21: 0.00042 | AN21: 0.01086228 | AO21: 0.02913066 | AP21: 0.02863692 | AQ21: 0.01128228 | AR21: 0.2496693053 | AS21: 0.2498426144 | AT21: 0.2498426144 | AU21: 2.376 | AV21: 0.9048524032 | AW21: 0.3664808773 | AX21: 0.4076515432 | AZ21: 90.48524032 | BA21: 0.2048027542 | BB21: 0.03369825133 | BC21: 0.01593395119 | BD21: 0.01772398014 | BE21: 0.04503986021
A22: Cin | B22: =Cin*1000000 -> 6.58 | C22: μF | D22: Input Capacitance | G22: 13 | H22: 12 | I22: 1 | J22: 0.78 | K22: 0.78 | L22: 0.2383333333 | M22: 0.2801850505 | N22: 1.839902633 | O22: 1.699951317 | P22: -0.1399513165 | Q22: 7.960825741 | R22: 0.9436649167 | S22: 0.005253970502 | T22: 0.2 | U22: 0.2053472512 | V22: 0.5311341402 | W22: 0.0002821034749 | X22: 0.0002821034749 | Y22: 0.423790015 | Z22: 5.387939304e-05 | AA22: 5.387939304e-05 | AB22: 0.4995055166 | AC22: 0.008732701637 | AD22: 0.003014142857 | AE22: 0.01344230641 | AF22: 0.0002174843459 | AG22: 0.02542706357 | AH22: 0.8006233283 | AI22: 0.01538394513 | AJ22: 0.002641724346 | AK22: 0.01805121778 | AL22: 0.004368 | AM22: 0.00042 | AN22: 0.01086228 | AO22: 0.02913066 | AP22: 0.02863692 | AQ22: 0.01128228 | AR22: 0.2643365552 | AS22: 0.2645612158 | AT22: 0.2645612158 | AU22: 2.574 | AV22: 0.9067974246 | AW22: 0.6511287021 | AX22: 0.448331129 | AZ22: 90.67974246 | BA22: 0.2053472512 | BB22: 0.04784628135 | BC22: 0.02830994357 | BD22: 0.01949265778 | BE22: 0.05921396462
A23: RCinEsr | B23: =RCinEsr*1000 -> 0.3 | C23: mW | D23: Input Capacitor ESR | G23: 14 | H23: 12 | I23: 1 | J23: 0.84 | K23: 0.84 | L23: 0.2566666667 | M23: 0.2805823985 | N23: 1.841990287 | O23: 1.760995143 | P23: -0.08099514332 | Q23: 4.607232271 | R23: 0.9941549266 | S23: 0.005831229706 | T23: 0.2 | U23: 0.2059350556 | V23: 0.5317367939 | W23: 0.000282744018 | X23: 0.000282744018 | Y23: 0.4466576846 | Z23: 5.985092617e-05 | AA23: 5.985092617e-05 | AB23: 0.5266041541 | AC23: 0.00970591773 | AD23: 0.003246 | AE23: 0.02398518602 | AF23: 0.0001258664527 | AG23: 0.03709609496 | AH23: 0.8432271834 | AI23: 0.01706476999 | AJ23: 0.002736586453 | AK23: 0.01983249264 | AL23: 0.004704 | AM23: 0.00042 | AN23: 0.01086228 | AO23: 0.02913066 | AP23: 0.02863692 | AQ23: 0.01128228 | AR23: 0.2786818364 | AS23: 0.2789655292 | AT23: 0.2789655292 | AU23: 2.772 | AV23: 0.9085648374 | AW23: 0.924616904 | AX23: 0.4918506907 | AZ23: 90.85648374 | BA23: 0.2059350556 | BB23: 0.06163258759 | BC23: 0.04020073496 | BD23: 0.02138481264 | BE23: 0.07303047364
A24: Cout | B24: =Cout*1000000 -> 120 | C24: μF | D24: Output Capcitance | G24: 15 | H24: 12 | I24: 1 | J24: 0.9 | K24: 0.9 | L24: 0.275 | M24: 0.2809795329 | N24: 1.84407506 | O24: 1.82203753 | P24: -0.02203753013 | Q24: 1.25355689 | R24: 1.045650229 | S24: 0.006450967974 | T24: 0.2 | U24: 0.2065661804 | V24: 0.5323386162 | W24: 0.0002833844023 | X24: 0.0002833844023 | Y24: 0.4699962649 | Z24: 6.626894672e-05 | AA24: 6.626894672e-05 | AB24: 0.5542730723 | AC24: 0.01075265235 | AD24: 0.003477857143 | AE24: 0.0339677726 | AF24: 3.424632183e-05 | AG24: 0.0482802894 | AH24: 0.8866598918 | AI24: 0.01886797833 | AJ24: 0.002831446322 | AK24: 0.02173715718 | AL24: 0.00504 | AM24: 0.00042 | AN24: 0.01086228 | AO24: 0.02913066 | AP24: 0.02863692 | AQ24: 0.01128228 | AR24: 0.292705201 | AS24: 0.293056107 | AT24: 0.293056107 | AU24: 2.97 | AV24: 0.9101896819 | AW24: 1.186953856 | AX24: 0.5382082152 | AZ24: 91.01896819 | BA24: 0.2065661804 | BB24: 0.07505744658 | BC24: 0.0516066894 | BD24: 0.02340035718 | BE24: 0.08648992659
A25: RCoutEsr | B25: =Cout_ESR*1000 -> 1 | C25: mW | D25: Output Capacitor ESR | G25: 16 | H25: 12 | I25: 1 | J25: 0.96 | K25: 0.96 | L25: 0.2933333333 | M25: 0.2813764537 | N25: 1.846156956 | O25: 1.883078478 | P25: 0.03692152186 | Q25: 0 | R25: 1.098009392 | S25: 0.007113185291 | T25: 0.2 | U25: 0.2072406395 | V25: 0.5329396078 | W25: 0.0002840246256 | X25: 0.0002840246256 | Y25: 0.4937426601 | Z25: 7.313454431e-05 | AA25: 7.313454431e-05 | AB25: 0.5824383072 | AC25: 0.01187320336 | AD25: 0.003709714286 | AE25: 0.0375552 | AF25: 0 | AG25: 0.05319622573 | AH25: 0.9308008616 | AI25: 0.02079336585 | AJ25: 0.00298368 | AK25: 0.02382261828 | AL25: 0.005376 | AM25: 0.00042 | AN25: 0.01086228 | AO25: 0.02913066 | AP25: 0.02863692 | AQ25: 0.01128228 | AR25: 0.3006866288 | AS25: 0.3010961493 | AT25: 0.3010961493 | AU25: 3.168 | AV25: 0.9132061677 | AW25: 1.305120872 | AX25: 0.5887240604 | AZ25: 91.32061677 | BA25: 0.2072406395 | BB25: 0.082394844 | BC25: 0.05674438573 | BD25: 0.02559669828 | BE25: 0.09385550975
A26: Top Driver | B26: Input Value | C26: Units | D26: Description | G26: 17 | H26: 12 | I26: 1 | J26: 1.02 | K26: 1.02 | L26: 0.3116666667 | M26: 0.2817731612 | N26: 1.848235977 | O26: 1.944117988 | P26: 0.09588201151 | Q26: 0 | R26: 1.151114541 | S26: 0.007817881645 | T26: 0.2 | U26: 0.2079584478 | V26: 0.5335397694 | W26: 0.0002846646856 | X26: 0.0002846646856 | Y26: 0.5178442603 | Z26: 8.044880337e-05 | AA26: 8.044880337e-05 | AB26: 0.6110381864 | AC26: 0.01306786828 | AD26: 0.003941571429 | AE26: 0.0375552 | AF26: 0 | AG26: 0.05463031868 | AH26: 0.9755495991 | AI26: 0.02284072849 | AJ26: 0.00317016 | AK26: 0.02606566149 | AL26: 0.005712 | AM26: 0.00042 | AN26: 0.01086228 | AO26: 0.02913066 | AP26: 0.02863692 | AQ26: 0.01128228 | AR26: 0.3053876898 | AS26: 0.3058516551 | AT26: 0.3058516551 | AU26: 3.366 | AV26: 0.9167037005 | AW26: 1.34320549 | AX26: 0.6428642942 | AZ26: 91.67037005 | BA26: 0.2079584478 | BB26: 0.08640798017 | BC26: 0.05840023868 | BD26: 0.02795062149 | BE26: 0.09789320731
A27: RdsonDRT | B27: 1 | C27: W | D27: Drain to Source Resistance of pullup Top FET Driver | G27: 18 | H27: 12 | I27: 1 | J27: 1.08 | K27: 1.08 | L27: 0.33 | M27: 0.2821696555 | N27: 1.850312125 | O27: 2.005156062 | P27: 0.1548439376 | Q27: 0 | R27: 1.204867038 | S27: 0.008565057021 | T27: 0.2 | U27: 0.2087196212 | V27: 0.5341391016 | W27: 0.0002853045799 | X27: 0.0002853045799 | Y27: 0.5422570212 | Z27: 8.82128031e-05 | AA27: 8.82128031e-05 | AB27: 0.6400210787 | AC27: 0.01433694434 | AD27: 0.004173428571 | AE27: 0.0375552 | AF27: 0 | AG27: 0.05613962101 | AH27: 1.020822021 | AI27: 0.02500986237 | AJ27: 0.00335664 | AK27: 0.02843192159 | AL27: 0.006048 | AM27: 0.00042 | AN27: 0.01086228 | AO27: 0.02913066 | AP27: 0.02863692 | AQ27: 0.01128228 | AR27: 0.3103274123 | AS27: 0.3108516849 | AT27: 0.3108516849 | AU27: 3.564 | AV27: 0.9197771398 | AW27: 1.383019923 | AX27: 0.6998385165 | AZ27: 91.97771398 | BA27: 0.2087196212 | BB27: 0.0906195426 | BC27: 0.06013130101 | BD27: 0.03042776159 | BE27: 0.1021320638
A28: RdsonDRT2 | B28: 1 | C28: W | D28: Drain to Source Resistance of pulldown Top FET Driver | G28: 19 | H28: 12 | I28: 1 | J28: 1.14 | K28: 1.14 | L28: 0.3483333333 | M28: 0.2825659367 | N28: 1.852385402 | O28: 2.066192701 | P28: 0.2138072991 | Q28: 0 | R28: 1.259183984 | S28: 0.009354711408 | T28: 0.2 | U28: 0.2095241763 | V28: 0.5347376052 | W28: 0.0002859443064 | X28: 0.0002859443064 | Y28: 0.5669439053 | Z28: 9.642761751e-05 | AA28: 9.642761751e-05 | AB28: 0.6693435681 | AC28: 0.01568072843 | AD28: 0.004405285714 | AE28: 0.0375552 | AF28: 0 | AG28: 0.05772448905 | AH28: 1.066547465 | AI28: 0.02730056386 | AJ28: 0.00354312 | AK28: 0.03092134752 | AL28: 0.006384 | AM28: 0.00042 | AN28: 0.01086228 | AO28: 0.02913066 | AP28: 0.02863692 | AQ28: 0.01128228 | AR28: 0.3155058894 | AS28: 0.3160967721 | AT28: 0.3160967721 | AU28: 3.762 | AV28: 0.9224891439 | AW28: 1.424572368 | AX28: 0.759645553 | AZ28: 92.24891439 | BA28: 0.2095241763 | BB28: 0.09502983657 | BC28: 0.06193792905 | BD28: 0.03302806752 | BE28: 0.1065725958
A29: Bottom Driver | B29: Input Value | C29: Units | D29: Description | G29: 20 | H29: 12 | I29: 1 | J29: 1.2 | K29: 1.2 | L29: 0.3666666667 | M29: 0.2829620052 | N29: 1.85445581 | O29: 2.127227905 | P29: 0.2727720948 | Q29: 0 | R29: 1.313995382 | S29: 0.01018684479 | T29: 0.2 | U29: 0.210372131 | V29: 0.5353352807 | W29: 0.0002865838627 | X29: 0.0002865838627 | Y29: 0.5918736223 | Z29: 0.0001050943154 | AA29: 0.0001050943154 | AB29: 0.6989689778 | AC29: 0.01709951712 | AD29: 0.004637142857 | AE29: 0.0375552 | AF29: 0 | AG29: 0.05938528226 | AH29: 1.112666271 | AI29: 0.02971262954 | AJ29: 0.0037296 | AK29: 0.03353389652 | AL29: 0.00672 | AM29: 0.00042 | AN29: 0.01086228 | AO29: 0.02913066 | AP29: 0.02863692 | AQ29: 0.01128228 | AR29: 0.3209232143 | AS29: 0.3215874736 | AT29: 0.3215874736 | AU29: 3.96 | AV29: 0.9248905983 | AW29: 1.467871092 | AX29: 0.82228442 | AZ29: 92.48905983 | BA29: 0.210372131 | BB29: 0.09963917878 | BC29: 0.06382048226 | BD29: 0.03575149652 | BE29: 0.1112153426
A30: RdsonDRB | B30: 1 | C30: W | D30: Drain to Source Resistance of pullup Bottom FET Driver | G30: 21 | H30: 12 | I30: 1 | J30: 1.26 | K30: 1.26 | L30: 0.385 | M30: 0.2833578609 | N30: 1.856523353 | O30: 2.188261677 | P30: 0.3317383235 | Q30: 0 | R30: 1.369241851 | S30: 0.01106145716 | T30: 0.2 | U30: 0.211263504 | V30: 0.5359321288 | W30: 0.0002872232467 | X30: 0.0002872232467 | Y30: 0.617019612 | Z30: 0.0001142139605 | AA30: 0.0001142139605 | AB30: 0.7288661776 | AC30: 0.01859360667 | AD30: 0.004869 | AE30: 0.0375552 | AF30: 0 | AG30: 0.06112236331 | AH30: 1.159127837 | AI30: 0.03224585621 | AJ30: 0.00391608 | AK30: 0.03626953409 | AL30: 0.007056 | AM30: 0.00042 | AN30: 0.01086228 | AO30: 0.02913066 | AP30: 0.02863692 | AQ30: 0.01128228 | AR30: 0.32657948 | AS30: 0.3273243703 | AT30: 0.3273243703 | AU30: 4.158 | AV30: 0.9270232556 | AW30: 1.512924436 | AX30: 0.887754324 | AZ30: 92.70232556 | BA30: 0.211263504 | BB30: 0.1044478974 | BC30: 0.06577932331 | BD30: 0.03859801409 | BE30: 0.1160608663
A31: RdsonDRB2 | B31: 1 | C31: W | D31: Drain to Source Resistance of pulldown Bottom FET Driver | G31: 22 | H31: 12 | I31: 1 | J31: 1.32 | K31: 1.32 | L31: 0.4033333333 | M31: 0.2837535042 | N31: 1.858588032 | O31: 2.249294016 | P31: 0.390705984 | Q31: 0 | R31: 1.424872786 | S31: 0.01197854849 | T31: 0.2 | U31: 0.2121983149 | V31: 0.5365281503 | W31: 0.0002878624561 | X31: 0.0002878624561 | Y31: 0.6423592224 | Z31: 0.0001237876112 | AA31: 0.0001237876112 | AB31: 0.7590086207 | AC31: 0.02016329302 | AD31: 0.005100857143 | AE31: 0.0375552 | AF31: 0 | AG31: 0.06293609807 | AH31: 1.205889037 | AI31: 0.03490004087 | AJ31: 0.00410256 | AK31: 0.03912823395 | AL31: 0.007392 | AM31: 0.00042 | AN31: 0.01086228 | AO31: 0.02913066 | AP31: 0.02863692 | AQ31: 0.01128228 | AR31: 0.3324747795 | AS31: 0.333308067 | AT31: 0.333308067 | AU31: 4.356 | AV31: 0.9289216954 | AW31: 1.559740816 | AX31: 0.9560546609 | AZ31: 92.89216954 | BA31: 0.2121983149 | BB31: 0.109456332 | BC31: 0.06781481807 | BD31: 0.04156759395 | BE31: 0.1211097521
A32: Deadtime | B32: Input Value | C32: Units | D32: Description | G32: 23 | H32: 12 | I32: 1 | J32: 1.38 | K32: 1.38 | L32: 0.4216666667 | M32: 0.2841489351 | N32: 1.860649849 | O32: 2.310324925 | P32: 0.4496750753 | Q32: 0 | R32: 1.480844856 | S32: 0.01293811878 | T32: 0.2 | U32: 0.2131765845 | V32: 0.5371233457 | W32: 0.0002885014885 | X32: 0.0002885014885 | Y32: 0.667873044 | Z32: 0.0001338163209 | AA32: 0.0001338163209 | AB32: 0.7893735635 | AC32: 0.0218088718 | AD32: 0.005332714286 | AE32: 0.0375552 | AF32: 0 | AG32: 0.06482685574 | AH32: 1.252912952 | AI32: 0.03767498078 | AJ32: 0.00428904 | AK32: 0.0421099781 | AL32: 0.007728 | AM32: 0.00042 | AN32: 0.01086228 | AO32: 0.02913066 | AP32: 0.02863692 | AQ32: 0.01128228 | AR32: 0.3386092056 | AS32: 0.3395391925 | AT32: 0.3395391925 | AU32: 4.554 | AV32: 0.9306148006 | AW32: 1.608328722 | AX32: 1.027185016 | AZ32: 93.06148006 | BA32: 0.2131765845 | BB32: 0.1146648338 | BC32: 0.06992733574 | BD32: 0.0446602181 | BE32: 0.1263626081
A33: Deadtime | B33: 15 | C33: ns | D33: Total Deadtime | G33: 24 | H33: 12 | I33: 1 | J33: 1.44 | K33: 1.44 | L33: 0.44 | M33: 0.2845441539 | N33: 1.862708808 | O33: 2.371354404 | P33: 0.5086455961 | Q33: 0 | R33: 1.537120796 | S33: 0.01394016802 | T33: 0.2 | U33: 0.2141983342 | V33: 0.5377177158 | W33: 0.0002891403419 | X33: 0.0002891403419 | Y33: 0.6935443695 | Z33: 0.0001443011377 | AA33: 0.0001443011377 | AB33: 0.8199414317 | AC33: 0.0235306383 | AD33: 0.005564571429 | AE33: 0.0375552 | AF33: 0 | AG33: 0.06679500881 | AH33: 1.300167832 | AI33: 0.04057047337 | AJ33: 0.00447552 | AK33: 0.04521475671 | AL33: 0.008064 | AM33: 0.00042 | AN33: 0.01086228 | AO33: 0.02913066 | AP33: 0.02863692 | AQ33: 0.01128228 | AR33: 0.3449828511 | AS33: 0.3460184001 | AT33: 0.3460184001 | AU33: 4.752 | AV33: 0.9321268829 | AW33: 1.658696723 | AX33: 1.101145164 | AZ33: 93.21268829 | BA33: 0.2141983342 | BB33: 0.1200737655 | BC33: 0.07211724881 | BD33: 0.04787587671 | BE33: 0.1318200659
A34: IQ | B34: Input Value | C34: Units | D34: Description | G34: 25 | H34: 12 | I34: 1 | J34: 1.5 | K34: 1.5 | L34: 0.4583333333 | M34: 0.2849391607 | N34: 1.864764909 | O34: 2.432382455 | P34: 0.5676175453 | Q34: 0 | R34: 1.593668414 | S34: 0.01498469618 | T34: 0.2 | U34: 0.2152635867 | V34: 0.5383112612 | W34: 0.0002897790139 | X34: 0.0002897790139 | Y34: 0.7193587535 | Z34: 0.0001552431049 | AA34: 0.0001552431049 | AB34: 0.8506953041 | AC34: 0.02532888752 | AD34: 0.005796428571 | AE34: 0.0375552 | AF34: 0 | AG34: 0.0688409332 | AH34: 1.347626251 | AI34: 0.04358631632 | AJ34: 0.004662 | AK34: 0.04844256817 | AL34: 0.0084 | AM34: 0.00042 | AN34: 0.01086228 | AO34: 0.02913066 | AP34: 0.02863692 | AQ34: 0.01128228 | AR34: 0.3515958086 | AS34: 0.3527463673 | AT34: 0.3527463673 | AU34: 4.95 | AV34: 0.9334785519 | AW34: 1.710853464 | AX34: 1.177935068 | AZ34: 93.34785519 | BA34: 0.2152635867 | BB34: 0.1256835014 | BC34: 0.0743849332 | BD34: 0.05121456817 | BE34: 0.1374827806
A35: IQ | B35: =Iq*1000 -> 0.035 | C35: mA | D35: Quiescent Current Of Controller (Not Switching!) | G35: 26 | H35: 12 | I35: 1 | J35: 1.56 | K35: 1.56 | L35: 0.4766666667 | M35: 0.2853339556 | N35: 1.866818156 | O35: 2.493409078 | P35: 0.6265909219 | Q35: 0 | R35: 1.650459785 | S35: 0.01607170326 | T35: 0.2 | U35: 0.2163723655 | V35: 0.5389039825 | W35: 0.0002904175024 | X35: 0.0002904175024 | Y35: 0.7453036523 | Z35: 0.0001666432603 | AA35: 0.0001666432603 | AB35: 0.8816204904 | AC35: 0.02720391412 | AD35: 0.006028285714 | AE35: 0.0375552 | AF35: 0 | AG35: 0.07096500823 | AH35: 1.395264424 | AI35: 0.04672230752 | AJ35: 0.00484848 | AK35: 0.05179341906 | AL35: 0.008736 | AM35: 0.00042 | AN35: 0.01086228 | AO35: 0.02913066 | AP35: 0.02863692 | AQ35: 0.01128228 | AR35: 0.3584481706 | AS35: 0.3597237964 | AT35: 0.3597237964 | AU35: 5.148 | AV35: 0.9346873936 | AW35: 1.764807669 | AX35: 1.257554878 | AZ35: 93.46873936 | BA35: 0.2163723655 | BB35: 0.1314944273 | BC35: 0.07673076823 | BD35: 0.05467629906 | BE35: 0.1433514309
A36: High-side FET | B36: Input Value | C36: Units | D36: Description | G36: 27 | H36: 12 | I36: 1 | J36: 1.62 | K36: 1.62 | L36: 0.495 | M36: 0.285728539 | N36: 1.868868551 | O36: 2.554434276 | P36: 0.6855657245 | Q36: 0 | R36: 1.707470587 | S36: 0.01720118925 | T36: 0.2 | U36: 0.2175246952 | V36: 0.5394958805 | W36: 0.0002910558051 | X36: 0.0002910558051 | Y36: 0.7713681282 | Z36: 0.0001785026368 | AA36: 0.0001785026368 | AB36: 0.912704184 | AC36: 0.02915601246 | AD36: 0.006260142857 | AE36: 0.0375552 | AF36: 0 | AG36: 0.07316761671 | AH36: 1.443061633 | AI36: 0.04997824506 | AJ36: 0.00503496 | AK36: 0.05526732414 | AL36: 0.009072 | AM36: 0.00042 | AN36: 0.01086228 | AO36: 0.02913066 | AP36: 0.02863692 | AQ36: 0.01128228 | AR36: 0.3655400296 | AS36: 0.3669514147 | AT36: 0.3669514147 | AU36: 5.346 | AV36: 0.9357685042 | AW36: 1.820568144 | AX36: 1.340004935 | AZ36: 93.57685042 | BA36: 0.2175246952 | BB36: 0.1375069408 | BC36: 0.07915513671 | BD36: 0.05826108414 | BE36: 0.1494267195
A37: RdsonTop | B37: =Rdson1*1000 -> 35 | C37: mW | D37: Drain-Source Resistance of Top FET | G37: 28 | H37: 12 | I37: 1 | J37: 1.68 | K37: 1.68 | L37: 0.5133333333 | M37: 0.2861229108 | N37: 1.870916096 | O37: 2.615458048 | P37: 0.7445419521 | Q37: 0 | R37: 1.764679552 | S37: 0.01837315413 | T37: 0.2 | U37: 0.2187206012 | V37: 0.5400869558 | W37: 0.0002916939198 | X37: 0.0002916939198 | Y37: 0.7975426053 | Z37: 0.0001908222622 | AA37: 0.0001908222622 | AB37: 0.9439351762 | AC37: 0.03118547659 | AD37: 0.006492 | AE37: 0.0375552 | AF37: 0 | AG37: 0.075449145 | AH37: 1.490999766 | AI37: 0.05335392727 | AJ37: 0.00522144 | AK37: 0.05886430633 | AL37: 0.009408 | AM37: 0.00042 | AN37: 0.01086228 | AO37: 0.02913066 | AP37: 0.02863692 | AQ37: 0.01128228 | AR37: 0.372871478 | AS37: 0.3744299742 | AT37: 0.3744299742 | AU37: 5.544 | AV37: 0.9367349152 | AW37: 1.878143775 | AX37: 1.425285766 | AZ37: 93.67349152 | BA37: 0.2187206012 | BB37: 0.1437214513 | BC37: 0.081658425 | BD37: 0.06196894633 | BE37: 0.155709373
A38: RdsonTopTc | B38: =RdsonTopTc*1000000 -> 4000 | C38: ppm | D38: Drain to Source Resistance Temp Co | G38: 29 | H38: 12 | I38: 1 | J38: 1.74 | K38: 1.74 | L38: 0.5316666667 | M38: 0.2865170713 | N38: 1.872960793 | O38: 2.676480396 | P38: 0.8035196035 | Q38: 0 | R38: 1.822068013 | S38: 0.01958759788 | T38: 0.2 | U38: 0.2199601099 | V38: 0.540677209 | W38: 0.0002923318443 | X38: 0.0002923318443 | Y38: 0.8238186677 | Z38: 0.0002036031592 | AA38: 0.0002036031592 | AB38: 0.9753036189 | AC38: 0.03329260022 | AD38: 0.006723857143 | AE38: 0.0375552 | AF38: 0 | AG38: 0.07780998305 | AH38: 1.539062928 | AI38: 0.05684915269 | AJ38: 0.00540792 | AK38: 0.06258439672 | AL38: 0.009744 | AM38: 0.00042 | AN38: 0.01086228 | AO38: 0.02913066 | AP38: 0.02863692 | AQ38: 0.01128228 | AR38: 0.3804426079 | AS38: 0.3821602525 | AT38: 0.3821602525 | AU38: 5.742 | AV38: 0.937597934 | AW38: 1.93754353 | AX38: 1.513398085 | AZ38: 93.7597934 | BA38: 0.2199601099 | BB38: 0.1501383798 | BC38: 0.08424102305 | BD38: 0.06579991672 | BE38: 0.1622001425
A39: QgTop | B39: =Qg_Q1*1000000000 -> 3.182 | C39: nC | D39: Gate Charge Of Top FET | G39: 30 | H39: 12 | I39: 1 | J39: 1.8 | K39: 1.8 | L39: 0.55 | M39: 0.2869110207 | N39: 1.875002645 | O39: 2.737501322 | P39: 0.8624986776 | Q39: 0 | R39: 1.87961953 | S39: 0.0208445205 | T39: 0.2 | U39: 0.2212432489 | V39: 0.5412666408 | W39: 0.0002929695765 | X39: 0.0002929695765 | Y39: 0.8501888917 | Z39: 0.0002168463455 | AA39: 0.0002168463455 | AB39: 1.006800828 | AC39: 0.03547767676 | AD39: 0.006955714286 | AE39: 0.0375552 | AF39: 0 | AG39: 0.08025052444 | AH39: 1.587237118 | AI39: 0.06046372006 | AJ39: 0.0055944 | AK39: 0.06642763455 | AL39: 0.01008 | AM39: 0.00042 | AN39: 0.01086228 | AO39: 0.02913066 | AP39: 0.02863692 | AQ39: 0.01128228 | AR39: 0.3882535116 | AS39: 0.3901430524 | AT39: 0.3901430524 | AU39: 5.94 | AV39: 0.9383674193 | AW39: 1.998776462 | AX39: 1.604342795 | AZ39: 93.83674193 | BA39: 0.2212432489 | BB39: 0.156758159 | BC39: 0.08690332444 | BD39: 0.06975403455 | BE39: 0.1688998035
A40: QgdTop | B40: =Qgd_Q1*1000000000 -> 1.446 | C40: nC | D40: Gate to Drain Charge | G40: 31 | H40: 12 | I40: 1 | J40: 1.86 | K40: 1.86 | L40: 0.5683333333 | M40: 0.2873047592 | N40: 1.877041653 | O40: 2.798520827 | P40: 0.9214791733 | Q40: 0 | R40: 1.937319569 | S40: 0.02214392197 | T40: 0.2 | U40: 0.2225700465 | V40: 0.5418552519 | W40: 0.0002936071141 | X40: 0.0002936071141 | Y40: 0.8766467051 | Z40: 0.0002305528337 | AA40: 0.0002305528337 | AB40: 1.038419119 | AC40: 0.03774099931 | AD40: 0.007187571429 | AE40: 0.0375552 | AF40: 0 | AG40: 0.08277116646 | AH40: 1.635509966 | AI40: 0.06419742835 | AJ40: 0.00578088 | AK40: 0.07039406722 | AL40: 0.010416 | AM40: 0.00042 | AN40: 0.01086228 | AO40: 0.02913066 | AP40: 0.02863692 | AQ40: 0.01128228 | AR40: 0.3963042811 | AS40: 0.3983792028 | AT40: 0.3983792028 | AU40: 6.138 | AV40: 0.9390520056 | AW40: 2.061851709 | AX40: 1.698120986 | AZ40: 93.90520056 | BA40: 0.2225700465 | BB40: 0.1635812337 | BC40: 0.08964572646 | BD40: 0.07383134722 | BE40: 0.1758091563
A41: QgsTop | B41: =Qgs_Q1*1000000000 -> 1.977 | C41: nC | G41: 32 | H41: =Vin -> 12 | I41: =MODE -> 1 | J41: 1.92 | K41: =Iout*G41/100/Number_of_Phases -> 1.92 | L41: =Vout*K41/(Vin*Efficiency) -> 0.5866666667 | M41: =(Vout+(Rdson2+Rs+Rdcr)*K41)/(Vin+(Rs+Rdson2-Rdson1)*K41) -> 0.2876982868 | N41: =(Vin-(Rdson1+Rdcr)*K41-Vout)*M41/(Fsw*Lf) -> 1.879077821 | O41: 2.859538911 | P41: 0.9804610894 | Q41: =IF(MIN(Vin, -P41/(Coss_Q1+Coss_Q2)*0.00000002)<0, 0, MIN(Vin, -P41/(Coss_Q1+Coss_Q2)*0.00000002)) -> 0 | R41: 1.995155246 | S41: =R41^2*Rdcr -> 0.02348580228 | T41: =Core_Loss -> 0.2 | U41: =(T41+S41*(1+Ltc*(Ta-25)))/(1-S41*Ltc*ThetaCa) -> 0.223940532 | V41: 0.542443043 | W41: 0.0002942444549 | X41: 0.0002942444549 | Y41: 0.9031862695 | Z41: 0.0002447236312 | AA41: 0.0002447236312 | AB41: 1.070151667 | AC41: =Rdson1*AB41^2 -> 0.04008286065 | AD41: =(Vin*K41/2)*Fsw*(Tr_buck+Tf_buck) -> 0.007419428571 | AE41: =(0.5*Coss_Q1*(Vin-Q41)^2-0.5*Coss_Q2*(Vin-Q41)^2+(Qoss_Q2*(Vin-Q41)/Vin)*Vin)*Fsw -> 0.0375552 | AF41: =IF(K41>N41/2,0,ABS(K41-N41/2)*Vsd_Q1*Deadtime*Fsw) -> 0 | AG41: =(AF41+AE41+AD41+AC41*(1+RdsonTopTc*Ta-RdsonTopTc*25))/(1-AC41*RdsonTopTc*ThetaJA_Q1) -> 0.08537231013 | AH41: =SQRT((1-M41))*SQRT(K41^2+(N41^2)/12) -> 1.683870501 | AI41: =Rdson2*AH41^2 -> 0.06805007676 | AJ41: =IF(K41<N41/2,Deadtime*Fsw*Vsd_Q2*(K41+N41/2),2*Deadtime*Fsw*Vsd_Q2*K41) -> 0.00596736 | AK41: =(AJ41+AI41*(1+RdsonBotTc*Ta-RdsonBotTc*25))/(1-AI41*RdsonBotTc*ThetaJA_Q2) -> 0.07448375025 | AL41: =Qrr_Q2*K41/Iout*Fsw*Vin -> 0.010752 | AM41: =Iq*Vin -> 0.00042 | AN41: =IF(Ext_VCC=1, (Qg_Q1+Qg_Q2)*Fsw*Vout, (Qg_Q1+Qg_Q2)*Fsw*Vin) -> 0.01086228 | AO41: =(Vin-VCC)*Fsw*(Qg_Q1+Qg_Q2) -> 0.02913066 | AP41: =(Qg_Q1+Qg_Q2)*Fsw*(Vin-Vout) -> 0.02863692 | AQ41: =SUM(AM41:AN41) -> 0.01128228 | AR41: 0.4045950083 | AS41: =U41 + ((AF41+AE41+AD41+AC41*(1+RdsonTC*(Ta-25))) + (AJ41+AI41*(1+RdsonTC*(Ta-25))) + AQ41 + AL41) / (1-AC41*RdsonTC*ThetaJA_Q1 -AI41*RdsonTC*ThetaJA_Q2) -> 0.406869558 | AT41: 0.406869558 | AU41: =Vout*K41 -> 6.336 | AV41: 0.9396592868 | AW41: =ThetaJA_Q1*BC41 -> 2.126778493 | AX41: =ThetaJA_Q2*BD41 -> 1.794733936 | AZ41: 93.96592868 | BA41: =U41 -> 0.223940532 | BB41: =AG41+AK41+AL41 -> 0.1706080604 | BC41: =AG41+AL41*0.66 -> 0.09246863013 | BD41: =AK41+AL41*0.33 -> 0.07803191025 | BE41: 0.182929026
A42: RGateTop | B42: =Rgate1 -> 0 | C42: W | D42: Gate Resistance | G42: 33 | H42: 12 | I42: 1 | J42: =Iout*G42/100 -> 1.98 | K42: 1.98 | L42: 0.605 | M42: 0.2880916038 | N42: 1.881111151 | O42: 2.920555575 | P42: 1.039444425 | Q42: 0 | R42: 2.053115096 | S42: 0.02487016142 | T42: 0.2 | U42: 0.2253547359 | V42: 0.5430300146 | W42: 0.0002948815968 | X42: 0.0002948815968 | Y42: 0.9298023819 | Z42: 0.0002593597408 | AA42: 0.0002593597408 | AB42: 1.101992394 | AC42: 0.04250355325 | AD42: 0.007651285714 | AE42: 0.0375552 | AF42: 0 | AG42: 0.0880543603 | AH42: 1.732308968 | AI42: 0.07202146467 | AJ42: 0.00615384 | AK42: 0.07869674733 | AL42: 0.011088 | AM42: 0.00042 | AN42: 0.01086228 | AO42: 0.02913066 | AP42: 0.02863692 | AQ42: 0.01128228 | AR42: 0.4131257851 | AS42: 0.415614999 | AT42: 0.415614999 | AU42: 6.534 | AV42: 0.9401959678 | AW42: 2.193566127 | AX42: 1.894183108 | AZ42: 94.01959678 | BA42: 0.2253547359 | BB42: 0.1778391076 | BC42: 0.0953724403 | BD42: 0.08235578733 | BE42: 0.1902602632
A43: GfsTop | B43: =Gfs_Q1 -> 100 | C43: S | D43: Transconductance of Top FET | G43: 34 | H43: 12 | I43: 1 | J43: 2.04 | K43: 2.04 | L43: 0.6233333333 | M43: 0.2884847104 | N43: 1.883141644 | O43: 2.981570822 | P43: 1.098429178 | Q43: 0 | R43: 2.111188892 | S43: 0.02629699937 | T43: 0.2 | U43: 0.2268126894 | V43: 0.5436161675 | W43: 0.0002955185376 | X43: 0.0002955185376 | Y43: 0.95649039 | Z43: 0.0002744621598 | AA43: 0.0002744621598 | AB43: 1.133935867 | AC43: 0.04500336926 | AD43: 0.007883142857 | AE43: 0.0375552 | AF43: 0 | AG43: 0.09081772565 | AH43: 1.780816663 | AI43: 0.07611139169 | AJ43: 0.00634032 | AK43: 0.08303313027 | AL43: 0.011424 | AM43: 0.00042 | AN43: 0.01086228 | AO43: 0.02913066 | AP43: 0.02863692 | AQ43: 0.01128228 | AR43: 0.4218967032 | AS43: 0.4246164329 | AT43: 0.4246164329 | AU43: 6.732 | AV43: 0.9406679907 | AW43: 2.26222401 | AX43: 1.996470156 | AZ43: 94.06679907 | BA43: 0.2268126894 | BB43: 0.1852748559 | BC43: 0.09835756565 | BD43: 0.08680305027 | BE43: 0.1978037435
A44: VthTop | B44: =Vth_Q1 -> 1.2 | C44: V | D44: Threshold Voltage of Top FET | G44: 35 | H44: 12 | I44: 1 | J44: 2.1 | K44: 2.1 | L44: 0.6416666667 | M44: 0.2888776066 | N44: 1.885169303 | O44: 3.042584651 | P44: 1.157415349 | Q44: 0 | R44: 2.169367483 | S44: 0.02776631612 | T44: 0.2 | U44: 0.228314425 | V44: 0.5442015023 | W44: 0.0002961552751 | X44: 0.0002961552751 | Y44: 0.9832461219 | Z44: 0.0002900318809 | AA44: 0.0002900318809 | AB44: 1.165977218 | AC44: 0.04758260053 | AD44: 0.008115 | AE44: 0.0375552 | AF44: 0 | AG44: 0.09366281881 | AH44: 1.829385799 | AI44: 0.08031965767 | AJ44: 0.0065268 | AK44: 0.08749297903 | AL44: 0.01176 | AM44: 0.00042 | AN44: 0.01086228 | AO44: 0.02913066 | AP44: 0.02863692 | AQ44: 0.01128228 | AR44: 0.4309078543 | AS44: 0.4338747937 | AT44: 0.4338747937 | AU44: 6.93 | AV44: 0.9410806395 | AW44: 2.332761633 | AX44: 2.101596918 | AZ44: 94.10806395 | BA44: 0.228314425 | BB44: 0.1929157978 | BC44: 0.1014244188 | BD44: 0.09137377903 | BE44: 0.2055603686
A45: VspTop | B45: =Vsp_Q1 -> 1.26 | C45: V | G45: 36 | H45: 12 | I45: 1 | J45: 2.16 | K45: 2.16 | L45: 0.66 | M45: 0.2892702928 | N45: 1.88719413 | O45: 3.103597065 | P45: 1.216402935 | Q45: 0 | R45: 2.227642657 | S45: 0.02927811166 | T45: 0.2 | U45: 0.2298599759 | V45: 0.5447860196 | W45: 0.0002967918072 | X45: 0.0002967918072 | Y45: 1.010065825 | Z45: 0.0003060698915 | AA45: 0.0003060698915 | AB45: 1.198112069 | AC45: 0.05024153858 | AD45: 0.008346857143 | AE45: 0.0375552 | AF45: 0 | AG45: 0.09659005636 | AH45: 1.878009392 | AI45: 0.08464606263 | AJ45: 0.00671328 | AK45: 0.09207638172 | AL45: 0.012096 | AM45: 0.00042 | AN45: 0.01086228 | AO45: 0.02913066 | AP45: 0.02863692 | AQ45: 0.01128228 | AR45: 0.44015933 | AS45: 0.443391042 | AT45: 0.443391042 | AU45: 7.128 | AV45: 0.9414386287 | AW45: 2.405188576 | AX45: 2.20956542 | AZ45: 94.14386287 | BA45: 0.2298599759 | BB45: 0.2007624381 | BC45: 0.1045734164 | BD45: 0.09606806172 | BE45: 0.2135310661
A46: VsdTop | B46: =Vsd_Q1 -> 0.7 | C46: V | G46: 37 | H46: 12 | I46: 1 | J46: 2.22 | K46: 2.22 | L46: 0.6783333333 | M46: 0.2896627689 | N46: 1.889216129 | O46: 3.164608064 | P46: 1.275391936 | Q46: 0 | R46: 2.286007028 | S46: 0.03083238598 | T46: 0.2 | U46: 0.2314493763 | V46: 0.5453697202 | W46: 0.0002974281317 | X46: 0.0002974281317 | Y46: 1.036946116 | Z46: 0.0003225771741 | AA46: 0.0003225771741 | AB46: 1.230336477 | AC46: 0.05298047463 | AD46: 0.008578714286 | AE46: 0.0375552 | AF46: 0 | AG46: 0.09959985891 | AH46: 1.926681158 | AI46: 0.08909040684 | AJ46: 0.00689976 | AK46: 0.09678343459 | AL46: 0.012432 | AM46: 0.00042 | AN46: 0.01086228 | AO46: 0.02913066 | AP46: 0.02863692 | AQ46: 0.01128228 | AR46: 0.4496512217 | AS46: 0.4531661661 | AT46: 0.4531661661 | AU46: 7.326 | AV46: 0.9417461774 | AW46: 2.479514515 | AX46: 2.320377876 | AZ46: 94.17461774 | BA46: 0.2314493763 | BB46: 0.2088152935 | BC46: 0.1078049789 | BD46: 0.1008859946 | BE46: 0.2217167897
A47: θJATop | B47: =ThetaJA_Q1 -> 23 | C47: °C/W | D47: Junction to Ambient Resistance | G47: 38 | H47: 12 | I47: 1 | J47: 2.28 | K47: 2.28 | L47: 0.6966666667 | M47: 0.2900550353 | N47: 1.891235299 | O47: 3.22561765 | P47: 1.33438235 | Q47: 0 | R47: 2.344453934 | S47: 0.03242913905 | T47: 0.2 | U47: 0.2330826617 | V47: 0.5459526046 | W47: 0.0002980642465 | X47: 0.0002980642465 | Y47: 1.063883932 | Z47: 0.0003395547065 | AA47: 0.0003395547065 | AB47: 1.262646875 | AC47: 0.05579969959 | AD47: 0.008810571429 | AE47: 0.0375552 | AF47: 0 | AG47: 0.1026926512 | AH47: 1.975395433 | AI47: 0.09365249077 | AJ47: 0.00708624 | AK47: 0.101614242 | AL47: 0.012768 | AM47: 0.00042 | AN47: 0.01086228 | AO47: 0.02913066 | AP47: 0.02863692 | AQ47: 0.01128228 | AR47: 0.4593836208 | AS47: 0.4632011814 | AT47: 0.4632011814 | AU47: 7.524 | AV47: 0.9420070722 | AW47: 2.555749217 | AX47: 2.434036687 | AZ47: 94.20070722 | BA47: 0.2330826617 | BB47: 0.2170748932 | BC47: 0.1111195312 | BD47: 0.105827682 | BE47: 0.2301185197
A48: Low-side FET | B48: Input Value | C48: Units | D48: Description | G48: 39 | H48: 12 | I48: 1 | J48: 2.34 | K48: 2.34 | L48: 0.715 | M48: 0.2904470921 | N48: 1.893251645 | O48: 3.286625823 | P48: 1.393374177 | Q48: 0 | R48: 2.402977351 | S48: 0.03406837088 | T48: 0.2 | U48: 0.2347598681 | V48: 0.5465346736 | W48: 0.0002987001494 | X48: 0.0002987001494 | Y48: 1.090876499 | Z48: 0.0003570034611 | AA48: 0.0003570034611 | AB48: 1.295040033 | AC48: 0.05869950406 | AD48: 0.009042428571 | AE48: 0.0375552 | AF48: 0 | AG48: 0.105868862 | AH48: 2.024147095 | AI48: 0.09833211509 | AJ48: 0.00727272 | AK48: 0.1065689166 | AL48: 0.013104 | AM48: 0.00042 | AN48: 0.01086228 | AO48: 0.02913066 | AP48: 0.02863692 | AQ48: 0.01128228 | AR48: 0.4693566186 | AS48: 0.4734971314 | AT48: 0.4734971314 | AU48: 7.722 | AV48: 0.9422247212 | AW48: 2.633902546 | AX48: 2.550544442 | AZ48: 94.22247212 | BA48: 0.2347598681 | BB48: 0.2255417786 | BC48: 0.114517502 | BD48: 0.1108932366 | BE48: 0.2387372632
A49: RdsonBot | B49: =Rdson2*1000 -> 24 | C49: mW | D49: Drain-Source Resistance of Low-side FET | G49: 40 | H49: 12 | I49: 1 | J49: 2.4 | K49: 2.4 | L49: 0.7333333333 | M49: 0.2908389395 | N49: 1.895265169 | O49: 3.347632584 | P49: 1.452367416 | Q49: 0 | R49: 2.461571823 | S49: 0.03575008145 | T49: 0.2 | U49: 0.236481033 | V49: 0.5471159277 | W49: 0.0002993358384 | X49: 0.0002993358384 | Y49: 1.117921294 | Z49: 0.0003749244057 | AA49: 0.0003749244057 | AB49: 1.327513017 | AC49: 0.06168017832 | AD49: 0.009274285714 | AE49: 0.0375552 | AF49: 0 | AG49: 0.1091289245 | AH49: 2.072931506 | AI49: 0.1031290807 | AJ49: 0.0074592 | AK49: 0.111647579 | AL49: 0.01344 | AM49: 0.00042 | AN49: 0.01086228 | AO49: 0.02913066 | AP49: 0.02863692 | AQ49: 0.01128228 | AR49: 0.4795703062 | AS49: 0.4840550874 | AT49: 0.4840550874 | AU49: 7.92 | AV49: 0.9424021996 | AW49: 2.713984462 | AX49: 2.669903918 | AZ49: 94.24021996 | BA49: 0.236481033 | BB49: 0.2342165035 | BC49: 0.1179993245 | BD49: 0.116082779 | BE49: 0.2475740544
A50: RdsonBotTc | B50: =RdsonBotTc*1000000 -> 4000 | C50: ppm | D50: Drain To Source Resitance Temp Co | G50: 41 | H50: 12 | I50: 1 | J50: 2.46 | K50: 2.46 | L50: 0.7516666667 | M50: 0.2912305775 | N50: 1.897275872 | O50: 3.408637936 | P50: 1.511362064 | Q50: 0 | R50: 2.520232392 | S50: 0.03747427074 | T50: 0.2 | U50: 0.2382461945 | V50: 0.5476963677 | W50: 0.0002999713112 | X50: 0.0002999713112 | Y50: 1.145016016 | Z50: 0.0003933185031 | AA50: 0.0003933185031 | AB50: 1.360063153 | AC50: 0.06474201234 | AD50: 0.009506142857 | AE50: 0.0375552 | AF50: 0 | AG50: 0.1124732758 | AH50: 2.121744454 | AI50: 0.1080431887 | AJ50: 0.00764568 | AK50: 0.1168503582 | AL50: 0.013776 | AM50: 0.00042 | AN50: 0.01086228 | AO50: 0.02913066 | AP50: 0.02863692 | AQ50: 0.01128228 | AR50: 0.4900247747 | AS50: 0.4948761494 | AT50: 0.4948761494 | AU50: 8.118 | AV50: 0.9425422889 | AW50: 2.796005024 | AX50: 2.792118078 | AZ50: 94.25422889 | BA50: 0.2382461945 | BB50: 0.243099634 | BC50: 0.1215654358 | BD50: 0.1213964382 | BE50: 0.2566299549
A51: QgBot | B51: =Qg_Q2*1000000000 -> 5.047 | C51: nC | D51: Gate Charge Of Top FET | G51: 42 | H51: 12 | I51: 1 | J51: 2.52 | K51: 2.52 | L51: 0.77 | M51: 0.2916220064 | N51: 1.899283757 | O51: 3.469641878 | P51: 1.570358122 | Q51: 0 | R51: 2.578954549 | S51: 0.03924093874 | T51: 0.2 | U51: 0.2400553918 | V51: 0.5482759942 | W51: 0.0003006065658 | X51: 0.0003006065658 | Y51: 1.172158566 | Z51: 0.000412186711 | AA51: 0.000412186711 | AB51: 1.392688005 | AC51: 0.06788529579 | AD51: 0.009738 | AE51: 0.0375552 | AF51: 0 | AG51: 0.1159023578 | AH51: 2.170582108 | AI51: 0.1130742405 | AJ51: 0.00783216 | AK51: 0.1221773911 | AL51: 0.014112 | AM51: 0.00042 | AN51: 0.01086228 | AO51: 0.02913066 | AP51: 0.02863692 | AQ51: 0.01128228 | AR51: 0.500720115 | AS51: 0.5059614458 | AT51: 0.5059614458 | AU51: 8.316 | AV51: 0.9426475111 | AW51: 2.87997439 | AX51: 2.917190076 | AZ51: 94.26475111 | BA51: 0.2400553918 | BB51: 0.252191749 | BC51: 0.1252162778 | BD51: 0.1268343511 | BE51: 0.265906054
A52: RGateBot | B52: =Rgate2 -> 0 | C52: W | D52: Gate Resistance | G52: 43 | H52: 12 | I52: 1 | J52: 2.58 | K52: 2.58 | L52: 0.7883333333 | M52: 0.2920132264 | N52: 1.901288826 | O52: 3.530644413 | P52: 1.629355587 | Q52: 0 | R52: 2.637734179 | S52: 0.04105008544 | T52: 0.2 | U52: 0.2419086653 | V52: 0.5488548078 | W52: 0.0003012416 | X52: 0.0003012416 | Y52: 1.19934702 | Z52: 0.0004315299825 | AA52: 0.0004315299825 | AB52: 1.425385342 | AC52: 0.07111031802 | AD52: 0.009969857143 | AE52: 0.0375552 | AF52: 0 | AG52: 0.1194166165 | AH52: 2.219440972 | AI52: 0.1182220375 | AJ52: 0.00801864 | AK52: 0.1276288231 | AL52: 0.014448 | AM52: 0.00042 | AN52: 0.01086228 | AO52: 0.02913066 | AP52: 0.02863692 | AQ52: 0.01128228 | AR52: 0.5116564181 | AS52: 0.5173121344 | AT52: 0.5173121344 | AU52: 8.514 | AV52: 0.9427201577 | AW52: 2.965902819 | AX52: 3.045123251 | AZ52: 94.27201577 | BA52: 0.2419086653 | BB52: 0.2614934396 | BC52: 0.1289522965 | BD52: 0.1323966631 | BE52: 0.2754034691
A53: VsdBot | B53: =Vsd_Q2 -> 0.7 | C53: V | D53: Diode Forward Voltage of Bottom FET Body Diode | G53: 44 | H53: 12 | I53: 1 | J53: 2.64 | K53: 2.64 | L53: 0.8066666667 | M53: 0.2924042377 | N53: 1.903291082 | O53: 3.591645541 | P53: 1.688354459 | Q53: 0 | R53: 2.696567524 | S53: 0.04290171083 | T53: 0.2 | U53: 0.2438060562 | V53: 0.5494328091 | W53: 0.0003018764118 | X53: 0.0003018764118 | Y53: 1.226579615 | Z53: 0.0004513492655 | AA53: 0.0004513492655 | AB53: 1.458153118 | AC53: 0.07441736809 | AD53: 0.01020171429 | AE53: 0.0375552 | AF53: 0 | AG53: 0.1230165023 | AH53: 2.268317856 | AI53: 0.1234863815 | AJ53: 0.00820512 | AK53: 0.1332048076 | AL53: 0.014784 | AM53: 0.00042 | AN53: 0.01086228 | AO53: 0.02913066 | AP53: 0.02863692 | AQ53: 0.01128228 | AR53: 0.5228337747 | AS53: 0.5289294022 | AT53: 0.5289294022 | AU53: 8.712 | AV53: 0.9427623154 | AW53: 3.053800673 | AX53: 3.175921135 | AZ53: 94.27623154 | BA53: 0.2438060562 | BB53: 0.2710053099 | BC53: 0.1327739423 | BD53: 0.1380835276 | BE53: 0.2851233459
A54: QrrBot | B54: =Qrr_Q2*1000000000 -> 7 | C54: nC | D54: Reverse Recovery Charge of Body Diode | G54: 45 | H54: 12 | I54: 1 | J54: 2.7 | K54: 2.7 | L54: 0.825 | M54: 0.2927950403 | N54: 1.905290526 | O54: 3.652645263 | P54: 1.747354737 | Q54: 0 | R54: 2.755451143 | S54: 0.04479581489 | T54: 0.2 | U54: 0.2457476067 | V54: 0.550009999 | W54: 0.000302510999 | X54: 0.000302510999 | Y54: 1.253854727 | Z54: 0.0004716455031 | AA54: 0.0004716455031 | AB54: 1.490989458 | AC54: 0.07780673473 | AD54: 0.01043357143 | AE54: 0.0375552 | AF54: 0 | AG54: 0.1267024703 | AH54: 2.317209838 | AI54: 0.1288670744 | AJ54: 0.0083916 | AK54: 0.1389055063 | AL54: 0.01512 | AM54: 0.00042 | AN54: 0.01086228 | AO54: 0.02913066 | AP54: 0.02863692 | AQ54: 0.01128228 | AR54: 0.5342522755 | AS54: 0.5408144658 | AT54: 0.5408144658 | AU54: 8.91 | AV54: 0.942775888 | AW54: 3.143678416 | AX54: 3.309587445 | AZ54: 94.2775888 | BA54: 0.2457476067 | BB54: 0.2807279766 | BC54: 0.1366816703 | BD54: 0.1438951063 | BE54: 0.295066859
A55: TrrBot | B55: =Trr_Q2*1000000000 -> 40 | C55: ns | D55: Reverse Recovery Time of Body Diode | G55: 46 | H55: 12 | I55: 1 | J55: 2.76 | K55: 2.76 | L55: 0.8433333333 | M55: 0.2931856344 | N55: 1.907287161 | O55: 3.71364358 | P55: 1.80635642 | Q55: 0 | R55: 2.814381879 | S55: 0.04673239762 | T55: 0.2 | U55: 0.2477333601 | V55: 0.5505863779 | W55: 0.0003031453595 | X55: 0.0003031453595 | Y55: 1.281170863 | Z55: 0.0004924196338 | AA55: 0.0004924196338 | AB55: 1.523892632 | AC55: 0.08127870637 | AD55: 0.01066542857 | AE55: 0.0375552 | AF55: 0 | AG55: 0.13047498 | AH55: 2.366114242 | AI55: 0.1343639185 | AJ55: 0.00857808 | AK55: 0.1447310891 | AL55: 0.015456 | AM55: 0.00042 | AN55: 0.01086228 | AO55: 0.02913066 | AP55: 0.02863692 | AQ55: 0.01128228 | AR55: 0.5459120111 | AS55: 0.552968572 | AT55: 0.552968572 | AU55: 9.108 | AV55: 0.9427626156 | AW55: 3.23554662 | AX55: 3.446126089 | AZ55: 94.27626156 | BA55: 0.2477333601 | BB55: 0.2906620691 | BC55: 0.14067594 | BD55: 0.1498315691 | BE55: 0.3052352119
A56: θJABot | B56: =ThetaJA_Q2 -> 23 | C56: °C/W | D56: Junction to Ambient Resistance | G56: 47 | H56: 12 | I56: 1 | J56: 2.82 | K56: 2.82 | L56: 0.8616666667 | M56: 0.2935760203 | N56: 1.909280989 | O56: 3.774640495 | P56: 1.865359505 | Q56: 0 | R56: 2.873356833 | S56: 0.048711459 | T56: 0.2 | U56: 0.2497633606 | V56: 0.5511619465 | W56: 0.0003037794913 | X56: 0.0003037794913 | Y56: 1.308526641 | Z56: 0.0005136725908 | AA56: 0.0005136725908 | AB56: 1.556861046 | AC56: 0.08483357113 | AD56: 0.01089728571 | AE56: 0.0375552 | AF56: 0 | AG56: 0.1343344957 | AH56: 2.415028607 | AI56: 0.1399767162 | AJ56: 0.00876456 | AK56: 0.1506817341 | AL56: 0.015792 | AM56: 0.00042 | AN56: 0.01086228 | AO56: 0.02913066 | AP56: 0.02863692 | AQ56: 0.01128228 | AR56: 0.557813072 | AS56: 0.5653929982 | AT56: 0.5653929982 | AU56: 9.306 | AV56: 0.9427240919 | AW56: 3.329415962 | AX56: 3.585541165 | AZ56: 94.27240919 | BA56: 0.2497633606 | BB56: 0.3008082299 | BC56: 0.1447572157 | BD56: 0.1558930941 | BE56: 0.3156296376
G57: 48 | H57: 12 | I57: 1 | J57: 2.88 | K57: 2.88 | L57: 0.88 | M57: 0.2939661981 | N57: 1.911272013 | O57: 3.835636006 | P57: 1.924363994 | Q57: 0 | R57: 2.932373338 | S57: 0.05073299901 | T57: 0.2 | U57: 0.2518376534 | V57: 0.5517367055 | W57: 0.0003044133922 | X57: 0.0003044133922 | Y57: 1.335920785 | Z57: 0.0005354053028 | AA57: 0.0005354053028 | AB57: 1.589893229 | AC57: 0.08847161683 | AD57: 0.01112914286 | AE57: 0.0375552 | AF57: 0 | AG57: 0.1382814865 | AH57: 2.463950671 | AI57: 0.1457052699 | AJ57: 0.00895104 | AK57: 0.1567576278 | AL57: 0.016128 | AM57: 0.00042 | AN57: 0.01086228 | AO57: 0.02913066 | AP57: 0.02863692 | AQ57: 0.01128228 | AR57: 0.5699555486 | AS57: 0.5780890524 | AT57: 0.5780890524 | AU57: 9.504 | AV57: 0.9426617788 | AW57: 3.425297229 | AX57: 3.72783696 | AZ57: 94.26617788 | BA57: 0.2518376534 | BB57: 0.3111671143 | BC57: 0.1489259665 | BD57: 0.1620798678 | BE57: 0.326251399
G58: 49 | H58: 12 | I58: 1 | J58: 2.94 | K58: 2.94 | L58: 0.8983333333 | M58: 0.2943561679 | N58: 1.913260234 | O58: 3.896630117 | P58: 1.983369883 | Q58: 0 | R58: 2.991428933 | S58: 0.05279701766 | T58: 0.2 | U58: 0.253956285 | V58: 0.5523106556 | W58: 0.0003050470603 | X58: 0.0003050470603 | Y58: 1.363352111 | Z58: 0.0005576186935 | AA58: 0.0005576186935 | AB58: 1.622987818 | AC58: 0.09219313098 | AD58: 0.011361 | AE58: 0.0375552 | AF58: 0 | AG58: 0.1423164259 | AH58: 2.51287835 | AI58: 0.1515493825 | AJ58: 0.00913752 | AK58: 0.1629589649 | AL58: 0.016464 | AM58: 0.00042 | AN58: 0.01086228 | AO58: 0.02913066 | AP58: 0.02863692 | AQ58: 0.01128228 | AR58: 0.5823395311 | AS58: 0.5910580739 | AT58: 0.5910580739 | AU58: 9.702 | AV58: 0.9425770194 | AW58: 3.523201316 | AX58: 3.873017953 | AZ58: 94.25770194 | BA58: 0.253956285 | BB58: 0.3217393908 | BC58: 0.1531826659 | BD58: 0.1683920849 | BE58: 0.3371017889
G59: 50 | H59: 12 | I59: 1 | J59: 3 | K59: 3 | L59: 0.9166666667 | M59: 0.2947459299 | N59: 1.915245655 | O59: 3.957622828 | P59: 2.042377172 | Q59: 0 | R59: 3.050521348 | S59: 0.05490351491 | T59: 0.2 | U59: 0.2561193025 | V59: 0.5528837973 | W59: 0.0003056804933 | X59: 0.0003056804933 | Y59: 1.390819521 | Z59: 0.0005803136817 | AA59: 0.0005803136817 | AB59: 1.656143548 | AC59: 0.09599840078 | AD59: 0.01159285714 | AE59: 0.0375552 | AF59: 0 | AG59: 0.1464397926 | AH59: 2.56180972 | AI59: 0.157508857 | AJ59: 0.009324 | AK59: 0.1692859484 | AL59: 0.0168 | AM59: 0.00042 | AN59: 0.01086228 | AO59: 0.02913066 | AP59: 0.02863692 | AQ59: 0.01128228 | AR59: 0.5949651099 | AS59: 0.6043014335 | AT59: 0.6043014335 | AU59: 9.9 | AV59: 0.9424710498 | AW59: 3.62313923 | AX59: 4.021088812 | AZ59: 94.24710498 | BA59: 0.2561193025 | BB59: 0.332525741 | BC59: 0.1575277926 | BD59: 0.1748299484 | BE59: 0.3481821311
G60: 51 | H60: 12 | I60: 1 | J60: 3.06 | K60: 3.06 | L60: 0.935 | M60: 0.2951354844 | N60: 1.917228279 | O60: 4.018614139 | P60: 2.101385861 | Q60: 0 | R60: 3.109648483 | S60: 0.05705249077 | T60: 0.2 | U60: 0.2583267542 | V60: 0.5534561314 | W60: 0.0003063136893 | X60: 0.0003063136893 | Y60: 1.418321992 | Z60: 0.0006034911817 | AA60: 0.0006034911817 | AB60: 1.689359246 | AC60: 0.09988771312 | AD60: 0.01182471429 | AE60: 0.0375552 | AF60: 0 | AG60: 0.1506520702 | AH60: 2.610743003 | AI60: 0.1635834967 | AJ60: 0.00951048 | AK60: 0.1757387895 | AL60: 0.017136 | AM60: 0.00042 | AN60: 0.01086228 | AO60: 0.02913066 | AP60: 0.02863692 | AQ60: 0.01128228 | AR60: 0.6078323749 | AS60: 0.6178205343 | AT60: 0.6178205343 | AU60: 10.098 | AV60: 0.9423450092 | AW60: 3.725122094 | AX60: 4.172054399 | AZ60: 94.23450092 | BA60: 0.2583267542 | BB60: 0.3435268597 | BC60: 0.1619618302 | BD60: 0.1813936695 | BE60: 0.3594937801
A61: Controller | B61: Input Value | C61: Units | D61: Std Units | G61: 52 | H61: 12 | I61: 1 | J61: 3.12 | K61: 3.12 | L61: 0.9533333333 | M61: 0.2955248314 | N61: 1.919208106 | O61: 4.079604053 | P61: 2.160395947 | Q61: 0 | R61: 3.168808395 | S61: 0.05924394521 | T61: 0.2 | U61: 0.2605786896 | V61: 0.5540276584 | W61: 0.0003069466462 | X61: 0.0003069466462 | Y61: 1.445858571 | Z61: 0.0006271521025 | AA61: 0.0006271521025 | AB61: 1.722633819 | AC61: 0.1038613546 | AD61: 0.01205657143 | AE61: 0.0375552 | AF61: 0 | AG61: 0.154953747 | AH61: 2.659676554 | AI61: 0.1697731049 | AJ61: 0.00969696 | AK61: 0.1823177081 | AL61: 0.017472 | AM61: 0.00042 | AN61: 0.01086228 | AO61: 0.02913066 | AP61: 0.02863692 | AQ61: 0.01128228 | AR61: 0.6209414162 | AS61: 0.6316168116 | AT61: 0.6316168116 | AU61: 10.296 | AV61: 0.9421999488 | AW61: 3.829161141 | AX61: 4.325919767 | AZ61: 94.21999488 | BA61: 0.2605786896 | BB61: 0.3547434551 | BC61: 0.166485267 | BD61: 0.1880834681 | BE61: 0.371038122
A62: θJA | B62: 23 | C62: °C/W | D62: Junction to Ambient Resistance | G62: 53 | H62: 12 | I62: 1 | J62: 3.18 | K62: 3.18 | L62: 0.9716666667 | M62: 0.2959139711 | N62: 1.92118514 | O62: 4.14059257 | P62: 2.21940743 | Q62: 0 | R62: 3.227999282 | S62: 0.06147787824 | T62: 0.2 | U62: 0.2628751589 | V62: 0.554598379 | W62: 0.000307579362 | X62: 0.000307579362 | Y62: 1.473428371 | Z62: 0.0006512973489 | AA62: 0.0006512973489 | AB62: 1.75596625 | AC62: 0.1079196115 | AD62: 0.01228842857 | AE62: 0.0375552 | AF62: 0 | AG62: 0.1593453167 | AH62: 2.708608848 | AI62: 0.1760774854 | AJ62: 0.00988344 | AK62: 0.1890229322 | AL62: 0.017808 | AM62: 0.00042 | AN62: 0.01086228 | AO62: 0.02913066 | AP62: 0.02863692 | AQ62: 0.01128228 | AR62: 0.6342923237 | AS62: 0.6456917336 | AT62: 0.6456917336 | AU62: 10.494 | AV62: 0.9420368401 | AW62: 3.935267723 | AX62: 4.48269016 | AZ62: 94.20368401 | BA62: 0.2628751589 | BB62: 0.3661762488 | BC62: 0.1710985967 | BD62: 0.1948995722 | BE62: 0.3828165747
A63: Theta JC | B63: 2 | C63: °C/W | D63: Junction to Ambient Resistance | G63: 54 | H63: 12 | I63: 1 | J63: 3.24 | K63: 3.24 | L63: 0.99 | M63: 0.2963029037 | N63: 1.923159384 | O63: 4.201579692 | P63: 2.278420308 | Q63: 0 | R63: 3.287219469 | S63: 0.06375428982 | T63: 0.2 | U63: 0.2652162135 | V63: 0.5551682939 | W63: 0.0003082118345 | X63: 0.0003082118345 | Y63: 1.501030558 | Z63: 0.0006759278205 | AA63: 0.0006759278205 | AB63: 1.789355589 | AC63: 0.1120627698 | AD63: 0.01252028571 | AE63: 0.0375552 | AF63: 0 | AG63: 0.1638272779 | AH63: 2.75753847 | AI63: 0.1824964419 | AJ63: 0.01006992 | AK63: 0.1958546981 | AL63: 0.018144 | AM63: 0.00042 | AN63: 0.01086228 | AO63: 0.02913066 | AP63: 0.02863692 | AQ63: 0.01128228 | AR63: 0.6478851872 | AS63: 0.6600468017 | AT63: 0.6600468017 | AU63: 10.692 | AV63: 0.9418565821 | AW63: 4.043453311 | AX63: 4.642371017 | AZ63: 94.18565821 | BA63: 0.2652162135 | BB63: 0.377825976 | BC63: 0.1758023179 | BD63: 0.2018422181 | BE63: 0.3948305882
G64: 55 | H64: 12 | I64: 1 | J64: 3.3 | K64: 3.3 | L64: 1.008333333 | M64: 0.2966916293 | N64: 1.925130838 | O64: 4.262565419 | P64: 2.337434581 | Q64: 0 | R64: 3.3464674 | S64: 0.06607317996 | T64: 0.2 | U64: 0.2676019059 | V64: 0.5557374037 | W64: 0.0003088440619 | X64: 0.0003088440619 | Y64: 1.528664354 | Z64: 0.0007010444121 | AA64: 0.0007010444121 | AB64: 1.822800947 | AC64: 0.1162911152 | AD64: 0.01275214286 | AE64: 0.0375552 | AF64: 0 | AG64: 0.1684001345 | AH64: 2.806464105 | AI64: 0.1890297785 | AJ64: 0.0102564 | AK64: 0.2028132509 | AL64: 0.01848 | AM64: 0.00042 | AN64: 0.01086228 | AO64: 0.02913066 | AP64: 0.02863692 | AQ64: 0.01128228 | AR64: 0.6617200965 | AS64: 0.6746835514 | AT64: 0.6746835514 | AU64: 10.89 | AV64: 0.9416600075 | AW64: 4.153729493 | AX64: 4.804967972 | AZ64: 94.16600075 | BA64: 0.2676019059 | BB64: 0.3896933854 | BC64: 0.1805969345 | BD64: 0.2089116509 | BE64: 0.4070816455
G65: 56 | H65: 12 | I65: 1 | J65: 3.36 | K65: 3.36 | L65: 1.026666667 | M65: 0.2970801482 | N65: 1.927099505 | O65: 4.323549753 | P65: 2.396450247 | Q65: 0 | R65: 3.405741629 | S65: 0.06843454865 | T65: 0.2 | U65: 0.2700322895 | V65: 0.556305709 | W65: 0.0003094760419 | X65: 0.0003094760419 | Y65: 1.556329029 | Z65: 0.0007266480141 | AA65: 0.0007266480141 | AB65: 1.856301492 | AC65: 0.120604933 | AD65: 0.012984 | AE65: 0.0375552 | AF65: 0 | AG65: 0.1730643956 | AH65: 2.85538453 | AI65: 0.1956772995 | AJ65: 0.01044288 | AK65: 0.2098988439 | AL65: 0.018816 | AM65: 0.00042 | AN65: 0.01086228 | AO65: 0.02913066 | AP65: 0.02863692 | AQ65: 0.01128228 | AR65: 0.6757971412 | AS65: 0.6896035521 | AT65: 0.6896035521 | AU65: 11.088 | AV65: 0.9414478889 | AW65: 4.26610798 | AX65: 4.970486849 | AZ65: 94.14478889 | BA65: 0.2700322895 | BB65: 0.4017792395 | BC65: 0.1854829556 | BD65: 0.2161081239 | BE65: 0.4195712626
A66: Outputs | G66: 57 | H66: 12 | I66: 1 | J66: 3.42 | K66: 3.42 | L66: 1.045 | M66: 0.2974684604 | N66: 1.929065388 | O66: 4.384532694 | P66: 2.455467306 | Q66: 0 | R66: 3.465040804 | S66: 0.07083839586 | T66: 0.2 | U66: 0.2725074187 | V66: 0.5568732105 | W66: 0.0003101077726 | X66: 0.0003101077726 | Y66: 1.584023897 | Z66: 0.0007527395119 | AA66: 0.0007527395119 | AB66: 1.889856445 | AC66: 0.1250045084 | AD66: 0.01321585714 | AE66: 0.0375552 | AF66: 0 | AG66: 0.1778205759 | AH66: 2.904298606 | AI66: 0.2024388094 | AJ66: 0.01062936 | AK66: 0.2171117388 | AL66: 0.019152 | AM66: 0.00042 | AN66: 0.01086228 | AO66: 0.02913066 | AP66: 0.02863692 | AQ66: 0.01128228 | AR66: 0.6901164107 | AS66: 0.704808408 | AT66: 0.704808408 | AU66: 11.286 | AV66: 0.9412209432 | AW66: 4.380600605 | AX66: 5.138933673 | AZ66: 94.12209432 | BA66: 0.2725074187 | BB66: 0.4140843147 | BC66: 0.1904608959 | BD66: 0.2234318988 | BE66: 0.4323009893
A67: Design | B67: Value | C67: Units | G67: 58 | H67: 12 | I67: 1 | J67: 3.48 | K67: 3.48 | L67: 1.063333333 | M67: 0.2978565662 | N67: 1.931028489 | O67: 4.445514244 | P67: 2.514485756 | Q67: 0 | R67: 3.524363666 | S67: 0.07328472159 | T67: 0.2 | U67: 0.2750273491 | V67: 0.5574399088 | W67: 0.000310739252 | X67: 0.000310739252 | Y67: 1.611748312 | Z67: 0.0007793197861 | AA67: 0.0007793197861 | AB67: 1.923465073 | AC67: 0.129490126 | AD67: 0.01344771429 | AE67: 0.0375552 | AF67: 0 | AG67: 0.1826691951 | AH67: 2.95320527 | AI67: 0.2093141128 | AJ67: 0.01081584 | AK67: 0.2244522061 | AL67: 0.019488 | AM67: 0.00042 | AN67: 0.01086228 | AO67: 0.02913066 | AP67: 0.02863692 | AQ67: 0.01128228 | AR67: 0.7046779947 | AS67: 0.7202997587 | AT67: 0.7202997587 | AU67: 11.484 | AV67: 0.9409798372 | AW67: 4.497219328 | AX67: 5.310314661 | AZ67: 94.09798372 | BA67: 0.2750273491 | BB67: 0.4266094013 | BC67: 0.1955312751 | BD67: 0.2308832461 | BE67: 0.4452724096
A68: Dmax | B68: =D1_Vinmin -> 0.3666666667 | C68: index | G68: 59 | H68: 12 | I68: 1 | J68: 3.54 | K68: 3.54 | L68: 1.081666667 | M68: 0.2982444657 | N68: 1.932988809 | O68: 4.506494405 | P68: 2.573505595 | Q68: 0 | R68: 3.583709039 | S68: 0.07577352582 | T68: 0.2 | U68: 0.2775921371 | V68: 0.5580058046 | W68: 0.000311370478 | X68: 0.000311370478 | Y68: 1.639501665 | Z68: 0.0008063897128 | AA68: 0.0008063897128 | AB68: 1.957126687 | AC68: 0.1340620704 | AD68: 0.01367957143 | AE68: 0.0375552 | AF68: 0 | AG68: 0.1876107788 | AH68: 3.002103531 | AI68: 0.2163030146 | AJ68: 0.01100232 | AK68: 0.2319205246 | AL68: 0.019824 | AM68: 0.00042 | AN68: 0.01086228 | AO68: 0.02913066 | AP68: 0.02863692 | AQ68: 0.01128228 | AR68: 0.7194819823 | AS68: 0.7360792791 | AT68: 0.7360792791 | AU68: 11.682 | AV68: 0.9407251909 | AW68: 4.615976233 | AX68: 5.484636227 | AZ68: 94.07251909 | BA68: 0.2775921371 | BB68: 0.4393553035 | BC68: 0.2006946188 | BD68: 0.2384624446 | BE68: 0.458487142
A69: Dprime | B69: =1-B68 -> 0.6333333333 | C69: index | G69: 60 | H69: 12 | I69: =MODE -> 1 | J69: 3.6 | K69: 3.6 | L69: 1.1 | M69: 0.298632159 | N69: 1.934946352 | O69: 4.567473176 | P69: 2.632526824 | Q69: 0 | R69: 3.643075823 | S69: 0.07830480855 | T69: 0.2 | U69: 0.2802018405 | V69: 0.5585708985 | W69: 0.0003120014487 | X69: 0.0003120014487 | Y69: 1.667283382 | Z69: 0.0008339501632 | AA69: 0.0008339501632 | AB69: 1.990840638 | AC69: 0.1387206257 | AD69: 0.01391142857 | AE69: 0.0375552 | AF69: 0 | AG69: 0.192645858 | AH69: 3.050992462 | AI69: 0.22340532 | AJ69: 0.0111888 | AK69: 0.2395169819 | AL69: 0.02016 | AM69: 0.00042 | AN69: 0.01086228 | AO69: 0.02913066 | AP69: 0.02863692 | AQ69: 0.01128228 | AR69: 0.7345284628 | AS69: 0.7521486808 | AT69: 0.7521486808 | AU69: 11.88 | AV69: 0.9404575817 | AW69: 4.736883534 | AX69: 5.661904984 | AZ69: 94.04575817 | BA69: 0.2802018405 | BB69: 0.4523228399 | BC69: 0.205951458 | BD69: 0.2461697819 | BE69: 0.4719468403
A70: Ipp | B70: =Iripple_Vinnom -> 1.867400452 | C70: A | G70: 61 | H70: 12 | I70: 1 | J70: 3.66 | K70: 3.66 | L70: 1.118333333 | M70: 0.2990196464 | N70: 1.936901119 | O70: 4.628450559 | P70: 2.691549441 | Q70: 0 | R70: 3.702462986 | S70: 0.08087856976 | T70: 0.2 | U70: 0.2828565178 | V70: 0.5591351912 | W70: 0.000312632162 | X70: 0.000312632162 | Y70: 1.695092922 | Z70: 0.000862002004 | AA70: 0.000862002004 | AB70: 2.024606316 | AC70: 0.1434660757 | AD70: 0.01414328571 | AE70: 0.0375552 | AF70: 0 | AG70: 0.1977749693 | AH70: 3.099871195 | AI70: 0.2306208343 | AJ70: 0.01137528 | AK70: 0.247241874 | AL70: 0.020496 | AM70: 0.00042 | AN70: 0.01086228 | AO70: 0.02913066 | AP70: 0.02863692 | AQ70: 0.01128228 | AR70: 0.7498175254 | AS70: 0.7685097117 | AT70: 0.7685097117 | AU70: 12.078 | AV70: 0.9401775479 | AW70: 4.859953574 | AX70: 5.842127741 | AZ70: 94.01775479 | BA70: 0.2828565178 | BB70: 0.4655128433 | BC70: 0.2113023293 | BD70: 0.254005554 | BE70: 0.4856531939
A71: Top FET | B71: Value | C71: Units | G71: 62 | H71: 12 | I71: 1 | J71: 3.72 | K71: 3.72 | L71: 1.136666667 | M71: 0.299406928 | N71: 1.938853113 | O71: 4.689426556 | P71: 2.750573444 | Q71: 0 | R71: 3.761869564 | S71: 0.08349480943 | T71: 0.2 | U71: 0.2855562288 | V71: 0.5596986832 | W71: 0.000313262616 | X71: 0.000313262616 | Y71: 1.722929769 | Z71: 0.000890546097 | AA71: 0.000890546097 | AB71: 2.058423142 | AC71: 0.1482987041 | AD71: 0.01437514286 | AE71: 0.0375552 | AF71: 0 | AG71: 0.2029986552 | AH71: 3.14873892 | AI71: 0.2379493629 | AJ71: 0.01156176 | AK71: 0.2550955057 | AL71: 0.020832 | AM71: 0.00042 | AN71: 0.01086228 | AO71: 0.02913066 | AP71: 0.02863692 | AQ71: 0.01128228 | AR71: 0.7653492592 | AS71: 0.7851641574 | AT71: 0.7851641574 | AU71: 12.276 | AV71: 0.9398855915 | AW71: 4.985198829 | AX71: 6.02531151 | AZ71: 93.98855915 | BA71: 0.2855562288 | BB71: 0.4789261608 | BC71: 0.2167477752 | BD71: 0.2619700657 | BE71: 0.4996079287
A72: Tr | B72: =(Qgd_Q1+Qgs_Q1/2)*(RdsonDRT+Rgate1)/(VCC-Vsp_Q1)*1000000000 -> 0.644047619 | C72: ns | D72: Turn on of MOSFET -> Rise time of current | G72: 63 | H72: 12 | I72: 1 | J72: 3.78 | K72: 3.78 | L72: 1.155 | M72: 0.299794004 | N72: 1.940802335 | O72: 4.750401167 | P72: 2.809598833 | Q72: 0 | R72: 3.821294651 | S72: 0.08615352757 | T72: 0.2 | U72: 0.2883010341 | V72: 0.5602613753 | W72: 0.0003138928086 | X72: 0.0003138928086 | Y72: 1.750793439 | Z72: 0.0009195832994 | AA72: 0.0009195832994 | AB72: 2.09229057 | AC72: 0.153218794 | AD72: 0.014607 | AE72: 0.0375552 | AF72: 0 | AG72: 0.2083174639 | AH72: 3.197594874 | AI72: 0.2453907115 | AJ72: 0.01174824 | AK72: 0.2630781904 | AL72: 0.021168 | AM72: 0.00042 | AN72: 0.01086228 | AO72: 0.02913066 | AP72: 0.02863692 | AQ72: 0.01128228 | AR72: 0.7811237531 | AS72: 0.8021138412 | AT72: 0.8021138412 | AU72: 12.474 | AV72: 0.9395821811 | AW72: 5.112631909 | AX72: 6.211463499 | AZ72: 93.95821811 | BA72: 0.2883010341 | BB72: 0.4925636543 | BC72: 0.2222883439 | BD72: 0.2700636304 | BE72: 0.5138128071
A73: Tf | B73: =(Qgd_Q1+Qgs_Q1/2)*(RdsonDRT2+Rgate1)/(Vsp_Q1)*1000000000 -> 0.9660714286 | C73: ns | D73: Turn off of MOSFET -> Fall time of current | G73: 64 | H73: =Vin -> 12 | I73: =MODE -> 1 | J73: 3.84 | K73: =Iout*G73/100/Number_of_Phases -> 3.84 | L73: =Vout*K73/(Vin*Efficiency) -> 1.173333333 | M73: =(Vout+(Rdson2+Rs+Rdcr)*K73)/(Vin+(Rs+Rdson2-Rdson1)*K73) -> 0.3001808745 | N73: =(Vin-(Rdson1+Rdcr)*K73-Vout)*M73/(Fsw*Lf) -> 1.942748788 | O73: 4.811374394 | P73: 2.868625606 | Q73: =IF(MIN(Vin, -P73/(Coss_Q1+Coss_Q2)*0.00000002)<0, 0, MIN(Vin, -P73/(Coss_Q1+Coss_Q2)*0.00000002)) -> 0 | R73: 3.880737396 | S73: =R73^2*Rdcr -> 0.08885472415 | T73: =Core_Loss -> 0.2 | U73: =(T73+S73*(1+Ltc*(Ta-25)))/(1-S73*Ltc*ThetaCa) -> 0.2910909956 | V73: 0.560823268 | W73: 0.0003145227379 | X73: 0.0003145227379 | Y73: 1.778683468 | Z73: 0.0009491144637 | AA73: 0.0009491144637 | AB73: 2.126208083 | AC73: =Rdson1*AB73^2 -> 0.1582266285 | AD73: =(Vin*K73/2)*Fsw*(Tr_buck+Tf_buck) -> 0.01483885714 | AE73: =(0.5*Coss_Q1*(Vin-Q73)^2-0.5*Coss_Q2*(Vin-Q73)^2+(Qoss_Q2*(Vin-Q73)/Vin)*Vin)*Fsw -> 0.0375552 | AF73: =IF(K73>N73/2,0,ABS(K73-N73/2)*Vsd_Q1*Deadtime*Fsw) -> 0 | AG73: =(AF73+AE73+AD73+AC73*(1+RdsonTopTc*Ta-RdsonTopTc*25))/(1-AC73*RdsonTopTc*ThetaJA_Q1) -> 0.2137319495 | AH73: =SQRT((1-M73))*SQRT(K73^2+(N73^2)/12) -> 3.246438344 | AI73: =Rdson2*AH73^2 -> 0.2529446862 | AJ73: =IF(K73<N73/2,Deadtime*Fsw*Vsd_Q2*(K73+N73/2),2*Deadtime*Fsw*Vsd_Q2*K73) -> 0.01193472 | AK73: =(AJ73+AI73*(1+RdsonBotTc*Ta-RdsonBotTc*25))/(1-AI73*RdsonBotTc*ThetaJA_Q2) -> 0.2711902504 | AL73: =Qrr_Q2*K73/Iout*Fsw*Vin -> 0.021504 | AM73: =Iq*Vin -> 0.00042 | AN73: =IF(Ext_VCC=1, (Qg_Q1+Qg_Q2)*Fsw*Vout, (Qg_Q1+Qg_Q2)*Fsw*Vin) -> 0.01086228 | AO73: =(Vin-VCC)*Fsw*(Qg_Q1+Qg_Q2) -> 0.02913066 | AP73: =(Qg_Q1+Qg_Q2)*Fsw*(Vin-Vout) -> 0.02863692 | AQ73: 0.01128228 | AR73: 0.797141096 | AS73: =U73 + ((AF73+AE73+AD73+AC73*(1+RdsonTC*(Ta-25))) + (AJ73+AI73*(1+RdsonTC*(Ta-25))) + AQ73 + AL73) / (1-AC73*RdsonTC*ThetaJA_Q1 -AI73*RdsonTC*ThetaJA_Q2) -> 0.8193606247 | AT73: 0.8193606247 | AU73: =Vout*K73 -> 12.672 | AV73: 0.9392677546 | AW73: =ThetaJA_Q1*BC73 -> 5.242265559 | AX73: =ThetaJA_Q2*BD73 -> 6.400591119 | AZ73: 93.92677546 | BA73: =U73 -> 0.2910909956 | BB73: =AG73+AK73+AL73 -> 0.5064261999 | BC73: =AG73+AL73*0.66 -> 0.2279245895 | BD73: =AK73+AL73*0.33 -> 0.2782865704 | BE73: 0.528269629
A74: Part Power | B74: Value | C74: Units | G74: 65 | H74: 12 | I74: 1 | J74: =Iout*G74/100 -> 3.9 | K74: 3.9 | L74: 1.191666667 | M74: 0.3005675397 | N74: 1.944692475 | O74: =K74+N74/2 -> 4.872346237 | P74: =K74-N74/2 -> 2.927653763 | Q74: 0 | R74: =SQRT(K74^2+(N74^2)/12) -> 3.940197 | S74: 0.09159839917 | T74: 0.2 | U74: 0.2939261762 | V74: =N74/SQRT(12) -> 0.561384362 | W74: =RCoutEsr*V74^2 -> 0.0003151524018 | X74: =W74 -> 0.0003151524018 | Y74: =SQRT(M74*(1-M74))*SQRT(K74^2+(N74^2)/12) -> 1.806599419 | Z74: =RCinEsr*Y74^2 -> 0.0009791404379 | AA74: =Z74 -> 0.0009791404379 | AB74: =SQRT(M74)*SQRT(K74^2+(N74^2)/12) -> 2.160175192 | AC74: 0.1633224901 | AD74: 0.01507071429 | AE74: 0.0375552 | AF74: 0 | AG74: 0.2192426722 | AH74: 3.29526866 | AI74: 0.260611093 | AJ74: 0.0121212 | AK74: 0.2794320167 | AL74: 0.02184 | AM74: 0.00042 | AN74: 0.01086228 | AO74: 0.02913066 | AP74: 0.02863692 | AQ74: 0.01128228 | AR74: =SUM(S74,T74,AC74,AD74,AE74,AF74,AI74,AJ74,AQ74, AL74) -> 0.8134013766 | AS74: 0.8369064087 | AT74: =AS74 -> 0.8369064087 | AU74: 12.87 | AV74: =AU74/(AU74+AT74) -> 0.938942721 | AW74: 5.374112662 | AX74: 6.592701983 | AZ74: =AV74*100 -> 93.8942721 | BA74: 0.2939261762 | BB74: 0.5205146889 | BC74: 0.2336570722 | BD74: 0.2866392167 | BE74: =AS74-BA74 -> 0.5429802325
A75: Power Dis | B75: =AQ9 -> 0.01128228 | C75: W | G75: 66 | H75: 12 | I75: 1 | J75: 3.96 | K75: 3.96 | L75: 1.21 | M75: 0.3009539997 | N75: 1.946633397 | O75: 4.933316698 | P75: 2.986683302 | Q75: 0 | R75: 3.999672711 | S75: 0.09438455261 | T75: 0.2 | U75: 0.2968066398 | V75: 0.5619446579 | W75: 0.0003157817985 | X75: 0.0003157817985 | Y75: 1.834540874 | Z75: 0.001009662065 | AA75: 0.001009662065 | AB75: 2.194191431 | AC75: 0.1685066613 | AD75: 0.01530257143 | AE75: 0.0375552 | AF75: 0 | AG75: 0.2248501983 | AH75: 3.34408519 | AI75: 0.2683897383 | AJ75: 0.01230768 | AK75: 0.2878038289 | AL75: 0.022176 | AM75: 0.00042 | AN75: 0.01086228 | AO75: 0.02913066 | AP75: 0.02863692 | AQ75: =SUM(AM75:AN75) -> 0.01128228 | AR75: 0.8299046836 | AS75: 0.8547531337 | AT75: 0.8547531337 | AU75: 13.068 | AV75: 0.9386074632 | AW75: 5.508186241 | AX75: 6.787803906 | AZ75: 93.86074632 | BA75: 0.2968066398 | BB75: 0.5348300273 | BC75: 0.2394863583 | BD75: 0.2951219089 | BE75: 0.5579464939
A76: Temp rise | B76: =B75*B62 -> 0.25949244 | C76: °C | G76: 67 | H76: 12 | I76: 1 | J76: 4.02 | K76: 4.02 | L76: 1.228333333 | M76: 0.3013402548 | N76: 1.948571557 | O76: 4.994285778 | P76: 3.045714222 | Q76: 0 | R76: 4.059163821 | S76: 0.09721318446 | T76: 0.2 | U76: 0.2997324513 | V76: 0.5625041564 | W76: 0.0003164109259 | X76: 0.0003164109259 | Y76: 1.862507436 | Z76: 0.001040680184 | AA76: 0.001040680184 | AB76: 2.228256359 | AC76: 0.1737794241 | AD76: 0.01553442857 | AE76: 0.0375552 | AF76: 0 | AG76: 0.2305551001 | AH76: 3.392887343 | AI76: 0.2762804286 | AJ76: 0.01249416 | AK76: 0.296306036 | AL76: 0.022512 | AM76: 0.00042 | AN76: 0.01086228 | AO76: 0.02913066 | AP76: 0.02863692 | AQ76: 0.01128228 | AR76: 0.8466511057 | AS76: 0.8729027803 | AT76: 0.8729027803 | AU76: 13.266 | AV76: 0.9382623395 | AW76: 5.644499461 | AX76: 6.985904907 | AZ76: 93.82623395 | BA76: 0.2997324513 | BB76: 0.549373136 | BC76: 0.2454130201 | BD76: 0.303734996 | BE76: 0.573170329
A77: Current (switching) | B77: =(Qg_Q1+Qg_Q2)*Fsw+Iq -> 0.0033266 | C77: A | G77: 68 | H77: 12 | I77: 1 | J77: 4.08 | K77: 4.08 | L77: 1.246666667 | M77: 0.301726305 | N77: 1.950506956 | O77: 5.055253478 | P77: 3.104746522 | Q77: 0 | R77: 4.118669662 | S77: 0.1000842947 | T77: 0.2 | U77: 0.3027036768 | V77: 0.563062858 | W77: 0.0003170397821 | X77: 0.0003170397821 | Y77: 1.890498725 | Z77: 0.001072195629 | AA77: 0.001072195629 | AB77: 2.262369556 | AC77: 0.1791410602 | AD77: 0.01576628571 | AE77: 0.0375552 | AF77: 0 | AG77: 0.2363579561 | AH77: 3.44167456 | AI77: 0.2842829706 | AJ77: 0.01268064 | AK77: 0.3049389953 | AL77: 0.022848 | AM77: 0.00042 | AN77: 0.01086228 | AO77: 0.02913066 | AP77: 0.02863692 | AQ77: 0.01128228 | AR77: 0.8636407313 | AS77: 0.89135737 | AT77: 0.89135737 | AU77: 13.464 | AV77: 0.9379076851 | AW77: 5.78306563 | AX77: 7.187013211 | AZ77: 93.79076851 | BA77: 0.3027036768 | BB77: 0.5641449514 | BC77: 0.2514376361 | BD77: 0.3124788353 | BE77: 0.5886536931
A78: Qrr Current | B78: =Qrr_Q2*Fsw -> 0.0028 | C78: A | G78: 69 | H78: 12 | I78: 1 | J78: 4.14 | K78: 4.14 | L78: 1.265 | M78: 0.3021121506 | N78: 1.952439597 | O78: 5.116219799 | P78: 3.163780201 | Q78: 0 | R78: 4.178189604 | S78: 0.1029978834 | T78: 0.2 | U78: 0.3057203836 | V78: 0.5636207636 | W78: 0.0003176683651 | X78: 0.0003176683651 | Y78: 1.918514381 | Z78: 0.001104209229 | AA78: 0.001104209229 | AB78: 2.29653062 | AC78: 0.1845918511 | AD78: 0.01599814286 | AE78: 0.0375552 | AF78: 0 | AG78: 0.2422593514 | AH78: 3.490446315 | AI78: 0.2923971714 | AJ78: 0.01286712 | AK78: 0.3137030734 | AL78: 0.023184 | AM78: 0.00042 | AN78: 0.01086228 | AO78: 0.02913066 | AP78: 0.02863692 | AQ78: 0.01128228 | AR78: 0.8808736488 | AS78: 0.910118966 | AT78: 0.910118966 | AU78: 13.662 | AV78: 0.9375438144 | AW78: 5.923898202 | AX78: 7.391137248 | AZ78: 93.75438144 | BA78: 0.3057203836 | BB78: 0.5791464248 | BC78: 0.2575607914 | BD78: 0.3213537934 | BE78: 0.6043985824
A79: Diode Current | B79: =Deadtime*Fsw*(Iripple_Vinnom/2)*(Vsd_Q2)/Vin -> 0.0001209141793 | G79: 70 | H79: 12 | I79: 1 | J79: 4.2 | K79: 4.2 | L79: 1.283333333 | M79: 0.3024977917 | N79: 1.954369483 | O79: 5.177184741 | P79: 3.222815259 | Q79: 0 | R79: 4.237723053 | S79: 0.1059539504 | T79: 0.2 | U79: 0.3087826398 | V79: 0.5641778735 | W79: 0.000318296673 | X79: 0.000318296673 | Y79: 1.946554056 | Z79: 0.001136721808 | AA79: 0.001136721808 | AB79: 2.330739172 | AC79: 0.190132078 | AD79: 0.01623 | AE79: 0.0375552 | AF79: 0 | AG79: 0.2482598773 | AH79: 3.539202112 | AI79: 0.3006228381 | AJ79: 0.0130536 | AK79: 0.322598646 | AL79: 0.02352 | AM79: 0.00042 | AN79: 0.01086228 | AO79: 0.02913066 | AP79: 0.02863692 | AQ79: 0.01128228 | AR79: 0.8983499465 | AS79: 0.9291896736 | AT79: 0.9291896736 | AU79: 13.86 | AV79: 0.9371710219 | AW79: 6.067010779 | AX79: 7.598285657 | AZ79: 93.71710219 | BA79: 0.3087826398 | BB79: 0.5943785233 | BC79: 0.2637830773 | BD79: 0.330360246 | BE79: 0.6204070339
A80: Total | B80: =SUM(B77:B79) -> 0.006247514179 | C80: A | G80: 71 | H80: 12 | I80: 1 | J80: 4.26 | K80: 4.26 | L80: 1.301666667 | M80: 0.3028832285 | N80: 1.956296615 | O80: 5.238148307 | P80: 3.281851693 | Q80: 0 | R80: 4.297269447 | S80: 0.1089524958 | T80: 0.2 | U80: 0.3118905146 | V80: 0.5647341886 | W80: 0.0003189247038 | X80: 0.0003189247038 | Y80: 1.974617421 | Z80: 0.001169734188 | AA80: 0.001169734188 | AB80: 2.364994846 | AC80: 0.1957620218 | AD80: 0.01646185714 | AE80: 0.0375552 | AF80: 0 | AG80: 0.2543601318 | AH80: 3.587941483 | AI80: 0.308959778 | AJ80: 0.01324008 | AK80: 0.3316260975 | AL80: 0.023856 | AM80: 0.00042 | AN80: 0.01086228 | AO80: 0.02913066 | AP80: 0.02863692 | AQ80: 0.01128228 | AR80: 0.9160697126 | AS80: 0.9485716411 | AT80: 0.9485716411 | AU80: 14.058 | AV80: 0.9367895837 | AW80: 6.212417112 | AX80: 7.808467283 | AZ80: 93.67895837 | BA80: 0.3118905146 | BB80: 0.6098422294 | BC80: 0.2701050918 | BD80: 0.3394985775 | BE80: 0.6366811265
G81: 72 | H81: 12 | I81: 1 | J81: 4.32 | K81: 4.32 | L81: 1.32 | M81: 0.3032684611 | N81: 1.958220995 | O81: 5.299110498 | P81: 3.340889502 | Q81: 0 | R81: 4.356828256 | S81: 0.1119935195 | T81: 0.2 | U81: 0.3150440786 | V81: 0.5652897094 | W81: 0.0003195524555 | X81: 0.0003195524555 | Y81: 2.002704158 | Z81: 0.001203247183 | AA81: 0.001203247183 | AB81: 2.399297295 | AC81: 0.2014819629 | AD81: 0.01669371429 | AE81: 0.0375552 | AF81: 0 | AG81: 0.2605607194 | AH81: 3.636663986 | AI81: 0.3174077987 | AJ81: 0.01342656 | AK81: 0.3407858218 | AL81: 0.024192 | AM81: 0.00042 | AN81: 0.01086228 | AO81: 0.02913066 | AP81: 0.02863692 | AQ81: 0.01128228 | AR81: 0.9340330353 | AS81: 0.9682670604 | AT81: 0.9682670604 | AU81: 14.256 | AV81: 0.9363997586 | AW81: 6.360131106 | AX81: 8.021691182 | AZ81: 93.63997586 | BA81: 0.3150440786 | BB81: 0.6255385412 | BC81: 0.2765274394 | BD81: 0.3487691818 | BE81: 0.6532229818
G82: 73 | H82: 12 | I82: 1 | J82: 4.38 | K82: 4.38 | L82: 1.338333333 | M82: 0.3036534897 | N82: 1.960142627 | O82: 5.360071313 | P82: 3.399928687 | Q82: 0 | R82: 4.416398977 | S82: 0.1150770216 | T82: 0.2 | U82: 0.3182434032 | V82: 0.5658444366 | W82: 0.0003201799264 | X82: 0.0003201799264 | Y82: 2.030813963 | Z82: 0.001237261605 | AA82: 0.001237261605 | AB82: 2.433646186 | AC82: 0.2072921816 | AD82: 0.01692557143 | AE82: 0.0375552 | AF82: 0 | AG82: 0.2668622512 | AH82: 3.685369204 | AI82: 0.325966708 | AJ82: 0.01361304 | AK82: 0.3500782218 | AL82: 0.024528 | AM82: 0.00042 | AN82: 0.01086228 | AO82: 0.02913066 | AP82: 0.02863692 | AQ82: 0.01128228 | AR82: 0.9522400026 | AS82: 0.9882781677 | AT82: 0.9882781677 | AU82: 14.454 | AV82: 0.9360017896 | AW82: 6.510166817 | AX82: 8.237966621 | AZ82: 93.60017896 | BA82: 0.3182434032 | BB82: 0.641468473 | BC82: 0.2830507312 | BD82: 0.3581724618 | BE82: 0.6700347645
G83: 74 | H83: 12 | I83: 1 | J83: 4.44 | K83: 4.44 | L83: 1.356666667 | M83: 0.3040383145 | N83: 1.962061511 | O83: 5.421030755 | P83: 3.458969245 | Q83: 0 | R83: 4.475981134 | S83: 0.118203002 | T83: 0.2 | U83: 0.3214885609 | V83: 0.5663983707 | W83: 0.0003208071143 | X83: 0.0003208071143 | Y83: 2.058946543 | Z83: 0.00127177826 | AA83: 0.00127177826 | AB83: 2.468041201 | AC83: 0.213192958 | AD83: 0.01715742857 | AE83: 0.0375552 | AF83: 0 | AG83: 0.2732653453 | AH83: 3.734056741 | AI83: 0.3346363138 | AJ83: 0.01379952 | AK83: 0.3595037095 | AL83: 0.024864 | AM83: 0.00042 | AN83: 0.01086228 | AO83: 0.02913066 | AP83: 0.02863692 | AQ83: 0.01128228 | AR83: 0.9706907024 | AS83: 1.008607244 | AT83: 1.008607244 | AU83: 14.652 | AV83: 0.9355959045 | AW83: 6.662538462 | AX83: 8.457303078 | AZ83: 93.55959045 | BA83: 0.3214885609 | BB83: 0.6576330548 | BC83: 0.2896755853 | BD83: 0.3677088295 | BE83: 0.6871186834
G84: 75 | H84: 12 | I84: 1 | J84: 4.5 | K84: 4.5 | L84: 1.375 | M84: 0.3044229356 | N84: 1.96397765 | O84: 5.481988825 | P84: 3.518011175 | Q84: 0 | R84: 4.535574276 | S84: 0.1213714607 | T84: 0.2 | U84: 0.3247796255 | V84: 0.5669515125 | W84: 0.0003214340175 | X84: 0.0003214340175 | Y84: 2.087101619 | Z84: 0.001306797951 | AA84: 0.001306797951 | AB84: 2.502482034 | AC84: 0.2191845716 | AD84: 0.01738928571 | AE84: 0.0375552 | AF84: 0 | AG84: 0.2797706266 | AH84: 3.782726224 | AI84: 0.3434164244 | AJ84: 0.013986 | AK84: 0.3690627064 | AL84: 0.0252 | AM84: 0.00042 | AN84: 0.01086228 | AO84: 0.02913066 | AP84: 0.02863692 | AQ84: 0.01128228 | AR84: 0.9893852225 | AS84: 1.029256617 | AT84: 1.029256617 | AU84: 14.85 | AV84: 0.9351823173 | AW84: 6.817260412 | AX84: 8.679710247 | AZ84: 93.51823173 | BA84: 0.3247796255 | BB84: 0.674033333 | BC84: 0.2964026266 | BD84: 0.3773787064 | BE84: 0.7044769919
G85: 76 | H85: 12 | I85: 1 | J85: 4.56 | K85: 4.56 | L85: 1.393333333 | M85: 0.3048073531 | N85: 1.965891047 | O85: 5.542945523 | P85: 3.577054477 | Q85: 0 | R85: 4.595177976 | S85: 0.1245823977 | T85: 0.2 | U85: 0.3281166717 | V85: 0.5675038625 | W85: 0.0003220606339 | X85: 0.0003220606339 | Y85: 2.11527892 | Z85: 0.001342321473 | AA85: 0.001342321473 | AB85: 2.536968393 | AC85: 0.2252673019 | AD85: 0.01762114286 | AE85: 0.0375552 | AF85: 0 | AG85: 0.286378727 | AH85: 3.831377299 | AI85: 0.3523068482 | AJ85: 0.01417248 | AK85: 0.3787556432 | AL85: 0.025536 | AM85: 0.00042 | AN85: 0.01086228 | AO85: 0.02913066 | AP85: 0.02863692 | AQ85: 0.01128228 | AR85: 1.008323651 | AS85: 1.050228661 | AT85: 1.050228661 | AU85: 15.048 | AV85: 0.9347612285 | AW85: 6.974347201 | AX85: 8.905198034 | AZ85: 93.47612285 | BA85: 0.3281166717 | BB85: 0.6906703702 | BC85: 0.303232487 | BD85: 0.3871825232 | BE85: 0.7221119891
G86: 77 | H86: 12 | I86: 1 | J86: 4.62 | K86: 4.62 | L86: 1.411666667 | M86: 0.3051915673 | N86: 1.967801703 | O86: 5.603900851 | P86: 3.636099149 | Q86: 0 | R86: 4.654791828 | S86: 0.1278358131 | T86: 0.2 | U86: 0.3314997755 | V86: 0.5680554214 | W86: 0.0003226869617 | X86: 0.0003226869617 | Y86: 2.143478187 | Z86: 0.001378349622 | AA86: 0.001378349622 | AB86: 2.571499996 | AC86: 0.231441428 | AD86: 0.017853 | AE86: 0.0375552 | AF86: 0 | AG86: 0.2930902856 | AH86: 3.88000963 | AI86: 0.3613073936 | AJ86: 0.01435896 | AK86: 0.3885829601 | AL86: 0.025872 | AM86: 0.00042 | AN86: 0.01086228 | AO86: 0.02913066 | AP86: 0.02863692 | AQ86: 0.01128228 | AR86: 1.027506075 | AS86: 1.071525796 | AT86: 1.071525796 | AU86: 15.246 | AV86: 0.9343328266 | AW86: 7.133813528 | AX86: 9.133776561 | AZ86: 93.43328266 | BA86: 0.3314997755 | BB86: 0.7075452456 | BC86: 0.3101658056 | BD86: 0.3971207201 | BE86: 0.7400260203
G87: 78 | H87: 12 | I87: 1 | J87: 4.68 | K87: 4.68 | L87: 1.43 | M87: 0.3055755783 | N87: 1.96970962 | O87: 5.66485481 | P87: 3.69514519 | Q87: 0 | R87: 4.714415446 | S87: 0.1311317067 | T87: 0.2 | U87: 0.3349290137 | V87: 0.5686061898 | W87: 0.000323312999 | X87: 0.000323312999 | Y87: 2.171699169 | Z87: 0.001414883184 | AA87: 0.001414883184 | AB87: 2.606076573 | AC87: 0.2377072286 | AD87: 0.01808485714 | AE87: 0.0375552 | AF87: 0 | AG87: 0.2999059484 | AH87: 3.928622901 | AI87: 0.3704178695 | AJ87: 0.01454544 | AK87: 0.3985451066 | AL87: 0.026208 | AM87: 0.00042 | AN87: 0.01086228 | AO87: 0.02913066 | AP87: 0.02863692 | AQ87: 0.01128228 | AR87: 1.046932582 | AS87: 1.093150492 | AT87: 1.093150492 | AU87: 15.444 | AV87: 0.9338972883 | AW87: 7.295674254 | AX87: 9.365456172 | AZ87: 93.38972883 | BA87: 0.3349290137 | BB87: 0.724659055 | BC87: 0.3172032284 | BD87: 0.4071937466 | BE87: 0.7582214783
G88: 79 | H88: 12 | I88: 1 | J88: 4.74 | K88: 4.74 | L88: 1.448333333 | M88: 0.3059593863 | N88: 1.971614802 | O88: 5.725807401 | P88: 3.754192599 | Q88: 0 | R88: 4.774048465 | S88: 0.1344700786 | T88: 0.2 | U88: 0.3384044647 | V88: 0.5691561683 | W88: 0.0003239387439 | X88: 0.0003239387439 | Y88: 2.199941623 | Z88: 0.001451922943 | AA88: 0.001451922943 | AB88: 2.640697864 | AC88: 0.2440649822 | AD88: 0.01831671429 | AE88: 0.0375552 | AF88: 0 | AG88: 0.3068263692 | AH88: 3.977216808 | AI88: 0.3796380849 | AJ88: 0.01473192 | AK88: 0.4086425419 | AL88: 0.026544 | AM88: 0.00042 | AN88: 0.01086228 | AO88: 0.02913066 | AP88: 0.02863692 | AQ88: 0.01128228 | AR88: 1.06660326 | AS88: 1.115105268 | AT88: 1.115105268 | AU88: 15.642 | AV88: 0.9334547793 | AW88: 7.459944411 | AX88: 9.600247424 | AZ88: 93.34547793 | BA88: 0.3384044647 | BB88: 0.7420129111 | BC88: 0.3243454092 | BD88: 0.4174020619 | BE88: 0.7767008034
G89: 80 | H89: 12 | I89: 1 | J89: 4.8 | K89: 4.8 | L89: 1.466666667 | M89: 0.3063429914 | N89: 1.973517249 | O89: 5.786758625 | P89: 3.813241375 | Q89: 0 | R89: 4.833690536 | S89: 0.1378509287 | T89: 0.2 | U89: 0.3419262075 | V89: 0.5697053575 | W89: 0.0003245641944 | X89: 0.0003245641944 | Y89: 2.228205317 | Z89: 0.00148946968 | AA89: 0.00148946968 | AB89: 2.675363618 | AC89: 0.2505149671 | AD89: 0.01854857143 | AE89: 0.0375552 | AF89: 0 | AG89: 0.3138522087 | AH89: 4.025791066 | AI89: 0.388967849 | AJ89: 0.0149184 | AK89: 0.4188757348 | AL89: 0.02688 | AM89: 0.00042 | AN89: 0.01086228 | AO89: 0.02913066 | AP89: 0.02863692 | AQ89: 0.01128228 | AR89: 1.086518196 | AS89: 1.137392693 | AT89: 1.137392693 | AU89: 15.84 | AV89: 0.9330054554 | AW89: 7.626639199 | AX89: 9.8381611 | AZ89: 93.30054554 | BA89: 0.3419262075 | BB89: 0.7596079434 | BC89: 0.3315930087 | BD89: 0.4277461348 | BE89: 0.7954664851
G90: 81 | H90: 12 | I90: 1 | J90: 4.86 | K90: 4.86 | L90: 1.485 | M90: 0.3067263938 | N90: 1.975416965 | O90: 5.847708482 | P90: 3.872291518 | Q90: 0 | R90: 4.893341328 | S90: 0.1412742572 | T90: 0.2 | U90: 0.3454943225 | V90: 0.5702537582 | W90: 0.0003251893487 | X90: 0.0003251893487 | Y90: 2.256490024 | Z90: 0.001527524169 | AA90: 0.001527524169 | AB90: 2.710073594 | AC90: 0.257057461 | AD90: 0.01878042857 | AE90: 0.0375552 | AF90: 0 | AG90: 0.3209841353 | AH90: 4.074345403 | AI90: 0.3984069711 | AJ90: 0.01510488 | AK90: 0.4292451635 | AL90: 0.027216 | AM90: 0.00042 | AN90: 0.01086228 | AO90: 0.02913066 | AP90: 0.02863692 | AQ90: 0.01128228 | AR90: 1.106677478 | AS90: 1.160015385 | AT90: 1.160015385 | AU90: 16.038 | AV90: 0.9325494623 | AW90: 7.795773993 | AX90: 10.0792082 | AZ90: 93.25494623 | BA90: 0.3454943225 | BB90: 0.7774452989 | BC90: 0.3389466953 | BD90: 0.4382264435 | BE90: 0.8145210626
G91: 82 | H91: 12 | I91: 1 | J91: 4.92 | K91: 4.92 | L91: 1.503333333 | M91: 0.3071095936 | N91: 1.977313951 | O91: 5.908656975 | P91: 3.931343025 | Q91: 0 | R91: 4.953000525 | S91: 0.1447400638 | T91: 0.2 | U91: 0.3491088913 | V91: 0.5708013709 | W91: 0.000325814205 | X91: 0.000325814205 | Y91: 2.284795527 | Z91: 0.00156608718 | AA91: 0.00156608718 | AB91: 2.74482756 | AC91: 0.2636927417 | AD91: 0.01901228571 | AE91: 0.0375552 | AF91: 0 | AG91: 0.3282228253 | AH91: 4.122879561 | AI91: 0.4079552609 | AJ91: 0.01529136 | AK91: 0.4397513163 | AL91: 0.027552 | AM91: 0.00042 | AN91: 0.01086228 | AO91: 0.02913066 | AP91: 0.02863692 | AQ91: 0.01128228 | AR91: 1.127081192 | AS91: 1.182976017 | AT91: 1.182976017 | AU91: 16.236 | AV91: 0.9320869369 | AW91: 7.967364341 | AX91: 10.32339995 | AZ91: 93.20869369 | BA91: 0.3491088913 | BB91: 0.7955261416 | BC91: 0.3464071453 | BD91: 0.4488434763 | BE91: 0.8338671257
G92: 83 | H92: 12 | I92: 1 | J92: 4.98 | K92: 4.98 | L92: 1.521666667 | M92: 0.307492591 | N92: 1.979208209 | O92: 5.969604105 | P92: 3.990395895 | Q92: 0 | R92: 5.012667829 | S92: 0.1482483487 | T92: 0.2 | U92: 0.3527699965 | V92: 0.5713481962 | W92: 0.0003264387613 | X92: 0.0003264387613 | Y92: 2.313121613 | Z92: 0.001605159479 | AA92: 0.001605159479 | AB92: 2.77962529 | AC92: 0.2704210864 | AD92: 0.01924414286 | AE92: 0.0375552 | AF92: 0 | AG92: 0.3355689622 | AH92: 4.171393293 | AI92: 0.4176125281 | AJ92: 0.01547784 | AK92: 0.450394691 | AL92: 0.027888 | AM92: 0.00042 | AN92: 0.01086228 | AO92: 0.02913066 | AP92: 0.02863692 | AQ92: 0.01128228 | AR92: 1.147729426 | AS92: 1.206277313 | AT92: 1.206277313 | AU92: 16.434 | AV92: 0.9316180074 | AW92: 8.141425971 | AX92: 10.57074781 | AZ92: 93.16180074 | BA92: 0.3527699965 | BB92: 0.8138516532 | BC92: 0.3539750422 | BD92: 0.459597731 | BE92: 0.853507316
G93: 84 | H93: 12 | I93: 1 | J93: 5.04 | K93: 5.04 | L93: 1.54 | M93: 0.3078753862 | N93: 1.981099742 | O93: 6.030549871 | P93: 4.049450129 | Q93: 0 | R93: 5.072342951 | S93: 0.1517991118 | T93: 0.2 | U93: 0.3564777219 | V93: 0.5718942347 | W93: 0.0003270630157 | X93: 0.0003270630157 | Y93: 2.341468078 | Z93: 0.001644741828 | AA93: 0.001644741828 | AB93: 2.814466568 | AC93: 0.2772427722 | AD93: 0.019476 | AE93: 0.0375552 | AF93: 0 | AG93: 0.3430232379 | AH93: 4.219886367 | AI93: 0.4273785829 | AJ93: 0.01566432 | AK93: 0.4611757954 | AL93: 0.028224 | AM93: 0.00042 | AN93: 0.01086228 | AO93: 0.02913066 | AP93: 0.02863692 | AQ93: 0.01128228 | AR93: 1.168622267 | AS93: 1.229922049 | AT93: 1.229922049 | AU93: 16.632 | AV93: 0.9311427938 | AW93: 8.317974791 | AX93: 10.82126345 | AZ93: 93.11427938 | BA93: 0.3564777219 | BB93: 0.8324230332 | BC93: 0.3616510779 | BD93: 0.4704897154 | BE93: 0.8734443274
G94: 85 | H94: 12 | I94: 1 | J94: 5.1 | K94: 5.1 | L94: 1.558333333 | M94: 0.3082579794 | N94: 1.982988552 | O94: 6.091494276 | P94: 4.108505724 | Q94: 0 | R94: 5.13202562 | S94: 0.1553923531 | T94: 0.2 | U94: 0.3602321523 | V94: 0.5724394871 | W94: 0.0003276869664 | X94: 0.0003276869664 | Y94: 2.369834723 | Z94: 0.001684834985 | AA94: 0.001684834985 | AB94: 2.849351183 | AC94: 0.2841580758 | AD94: 0.01970785714 | AE94: 0.0375552 | AF94: 0 | AG94: 0.3505863517 | AH94: 4.26835856 | AI94: 0.4372532352 | AJ94: 0.0158508 | AK94: 0.4720951472 | AL94: 0.02856 | AM94: 0.00042 | AN94: 0.01086228 | AO94: 0.02913066 | AP94: 0.02863692 | AQ94: 0.01128228 | AR94: 1.189759801 | AS94: 1.25391306 | AT94: 1.25391306 | AU94: 16.83 | AV94: 0.9306614085 | AW94: 8.497026889 | AX94: 11.07495879 | AZ94: 93.06614085 | BA94: 0.3602321523 | BB94: 0.8512414989 | BC94: 0.3694359517 | BD94: 0.4815199472 | BE94: 0.8936809076
G95: 86 | H95: 12 | I95: 1 | J95: 5.16 | K95: 5.16 | L95: 1.576666667 | M95: 0.3086403706 | N95: 1.984874641 | O95: 6.15243732 | P95: 4.16756268 | Q95: 0 | R95: 5.191715575 | S95: 0.1590280726 | T95: 0.2 | U95: 0.3640333739 | V95: 0.5729839541 | W95: 0.0003283106116 | X95: 0.0003283106116 | Y95: 2.398221355 | Z95: 0.0017254397 | AA95: 0.0017254397 | AB95: 2.884278932 | AC95: 0.2911672736 | AD95: 0.01993971429 | AE95: 0.0375552 | AF95: 0 | AG95: 0.3582590115 | AH95: 4.316809661 | AI95: 0.4472362956 | AJ95: 0.01603728 | AK95: 0.4831532743 | AL95: 0.028896 | AM95: 0.00042 | AN95: 0.01086228 | AO95: 0.02913066 | AP95: 0.02863692 | AQ95: 0.01128228 | AR95: 1.211142116 | AS95: 1.278253232 | AT95: 1.278253232 | AU95: 17.028 | AV95: 0.9301739566 | AW95: 8.678598543 | AX95: 11.33184595 | AZ95: 93.01739566 | BA95: 0.3640333739 | BB95: 0.8703082857 | BC95: 0.3773303715 | BD95: 0.4926889543 | BE95: 0.9142198585
G96: 87 | H96: 12 | I96: 1 | J96: 5.22 | K96: 5.22 | L96: 1.595 | M96: 0.3090225601 | N96: 1.986758011 | O96: 6.213379005 | P96: 4.226620995 | Q96: 0 | R96: 5.251412567 | S96: 0.1627062703 | T96: 0.2 | U96: 0.3678814739 | V96: 0.5735276361 | W96: 0.0003289339494 | X96: 0.0003289339494 | Y96: 2.426627786 | Z96: 0.001766556724 | AA96: 0.001766556724 | AB96: 2.919249619 | AC96: 0.2982706418 | AD96: 0.02017157143 | AE96: 0.0375552 | AF96: 0 | AG96: 0.3660419329 | AH96: 4.365239468 | AI96: 0.4573275747 | AJ96: 0.01622376 | AK96: 0.4943507143 | AL96: 0.029232 | AM96: 0.00042 | AN96: 0.01086228 | AO96: 0.02913066 | AP96: 0.02863692 | AQ96: 0.01128228 | AR96: 1.232769298 | AS96: 1.302945512 | AT96: 1.302945512 | AU96: 17.226 | AV96: 0.9296805363 | AW96: 8.862706218 | AX96: 11.59193731 | AZ96: 92.96805363 | BA96: 0.3678814739 | BB96: 0.8896246473 | BC96: 0.3853350529 | BD96: 0.5039972743 | BE96: 0.9350640381
G97: 88 | H97: 12 | I97: 1 | J97: 5.28 | K97: 5.28 | L97: 1.613333333 | M97: 0.3094045479 | N97: 1.988638664 | O97: 6.274319332 | P97: 4.285680668 | Q97: 0 | R97: 5.311116359 | S97: 0.1664269462 | T97: 0.2 | U97: 0.3717765406 | V97: 0.5740705339 | W97: 0.0003295569779 | X97: 0.0003295569779 | Y97: 2.455053835 | Z97: 0.001808186799 | AA97: 0.001808186799 | AB97: 2.954263051 | AC97: 0.3054684562 | AD97: 0.02040342857 | AE97: 0.0375552 | AF97: 0 | AG97: 0.3739358403 | AH97: 4.413647788 | AI97: 0.4675268832 | AJ97: 0.01641024 | AK97: 0.5056880155 | AL97: 0.029568 | AM97: 0.00042 | AN97: 0.01086228 | AO97: 0.02913066 | AP97: 0.02863692 | AQ97: 0.01128228 | AR97: 1.254641434 | AS97: 1.327992901 | AT97: 1.327992901 | AU97: 17.424 | AV97: 0.9291812391 | AW97: 9.049366567 | AX97: 11.85524548 | AZ97: 92.91812391 | BA97: 0.3717765406 | BB97: 0.9091918558 | BC97: 0.3934507203 | BD97: 0.5154454555 | BE97: 0.9562163607
G98: 89 | H98: 12 | I98: 1 | J98: 5.34 | K98: 5.34 | L98: 1.631666667 | M98: 0.3097863344 | N98: 1.990516602 | O98: 6.335258301 | P98: 4.344741699 | Q98: 0 | R98: 5.370826724 | S98: 0.1701901002 | T98: 0.2 | U98: 0.3757186636 | V98: 0.5746126481 | W98: 0.0003301796953 | X98: 0.0003301796953 | Y98: 2.483499323 | Z98: 0.001850330666 | AA98: 0.001850330666 | AB98: 2.989319045 | AC98: 0.3127609924 | AD98: 0.02063528571 | AE98: 0.0375552 | AF98: 0 | AG98: 0.3819414662 | AH98: 4.46203444 | AI98: 0.4778340322 | AJ98: 0.01659672 | AK98: 0.517165736 | AL98: 0.029904 | AM98: 0.00042 | AN98: 0.01086228 | AO98: 0.02913066 | AP98: 0.02863692 | AQ98: 0.01128228 | AR98: 1.276758611 | AS98: 1.353398462 | AT98: 1.353398462 | AU98: 17.622 | AV98: 0.9286761506 | AW98: 9.238596442 | AX98: 12.12178329 | AZ98: 92.86761506 | BA98: 0.3757186636 | BB98: 0.9290112021 | BC98: 0.4016781062 | BD98: 0.527034056 | BE98: 0.9776797985
G99: 90 | H99: 12 | I99: 1 | J99: 5.4 | K99: 5.4 | L99: 1.65 | M99: 0.3101679196 | N99: 1.992391828 | O99: 6.396195914 | P99: 4.403804086 | Q99: 0 | R99: 5.430543444 | S99: 0.1739957324 | T99: 0.2 | U99: 0.3797079336 | V99: 0.5751539792 | W99: 0.0003308020998 | X99: 0.0003308020998 | Y99: 2.511964078 | Z99: 0.001892989059 | AA99: 0.001892989059 | AB99: 3.02441742 | AC99: 0.3201485257 | AD99: 0.02086714286 | AE99: 0.0375552 | AF99: 0 | AG99: 0.3900595516 | AH99: 4.510399247 | AI99: 0.4882488328 | AJ99: 0.0167832 | AK99: 0.5287844445 | AL99: 0.03024 | AM99: 0.00042 | AN99: 0.01086228 | AO99: 0.02913066 | AP99: 0.02863692 | AQ99: 0.01128228 | AR99: 1.299120914 | AS99: 1.379165316 | AT99: 1.379165316 | AU99: 17.82 | AV99: 0.9281653502 | AW99: 9.430412888 | AX99: 12.39156382 | AZ99: 92.81653502 | BA99: 0.3797079336 | BB99: 0.9490839961 | BC99: 0.4100179516 | BD99: 0.5387636445 | BE99: 0.9994573824
G100: 91 | H100: 12 | I100: 1 | J100: 5.46 | K100: 5.46 | L100: 1.668333333 | M100: 0.3105493036 | N100: 1.994264344 | O100: 6.457132172 | P100: 4.462867828 | Q100: 0 | R100: 5.490266313 | S100: 0.1778438427 | T100: 0.2 | U100: 0.3837444426 | V100: 0.575694528 | W100: 0.0003314241895 | X100: 0.0003314241895 | Y100: 2.540447932 | Z100: 0.001936162708 | AA100: 0.001936162708 | AB100: 3.059558003 | AC100: 0.327631331 | AD100: 0.021099 | AE100: 0.0375552 | AF100: 0 | AG100: 0.3982908465 | AH100: 4.558742043 | AI100: 0.4987710965 | AJ100: 0.01696968 | AK100: 0.5405447201 | AL100: 0.030576 | AM100: 0.00042 | AN100: 0.01086228 | AO100: 0.02913066 | AP100: 0.02863692 | AQ100: 0.01128228 | AR100: 1.32172843 | AS100: 1.405296646 | AT100: 1.405296646 | AU100: 18.018 | AV100: 0.9276489119 | AW100: 9.62483315 | AX100: 12.6646004 | AZ100: 92.76489119 | BA100: 0.3837444426 | BB100: 0.9694115666 | BC100: 0.4184710065 | BD100: 0.5506348001 | BE100: 1.021552204
G101: 92 | H101: 12 | I101: 1 | J101: 5.52 | K101: 5.52 | L101: 1.686666667 | M101: 0.3109304867 | N101: 1.996134152 | O101: 6.518067076 | P101: 4.521932924 | Q101: 0 | R101: 5.549995132 | S101: 0.1817344312 | T101: 0.2 | U101: 0.3878282835 | V101: 0.5762342949 | W101: 0.0003320459626 | X101: 0.0003320459626 | Y101: 2.56895072 | Z101: 0.001979852341 | AA101: 0.001979852341 | AB101: 3.094740622 | AC101: 0.335209683 | AD101: 0.02133085714 | AE101: 0.0375552 | AF101: 0 | AG101: 0.4066361094 | AH101: 4.60706267 | AI101: 0.5094006347 | AJ101: 0.01715616 | AK101: 0.5524471523 | AL101: 0.030912 | AM101: 0.00042 | AN101: 0.01086228 | AO101: 0.02913066 | AP101: 0.02863692 | AQ101: 0.01128228 | AR101: 1.344581246 | AS101: 1.431795698 | AT101: 1.431795698 | AU101: 18.216 | AV101: 0.9271269042 | AW101: 9.821874676 | AX101: 12.94090658 | AZ101: 92.71269042 | BA101: 0.3878282835 | BB101: 0.9899952617 | BC101: 0.4270380294 | BD101: 0.5626481123 | BE101: 1.043967415
G102: 93 | H102: 12 | I102: 1 | J102: 5.58 | K102: 5.58 | L102: 1.705 | M102: 0.311311469 | N102: 1.998001253 | O102: 6.579000627 | P102: 4.580999373 | Q102: 0 | R102: 5.60972971 | S102: 0.1856674978 | T102: 0.2 | U102: 0.3919595507 | V102: 0.5767732807 | W102: 0.0003326674173 | X102: 0.0003326674173 | Y102: 2.597472284 | Z102: 0.002024058679 | AA102: 0.002024058679 | AB102: 3.129965113 | AC102: 0.3428838562 | AD102: 0.02156271429 | AE102: 0.0375552 | AF102: 0 | AG102: 0.4150961079 | AH102: 4.655360975 | AI102: 0.5201372595 | AJ102: 0.01734264 | AK102: 0.5644923414 | AL102: 0.031248 | AM102: 0.00042 | AN102: 0.01086228 | AO102: 0.02913066 | AP102: 0.02863692 | AQ102: 0.01128228 | AR102: 1.367679448 | AS102: 1.458665781 | AT102: 1.458665781 | AU102: 18.414 | AV102: 0.9265993905 | AW102: 10.02155512 | AX102: 13.22049617 | AZ102: 92.65993905 | BA102: 0.3919595507 | BB102: 1.010836449 | BC102: 0.4357197879 | BD102: 0.5748041814 | BE102: 1.06670623
G103: 94 | H103: 12 | I103: 1 | J103: 5.64 | K103: 5.64 | L103: 1.723333333 | M103: 0.3116922507 | N103: 1.999865651 | O103: 6.639932825 | P103: 4.640067175 | Q103: 0 | R103: 5.669469865 | S103: 0.1896430425 | T103: 0.2 | U103: 0.3961383396 | V103: 0.577311486 | W103: 0.0003332885518 | X103: 0.0003332885518 | Y103: 2.626012465 | Z103: 0.00206878244 | AA103: 0.00206878244 | AB103: 3.165231315 | AC103: 0.3506541247 | AD103: 0.02179457143 | AE103: 0.0375552 | AF103: 0 | AG103: 0.4236716185 | AH103: 4.703636814 | AI103: 0.5309807826 | AJ103: 0.01752912 | AK103: 0.5766808983 | AL103: 0.031584 | AM103: 0.00042 | AN103: 0.01086228 | AO103: 0.02913066 | AP103: 0.02863692 | AQ103: 0.01128228 | AR103: 1.391023121 | AS103: 1.485910268 | AT103: 1.485910268 | AU103: 18.612 | AV103: 0.9260664294 | AW103: 10.22389235 | AX103: 13.50338322 | AZ103: 92.60664294 | BA103: 0.3961383396 | BB103: 1.031936517 | BC103: 0.4445170585 | BD103: 0.5871036183 | BE103: 1.089771928
G104: 95 | H104: 12 | I104: 1 | J104: 5.7 | K104: 5.7 | L104: 1.741666667 | M104: 0.3120728319 | N104: 2.001727347 | O104: 6.700863673 | P104: 4.699136327 | Q104: 0 | R104: 5.729215423 | S104: 0.1936610652 | T104: 0.2 | U104: 0.4003647468 | V104: 0.5778489113 | W104: 0.0003339093643 | X104: 0.0003339093643 | Y104: 2.654571112 | Z104: 0.002114024337 | AA104: 0.002114024337 | AB104: 3.200539071 | AC104: 0.3585207622 | AD104: 0.02202642857 | AE104: 0.0375552 | AF104: 0 | AG104: 0.4323634272 | AH104: 4.751890047 | AI104: 0.5419310164 | AJ104: 0.0177156 | AK104: 0.5890134446 | AL104: 0.03192 | AM104: 0.00042 | AN104: 0.01086228 | AO104: 0.02913066 | AP104: 0.02863692 | AQ104: 0.01128228 | AR104: 1.414612352 | AS104: 1.513532599 | AT104: 1.513532599 | AU104: 18.81 | AV104: 0.9255280748 | AW104: 10.42890443 | AX104: 13.78958203 | AZ104: 92.55280748 | BA104: 0.4003647468 | BB104: 1.053296872 | BC104: 0.4534306272 | BD104: 0.5995470446 | BE104: 1.113167853
G105: 96 | H105: 12 | I105: 1 | J105: 5.76 | K105: 5.76 | L105: =Vout*K105/(Vin*Efficiency) -> 1.76 | M105: 0.3124532127 | N105: =(Vin-(Rdson1+Rdcr)*K105-Vout)*M105/(Fsw*Lf) -> 2.003586343 | O105: 6.761793172 | P105: 4.758206828 | Q105: =IF(MIN(Vin, -P105/(Coss_Q1+Coss_Q2)*0.00000002)<0, 0, MIN(Vin, -P105/(Coss_Q1+Coss_Q2)*0.00000002)) -> 0 | R105: 5.788966216 | S105: =R105^2*Rdcr -> 0.1977215661 | T105: 0.2 | U105: =(T105+S105*(1+Ltc*(Ta-25)))/(1-S105*Ltc*ThetaCa) -> 0.4046388703 | V105: 0.5783855573 | W105: 0.0003345298529 | X105: 0.0003345298529 | Y105: 2.683148076 | Z105: 0.002159785079 | AA105: 0.002159785079 | AB105: 3.23588823 | AC105: =Rdson1*AB105^2 -> 0.3664840423 | AD105: 0.02225828571 | AE105: 0.0375552 | AF105: 0 | AG105: =(AF105+AE105+AD105+AC105*(1+RdsonTopTc*Ta-RdsonTopTc*25))/(1-AC105*RdsonTopTc*ThetaJA_Q1) -> 0.4411723289 | AH105: 4.800120542 | AI105: =Rdson2*AH105^2 -> 0.5529877732 | AJ105: 0.01790208 | AK105: =(AJ105+AI105*(1+RdsonBotTc*Ta-RdsonBotTc*25))/(1-AI105*RdsonBotTc*ThetaJA_Q2) -> 0.601490613 | AL105: 0.032256 | AM105: 0.00042 | AN105: 0.01086228 | AO105: 0.02913066 | AP105: 0.02863692 | AQ105: 0.01128228 | AR105: 1.438447227 | AS105: 1.541536283 | AT105: 1.541536283 | AU105: 19.008 | AV105: 0.9249843762 | AW105: 10.63660965 | AX105: 14.07910714 | AZ105: 92.49843762 | BA105: 0.4046388703 | BB105: 1.074918942 | BC105: 0.4624612889 | BD105: 0.612135093 | BE105: 1.136897413
G106: 97 | H106: 12 | I106: 1 | J106: 5.82 | K106: 5.82 | L106: 1.778333333 | M106: 0.3128333934 | N106: 2.005442642 | O106: 6.822721321 | P106: 4.817278679 | Q106: 0 | R106: 5.848722084 | S106: 0.2018245451 | T106: 0.2 | U106: 0.408960809 | V106: 0.5789214246 | W106: 0.0003351500159 | X106: 0.0003351500159 | Y106: 2.71174321 | Z106: 0.002206065371 | AA106: 0.002206065371 | AB106: 3.271278642 | AC106: 0.3745442383 | AD106: 0.02249014286 | AE106: 0.0375552 | AF106: 0 | AG106: 0.4500991284 | AH106: 4.848328172 | AI106: 0.5641508655 | AJ106: 0.01808856 | AK106: 0.614113047 | AL106: 0.032592 | AM106: 0.00042 | AN106: 0.01086228 | AO106: 0.02913066 | AP106: 0.02863692 | AQ106: 0.01128228 | AR106: 1.462527832 | AS106: 1.569924896 | AT106: 1.569924896 | AU106: 19.206 | AV106: 0.9244353788 | AW106: 10.84702651 | AX106: 14.37197336 | AZ106: 92.44353788 | BA106: 0.408960809 | BB106: 1.096804175 | BC106: 0.4716098484 | BD106: 0.624868407 | BE106: 1.160964087
G107: 98 | H107: 12 | I107: 1 | J107: 5.88 | K107: 5.88 | L107: 1.796666667 | M107: 0.3132133741 | N107: 2.007296246 | O107: 6.883648123 | P107: 4.876351877 | Q107: 0 | R107: 5.908482872 | S107: 0.2059700021 | T107: 0.2 | U107: 0.4133306633 | V107: 0.5794565138 | W107: 0.0003357698514 | X107: 0.0003357698514 | Y107: 2.740356371 | Z107: 0.002252865913 | AA107: 0.002252865913 | AB107: 3.306710161 | AC107: 0.3827016232 | AD107: 0.022722 | AE107: 0.0375552 | AF107: 0 | AG107: 0.4591446399 | AH107: 4.896512816 | AI107: 0.5754201063 | AJ107: 0.01827504 | AK107: 0.6268814012 | AL107: 0.032928 | AM107: 0.00042 | AN107: 0.01086228 | AO107: 0.02913066 | AP107: 0.02863692 | AQ107: 0.01128228 | AR107: 1.486854252 | AS107: 1.598702083 | AT107: 1.598702083 | AU107: 19.404 | AV107: 0.9238811236 | AW107: 11.06017376 | AX107: 14.66819575 | AZ107: 92.38811236 | BA107: 0.4133306633 | BB107: 1.118954041 | BC107: 0.4808771199 | BD107: 0.6377476412 | BE107: 1.18537142
G108: 99 | H108: 12 | I108: 1 | J108: 5.94 | K108: 5.94 | L108: 1.815 | M108: 0.313593155 | N108: 2.009147156 | O108: 6.944573578 | P108: 4.935426422 | Q108: 0 | R108: 5.968248433 | S108: 0.2101579372 | T108: 0.2 | U108: 0.4177485347 | V108: 0.5799908256 | W108: 0.0003363893578 | X108: 0.0003363893578 | Y108: 2.768987421 | Z108: 0.002300187401 | AA108: 0.002300187401 | AB108: 3.342182647 | AC108: 0.3909564695 | AD108: 0.02295385714 | AE108: 0.0375552 | AF108: 0 | AG108: 0.4683096872 | AH108: 4.944674359 | AI108: 0.5867953084 | AJ108: 0.01846152 | AK108: 0.6397963416 | AL108: 0.033264 | AM108: 0.00042 | AN108: 0.01086228 | AO108: 0.02913066 | AP108: 0.02863692 | AQ108: 0.01128228 | AR108: 1.511426572 | AS108: 1.627871565 | AT108: 1.627871565 | AU108: 19.602 | AV108: 0.923321648 | AW108: 11.27607033 | AX108: 14.96778962 | AZ108: 92.3321648 | BA108: 0.4177485347 | BB108: 1.141370029 | BC108: 0.4902639272 | BD108: 0.6507734616 | BE108: 1.21012303
G109: 100 | H109: 12 | I109: 1 | J109: 6 | K109: 6 | L109: 1.833333333 | M109: 0.3139727361 | N109: 2.010995375 | O109: 7.005497687 | P109: 4.994502313 | Q109: 0 | R109: 6.028018624 | S109: 0.2143883503 | T109: 0.2 | U109: 0.4222145259 | V109: 0.5805243605 | W109: 0.0003370085331 | X109: 0.0003370085331 | Y109: 2.797636221 | Z109: 0.002348030527 | AA109: 0.002348030527 | AB109: 3.377695959 | AC109: 0.3993090497 | AD109: 0.02318571429 | AE109: 0.0375552 | AF109: 0 | AG109: 0.4775951043 | AH109: 4.992812688 | AI109: 0.598276285 | AJ109: 0.018648 | AK109: 0.6528585452 | AL109: 0.0336 | AM109: 0.00042 | AN109: 0.01086228 | AO109: 0.02913066 | AP109: 0.02863692 | AQ109: 0.01128228 | AR109: 1.536244879 | AS109: 1.657437131 | AT109: 1.657437131 | AU109: 19.8 | AV109: 0.9227569853 | AW109: 11.4947354 | AX109: 15.27077054 | AZ109: 92.27569853 | BA109: 0.4222145259 | BB109: 1.16405365 | BC109: 0.4997711043 | BD109: 0.6639465452 | BE109: 1.235222605

Sheet Efficiency Plot Management (hidden)
A2: ="EFF_Ch1" -> EFF_Ch1
A3: ="EFF_Ch2" -> EFF_Ch2

Sheet Bode Plot Management (hidden)
J1: Single or dual output (MODE) | N1: 3.3V or 5V fixed (FB1/2)
A2: =CHOOSE(BODE_PLOT_TYPE, "BODE_PLOT_Ch1", "BODE_PLOT_Ch2") -> BODE_PLOT_Ch1 | J2: With/without dither (DITH) | N2: With/without VOUT connected to VCCX
J3: FPWM or DEM (DEMB)
J4: Shunt or inductor DCR current sensing
F6: =INDIRECT(A2) -> 0

Sheet Standard Value Calculator (hidden)
A2: Capacitors | B2: Css | C2: Cc1ea | D2: Cc2ea | E2: Cout | F2: Cin | G2: Cres | H2: Cdither | I2: Cc3ea | J2: Cc4ea
A3: Inputs | B3: =Css ->  | C3: =Cc1ea ->  | D3: =Cc2ea ->  | E3: =Cout -> 0.00012 | F3: =Cin -> 6.58e-06 | G3: =Cres ->  | H3: =Cdither_init ->  | I3: =Cc3ea ->  | J3: =Cc4ea ->  | M3: Resistors | N3: inputs | O3: Standard Result
A4: Standard Result | B4: =SUM(B6:B158)/1000000000000 ->  | C4: =IF(C3="OPEN","OPEN",SUM(C6:C158)/1000000000000) ->  | D4: =SUM(D6:D158)/1000000000000 ->  | E4: =SUM(E6:E158)/1000000000000 -> 0.00012 | F4: =SUM(F6:F158)/1000000000000 -> 6.8e-06 | G4: =SUM(G6:G158)/1000000000000 ->  | H4: =IF(H3="OPEN","OPEN",SUM(H6:H158)/1000000000000) ->  | M4: Rt | N4: =Rfadj -> 86.6 | O4: =IF(N4>(INT(0.5+100*POWER(10,IF(96*(LOG(N4)-INT(LOG(N4)))-ROUND(96*(LOG(N4)-INT(LOG(N4))),0)<0,ROUND(96*(LOG(N4)-INT(LOG(N4))),0)-1,ROUND(96*(LOG(N4)-INT(LOG(N4))),0))/96))*POWER(10,INT(LOG(N4))-2)+INT(0.5+100*POWER(10,(IF(96*(LOG(N4)-INT(LOG(N4)))-ROUND(96*(LOG(N4)-INT(LOG(N4))),0)<0,ROUND(96*(LOG(N4)-INT(LOG(N4))),0)-1,ROUND(96*(LOG(N4)-INT(LOG(N4))),0))+1)/96))*POWER(10,INT(LOG(N4))-2))/2,INT(0.5+100*POWER(10,(IF(96*(LOG(N4)-INT(LOG(N4)))-ROUND(96*(LOG(N4)-INT(LOG(N4))),0)<0,ROUND(96*(LOG(N4)-INT(LOG(N4))),0)-1,ROUND(96*(LOG(N4)-INT(LOG(N4))),0))+1)/96))*POWER(10,INT(LOG(N4))-2),INT(0.5+100*POWER(10,IF(96*(LOG(N4)-INT(LOG(N4)))-ROUND(96*(LOG(N4)-INT(LOG(N4))),0)<0,ROUND(96*(LOG(N4)-INT(LOG(N4))),0)-1,ROUND(96*(LOG(N4)-INT(LOG(N4))),0))/96))*POWER(10,INT(LOG(N4))-2)) -> 86.6 | P4: kΩ
A5: (pF)
A6: 0.47 | B6: =IF(IF((B$3*10^12-$A7)*(B$3*10^12-$A6)*-1<0,0,1)*IF(ABS(B$3*10^12-$A7)>(B$3*10^12-$A6),$A6,$A7)=B7,0,IF((B$3*10^12-$A7)*(B$3*10^12-$A6)*-1<0,0,1)*IF(ABS(B$3*10^12-$A7)>(B$3*10^12-$A6),$A6,$A7)) ->  | E6: 0 | F6: 0
A7: 0.56 | B7: =IF(IF((B$3*10^12-$A8)*(B$3*10^12-$A7)*-1<0,0,1)*IF(ABS(B$3*10^12-$A8)>(B$3*10^12-$A7),$A7,$A8)=B8,0,IF((B$3*10^12-$A8)*(B$3*10^12-$A7)*-1<0,0,1)*IF(ABS(B$3*10^12-$A8)>(B$3*10^12-$A7),$A7,$A8)) ->  | C7: =IF(IF((C$3*10^12-$A8)*(C$3*10^12-$A7)*-1<0,0,1)*IF(ABS(C$3*10^12-$A8)>(C$3*10^12-$A7),$A7,$A8)=C8,0,IF((C$3*10^12-$A8)*(C$3*10^12-$A7)*-1<0,0,1)*IF(ABS(C$3*10^12-$A8)>(C$3*10^12-$A7),$A7,$A8)) ->  | D7: =IF(IF((D$3*10^12-$A8)*(D$3*10^12-$A7)*-1<0,0,1)*IF(ABS(D$3*10^12-$A8)>(D$3*10^12-$A7),$A7,$A8)=D8,0,IF((D$3*10^12-$A8)*(D$3*10^12-$A7)*-1<0,0,1)*IF(ABS(D$3*10^12-$A8)>(D$3*10^12-$A7),$A7,$A8)) ->  | E7: =IF(IF((E$3*10^12-$A8)*(E$3*10^12-$A7)*-1<0,0,1)*IF(ABS(E$3*10^12-$A8)>(E$3*10^12-$A7),$A7,$A8)=E8,0,IF((E$3*10^12-$A8)*(E$3*10^12-$A7)*-1<0,0,1)*IF(ABS(E$3*10^12-$A8)>(E$3*10^12-$A7),$A7,$A8)) -> 0 | F7: =IF(IF((F$3*10^12-$A8)*(F$3*10^12-$A7)*-1<0,0,1)*IF(ABS(F$3*10^12-$A8)>(F$3*10^12-$A7),$A7,$A8)=F8,0,IF((F$3*10^12-$A8)*(F$3*10^12-$A7)*-1<0,0,1)*IF(ABS(F$3*10^12-$A8)>(F$3*10^12-$A7),$A7,$A8)) -> 0 | G7: =IF(IF((G$3*10^12-$A8)*(G$3*10^12-$A7)*-1<0,0,1)*IF(ABS(G$3*10^12-$A8)>(G$3*10^12-$A7),$A7,$A8)=G8,0,IF((G$3*10^12-$A8)*(G$3*10^12-$A7)*-1<0,0,1)*IF(ABS(G$3*10^12-$A8)>(G$3*10^12-$A7),$A7,$A8)) ->  | M7: Renb | N7: =Renb -> 33333.33333 | O7: 33200 | P7: Ω
A8: 0.68 | E8: 0 | F8: 0 | M8: Rc1ea | N8: =Rcea2 ->  | O8: =IF(N8>(INT(0.5+100*POWER(10,IF(96*(LOG(N8)-INT(LOG(N8)))-ROUND(96*(LOG(N8)-INT(LOG(N8))),0)<0,ROUND(96*(LOG(N8)-INT(LOG(N8))),0)-1,ROUND(96*(LOG(N8)-INT(LOG(N8))),0))/96))*POWER(10,INT(LOG(N8))-2)+INT(0.5+100*POWER(10,(IF(96*(LOG(N8)-INT(LOG(N8)))-ROUND(96*(LOG(N8)-INT(LOG(N8))),0)<0,ROUND(96*(LOG(N8)-INT(LOG(N8))),0)-1,ROUND(96*(LOG(N8)-INT(LOG(N8))),0))+1)/96))*POWER(10,INT(LOG(N8))-2))/2,INT(0.5+100*POWER(10,(IF(96*(LOG(N8)-INT(LOG(N8)))-ROUND(96*(LOG(N8)-INT(LOG(N8))),0)<0,ROUND(96*(LOG(N8)-INT(LOG(N8))),0)-1,ROUND(96*(LOG(N8)-INT(LOG(N8))),0))+1)/96))*POWER(10,INT(LOG(N8))-2),INT(0.5+100*POWER(10,IF(96*(LOG(N8)-INT(LOG(N8)))-ROUND(96*(LOG(N8)-INT(LOG(N8))),0)<0,ROUND(96*(LOG(N8)-INT(LOG(N8))),0)-1,ROUND(96*(LOG(N8)-INT(LOG(N8))),0))/96))*POWER(10,INT(LOG(N8))-2)) ->  | P8: Ω
A9: 0.82 | E9: 0 | F9: 0
A10: 1 | E10: 0 | F10: 0 | M10: Rfb1 | N10: =Rfb1_ -> 100000 | O10: =IF(N10>(INT(0.5+100*POWER(10,IF(96*(LOG(N10)-INT(LOG(N10)))-ROUND(96*(LOG(N10)-INT(LOG(N10))),0)<0,ROUND(96*(LOG(N10)-INT(LOG(N10))),0)-1,ROUND(96*(LOG(N10)-INT(LOG(N10))),0))/96))*POWER(10,INT(LOG(N10))-2)+INT(0.5+100*POWER(10,(IF(96*(LOG(N10)-INT(LOG(N10)))-ROUND(96*(LOG(N10)-INT(LOG(N10))),0)<0,ROUND(96*(LOG(N10)-INT(LOG(N10))),0)-1,ROUND(96*(LOG(N10)-INT(LOG(N10))),0))+1)/96))*POWER(10,INT(LOG(N10))-2))/2,INT(0.5+100*POWER(10,(IF(96*(LOG(N10)-INT(LOG(N10)))-ROUND(96*(LOG(N10)-INT(LOG(N10))),0)<0,ROUND(96*(LOG(N10)-INT(LOG(N10))),0)-1,ROUND(96*(LOG(N10)-INT(LOG(N10))),0))+1)/96))*POWER(10,INT(LOG(N10))-2),INT(0.5+100*POWER(10,IF(96*(LOG(N10)-INT(LOG(N10)))-ROUND(96*(LOG(N10)-INT(LOG(N10))),0)<0,ROUND(96*(LOG(N10)-INT(LOG(N10))),0)-1,ROUND(96*(LOG(N10)-INT(LOG(N10))),0))/96))*POWER(10,INT(LOG(N10))-2)) -> 100000 | P10: Ω
A11: 1.2 | E11: 0 | F11: 0 | M11: Rfb2 | N11: =Rfb2_ -> 43478.26087 | O11: =IF(N11="OPEN","OPEN",IF(N11>(INT(0.5+100*POWER(10,IF(96*(LOG(N11)-INT(LOG(N11)))-ROUND(96*(LOG(N11)-INT(LOG(N11))),0)<0,ROUND(96*(LOG(N11)-INT(LOG(N11))),0)-1,ROUND(96*(LOG(N11)-INT(LOG(N11))),0))/96))*POWER(10,INT(LOG(N11))-2)+INT(0.5+100*POWER(10,(IF(96*(LOG(N11)-INT(LOG(N11)))-ROUND(96*(LOG(N11)-INT(LOG(N11))),0)<0,ROUND(96*(LOG(N11)-INT(LOG(N11))),0)-1,ROUND(96*(LOG(N11)-INT(LOG(N11))),0))+1)/96))*POWER(10,INT(LOG(N11))-2))/2,INT(0.5+100*POWER(10,(IF(96*(LOG(N11)-INT(LOG(N11)))-ROUND(96*(LOG(N11)-INT(LOG(N11))),0)<0,ROUND(96*(LOG(N11)-INT(LOG(N11))),0)-1,ROUND(96*(LOG(N11)-INT(LOG(N11))),0))+1)/96))*POWER(10,INT(LOG(N11))-2),INT(0.5+100*POWER(10,IF(96*(LOG(N11)-INT(LOG(N11)))-ROUND(96*(LOG(N11)-INT(LOG(N11))),0)<0,ROUND(96*(LOG(N11)-INT(LOG(N11))),0)-1,ROUND(96*(LOG(N11)-INT(LOG(N11))),0))/96))*POWER(10,INT(LOG(N11))-2))) -> 43200 | P11: Ω
A12: 1.5 | E12: 0 | F12: 0 | M12: Rt1 | N12: ='Variable Management'!B38*1000 -> 86031.85841 | O12: =IF(N12>(INT(0.5+100*POWER(10,IF(96*(LOG(N12)-INT(LOG(N12)))-ROUND(96*(LOG(N12)-INT(LOG(N12))),0)<0,ROUND(96*(LOG(N12)-INT(LOG(N12))),0)-1,ROUND(96*(LOG(N12)-INT(LOG(N12))),0))/96))*POWER(10,INT(LOG(N12))-2)+INT(0.5+100*POWER(10,(IF(96*(LOG(N12)-INT(LOG(N12)))-ROUND(96*(LOG(N12)-INT(LOG(N12))),0)<0,ROUND(96*(LOG(N12)-INT(LOG(N12))),0)-1,ROUND(96*(LOG(N12)-INT(LOG(N12))),0))+1)/96))*POWER(10,INT(LOG(N12))-2))/2,INT(0.5+100*POWER(10,(IF(96*(LOG(N12)-INT(LOG(N12)))-ROUND(96*(LOG(N12)-INT(LOG(N12))),0)<0,ROUND(96*(LOG(N12)-INT(LOG(N12))),0)-1,ROUND(96*(LOG(N12)-INT(LOG(N12))),0))+1)/96))*POWER(10,INT(LOG(N12))-2),INT(0.5+100*POWER(10,IF(96*(LOG(N12)-INT(LOG(N12)))-ROUND(96*(LOG(N12)-INT(LOG(N12))),0)<0,ROUND(96*(LOG(N12)-INT(LOG(N12))),0)-1,ROUND(96*(LOG(N12)-INT(LOG(N12))),0))/96))*POWER(10,INT(LOG(N12))-2)) -> 86600 | P12: Ω
A13: 1.8 | E13: 0 | F13: 0 | M13: Rt2 | N13: ='Variable Management'!#REF!*1000 ->  | O13: =IF(N13="OPEN","OPEN",IF(N13>(INT(0.5+100*POWER(10,IF(96*(LOG(N13)-INT(LOG(N13)))-ROUND(96*(LOG(N13)-INT(LOG(N13))),0)<0,ROUND(96*(LOG(N13)-INT(LOG(N13))),0)-1,ROUND(96*(LOG(N13)-INT(LOG(N13))),0))/96))*POWER(10,INT(LOG(N13))-2)+INT(0.5+100*POWER(10,(IF(96*(LOG(N13)-INT(LOG(N13)))-ROUND(96*(LOG(N13)-INT(LOG(N13))),0)<0,ROUND(96*(LOG(N13)-INT(LOG(N13))),0)-1,ROUND(96*(LOG(N13)-INT(LOG(N13))),0))+1)/96))*POWER(10,INT(LOG(N13))-2))/2,INT(0.5+100*POWER(10,(IF(96*(LOG(N13)-INT(LOG(N13)))-ROUND(96*(LOG(N13)-INT(LOG(N13))),0)<0,ROUND(96*(LOG(N13)-INT(LOG(N13))),0)-1,ROUND(96*(LOG(N13)-INT(LOG(N13))),0))+1)/96))*POWER(10,INT(LOG(N13))-2),INT(0.5+100*POWER(10,IF(96*(LOG(N13)-INT(LOG(N13)))-ROUND(96*(LOG(N13)-INT(LOG(N13))),0)<0,ROUND(96*(LOG(N13)-INT(LOG(N13))),0)-1,ROUND(96*(LOG(N13)-INT(LOG(N13))),0))/96))*POWER(10,INT(LOG(N13))-2))) ->  | P13: Ω
A14: 2.2 | B14: =IF(IF((B$3*10^12-$A15)*(B$3*10^12-$A14)*-1<0,0,1)*IF(ABS(B$3*10^12-$A15)>(B$3*10^12-$A14),$A14,$A15)=B15,0,IF((B$3*10^12-$A15)*(B$3*10^12-$A14)*-1<0,0,1)*IF(ABS(B$3*10^12-$A15)>(B$3*10^12-$A14),$A14,$A15)) ->  | E14: 0 | F14: 0
A15: 2.7 | E15: 0 | F15: 0
A16: 3.3 | E16: 0 | F16: 0 | M16: Rs | N16: =Rs_ideal*1000 ->  | O16: =IF(N16=0,0,IF(N16>(INT(0.5+100*POWER(10,IF(96*(LOG(N16)-INT(LOG(N16)))-ROUND(96*(LOG(N16)-INT(LOG(N16))),0)<0,ROUND(96*(LOG(N16)-INT(LOG(N16))),0)-1,ROUND(96*(LOG(N16)-INT(LOG(N16))),0))/96))*POWER(10,INT(LOG(N16))-2)+INT(0.5+100*POWER(10,(IF(96*(LOG(N16)-INT(LOG(N16)))-ROUND(96*(LOG(N16)-INT(LOG(N16))),0)<0,ROUND(96*(LOG(N16)-INT(LOG(N16))),0)-1,ROUND(96*(LOG(N16)-INT(LOG(N16))),0))+1)/96))*POWER(10,INT(LOG(N16))-2))/2,INT(0.5+100*POWER(10,(IF(96*(LOG(N16)-INT(LOG(N16)))-ROUND(96*(LOG(N16)-INT(LOG(N16))),0)<0,ROUND(96*(LOG(N16)-INT(LOG(N16))),0)-1,ROUND(96*(LOG(N16)-INT(LOG(N16))),0))+1)/96))*POWER(10,INT(LOG(N16))-2),INT(0.5+100*POWER(10,IF(96*(LOG(N16)-INT(LOG(N16)))-ROUND(96*(LOG(N16)-INT(LOG(N16))),0)<0,ROUND(96*(LOG(N16)-INT(LOG(N16))),0)-1,ROUND(96*(LOG(N16)-INT(LOG(N16))),0))/96))*POWER(10,INT(LOG(N16))-2))) ->  | P16: mΩ
A17: 3.9 | E17: 0 | F17: 0 | M17: Cres | N17: =Cres ->  | O17: =G4*1000000000000 ->  | P17: pF
A18: 4.7 | E18: 0 | F18: 0
A19: 5.6 | E19: 0 | F19: 0
A20: 6.8 | E20: 0 | F20: 0
A21: 8.2 | E21: 0 | F21: 0
A22: 10 | E22: 0 | F22: 0 | M22: Cdither | N22: =Cdither_init ->  | O22: =H4 -> 
A23: 12 | E23: 0 | F23: 0
A24: 15 | E24: 0 | F24: 0
A25: 18 | E25: 0 | F25: 0
A26: 22 | E26: 0 | F26: 0
A27: 27 | E27: 0 | F27: 0
A28: 33 | E28: 0 | F28: 0
A29: 39 | E29: 0 | F29: 0
A30: 47 | E30: 0 | F30: 0 | M30: Rc1 | N30: =O7/1000&" kΩ" -> 33.2 kΩ | O30: =O7/1000 -> 33.2 | P30: kΩ
A31: 56 | E31: 0 | F31: 0 | M31: Cc1 | N31: =C4*1000000000&" nF" ->  | O31: =C4*1000000000 ->  | P31: nF
A32: 68 | E32: 0 | F32: 0 | M32: Cc2 | N32: =D4*1000000000000&" pF" ->  | O32: =D4*1000000000000 ->  | P32: pF
A33: 82 | E33: 0 | F33: 0
A34: =A22*10 -> 100 | E34: 0 | F34: 0 | M34: Rc2 | N34: =O8/1000&" kΩ" ->  | O34: =O8/1000 ->  | P34: kΩ
A35: =A23*10 -> 120 | E35: 0 | F35: 0 | M35: Cc3 | N35: =I4*1000000000&" nF" ->  | O35: =I4*1000000000 ->  | P35: nF
A36: 150 | E36: 0 | F36: 0 | M36: Cc4 | N36: =J4*1000000000000&" pF" ->  | O36: =J4*1000000000000 ->  | P36: pF
A37: 180 | E37: 0 | F37: 0
A38: 220 | E38: 0 | F38: 0
A39: 270 | C39: =IF(IF((C$3*10^12-$A40)*(C$3*10^12-$A39)*-1<0,0,1)*IF(ABS(C$3*10^12-$A40)>(C$3*10^12-$A39),$A39,$A40)=C40,0,IF((C$3*10^12-$A40)*(C$3*10^12-$A39)*-1<0,0,1)*IF(ABS(C$3*10^12-$A40)>(C$3*10^12-$A39),$A39,$A40)) ->  | E39: 0 | F39: 0
A40: 330 | E40: 0 | F40: 0
A41: 390 | E41: 0 | F41: 0
A42: 470 | E42: 0 | F42: 0
A43: 560 | E43: 0 | F43: 0
A44: 680 | E44: 0 | F44: 0
A45: =A33*10 -> 820 | E45: 0 | F45: 0
A46: 1000 | E46: 0 | F46: 0
A47: 1200 | E47: 0 | F47: 0
A48: 1500 | E48: 0 | F48: 0
A49: 1800 | E49: 0 | F49: 0
A50: 2200 | E50: 0 | F50: 0
A51: 2700 | E51: 0 | F51: 0
A52: 3300 | E52: 0 | F52: 0
A53: 3900 | E53: 0 | F53: 0
A54: 4700 | E54: 0 | F54: 0
A55: 5600 | E55: 0 | F55: 0
A56: 6800 | E56: 0 | F56: 0
A57: 8200 | E57: 0 | F57: 0
A58: 10000 | E58: 0 | F58: 0
A59: 12000 | E59: 0 | F59: 0
A60: 15000 | E60: 0 | F60: 0
A61: 18000 | E61: 0 | F61: 0
A62: 22000 | E62: 0 | F62: 0
A63: 27000 | E63: 0 | F63: 0
A64: 33000 | E64: 0 | F64: 0
A65: 39000 | E65: 0 | F65: 0
A66: 47000 | E66: 0 | F66: 0
A67: 56000 | E67: 0 | F67: 0
A68: 68000 | E68: 0 | F68: 0
A69: 82000 | E69: 0 | F69: 0 | J69: =IF(IF((J$3*10^12-$A70)*(J$3*10^12-$A69)*-1<0,0,1)*IF(ABS(J$3*10^12-$A70)>(J$3*10^12-$A69),$A69,$A70)=J70,0,IF((J$3*10^12-$A70)*(J$3*10^12-$A69)*-1<0,0,1)*IF(ABS(J$3*10^12-$A70)>(J$3*10^12-$A69),$A69,$A70)) -> 
A70: 100000 | D70: =IF(IF((D$3*10^12-$A71)*(D$3*10^12-$A70)*-1<0,0,1)*IF(ABS(D$3*10^12-$A71)>(D$3*10^12-$A70),$A70,$A71)=D71,0,IF((D$3*10^12-$A71)*(D$3*10^12-$A70)*-1<0,0,1)*IF(ABS(D$3*10^12-$A71)>(D$3*10^12-$A70),$A70,$A71)) ->  | E70: 0 | F70: 0
A71: 120000 | B71: =IF(IF((B$3*10^12-$A72)*(B$3*10^12-$A71)*-1<0,0,1)*IF(ABS(B$3*10^12-$A72)>(B$3*10^12-$A71),$A71,$A72)=B72,0,IF((B$3*10^12-$A72)*(B$3*10^12-$A71)*-1<0,0,1)*IF(ABS(B$3*10^12-$A72)>(B$3*10^12-$A71),$A71,$A72)) ->  | C71: =IF(IF((C$3*10^12-$A72)*(C$3*10^12-$A71)*-1<0,0,1)*IF(ABS(C$3*10^12-$A72)>(C$3*10^12-$A71),$A71,$A72)=C72,0,IF((C$3*10^12-$A72)*(C$3*10^12-$A71)*-1<0,0,1)*IF(ABS(C$3*10^12-$A72)>(C$3*10^12-$A71),$A71,$A72)) ->  | E71: 0 | F71: =IF(IF((F$3*10^12-$A72)*(F$3*10^12-$A71)*-1<0,0,1)*IF(ABS(F$3*10^12-$A72)>(F$3*10^12-$A71),$A71,$A72)=F72,0,IF((F$3*10^12-$A72)*(F$3*10^12-$A71)*-1<0,0,1)*IF(ABS(F$3*10^12-$A72)>(F$3*10^12-$A71),$A71,$A72)) -> 0 | G71: =IF(IF((G$3*10^12-$A72)*(G$3*10^12-$A71)*-1<0,0,1)*IF(ABS(G$3*10^12-$A72)>(G$3*10^12-$A71),$A71,$A72)=G72,0,IF((G$3*10^12-$A72)*(G$3*10^12-$A71)*-1<0,0,1)*IF(ABS(G$3*10^12-$A72)>(G$3*10^12-$A71),$A71,$A72)) ->  | H71: =IF(IF((H$3*10^12-$A72)*(H$3*10^12-$A71)*-1<0,0,1)*IF(ABS(H$3*10^12-$A72)>(H$3*10^12-$A71),$A71,$A72)=H72,0,IF((H$3*10^12-$A72)*(H$3*10^12-$A71)*-1<0,0,1)*IF(ABS(H$3*10^12-$A72)>(H$3*10^12-$A71),$A71,$A72)) ->  | I71: =IF(IF((I$3*10^12-$A72)*(I$3*10^12-$A71)*-1<0,0,1)*IF(ABS(I$3*10^12-$A72)>(I$3*10^12-$A71),$A71,$A72)=I72,0,IF((I$3*10^12-$A72)*(I$3*10^12-$A71)*-1<0,0,1)*IF(ABS(I$3*10^12-$A72)>(I$3*10^12-$A71),$A71,$A72)) -> 
A72: 150000 | E72: 0 | F72: 0
A73: 180000 | E73: 0 | F73: 0
A74: 220000 | E74: 0 | F74: 0
A75: 270000 | E75: 0 | F75: 0
A76: 330000 | E76: 0 | F76: 0
A77: 390000 | E77: 0 | F77: 0
A78: 470000 | E78: 0 | F78: 0
A79: 560000 | E79: 0 | F79: 0
A80: 680000 | E80: 0 | F80: 0
A81: 820000 | E81: 0 | F81: 0
A82: 1000000 | E82: 0 | F82: 0
A83: 1200000 | E83: 0 | F83: 0
A84: 1500000 | E84: 0 | F84: 0
A85: 1800000 | E85: 0 | F85: 0
A86: 2200000 | E86: 0 | F86: 0
A87: 2700000 | E87: 0 | F87: 0
A88: 3300000 | E88: 0 | F88: 0
A89: 3900000 | E89: 0 | F89: 0
A90: 4700000 | E90: 0 | F90: 0
A91: 5600000 | E91: 0 | F91: 6800000
A92: 6800000 | E92: 0 | F92: 0
A93: 8200000 | E93: 0 | F93: 0
A94: 10000000 | E94: 0 | F94: 0
A95: 12000000 | E95: 0 | F95: 0
A96: 15000000 | E96: 0 | F96: 0
A97: 18000000 | E97: 0 | F97: 0
A98: 22000000 | E98: 0 | F98: 0
A99: =A87*10 -> 27000000 | E99: 0 | F99: 0
A100: 33000000 | E100: 0 | F100: 0
A101: 39000000 | E101: 0 | F101: 0
A102: 47000000 | E102: 0 | F102: 0
A103: 56000000 | E103: 0 | F103: =IF(IF((F$3*10^12-$A104)*(F$3*10^12-$A103)*-1<0,0,1)*IF(ABS(F$3*10^12-$A104)>(F$3*10^12-$A103),$A103,$A104)=F104,0,IF((F$3*10^12-$A104)*(F$3*10^12-$A103)*-1<0,0,1)*IF(ABS(F$3*10^12-$A104)>(F$3*10^12-$A103),$A103,$A104)) -> 0 | G103: =IF(IF((G$3*10^12-$A104)*(G$3*10^12-$A103)*-1<0,0,1)*IF(ABS(G$3*10^12-$A104)>(G$3*10^12-$A103),$A103,$A104)=G104,0,IF((G$3*10^12-$A104)*(G$3*10^12-$A103)*-1<0,0,1)*IF(ABS(G$3*10^12-$A104)>(G$3*10^12-$A103),$A103,$A104)) ->  | H103: =IF(IF((H$3*10^12-$A104)*(H$3*10^12-$A103)*-1<0,0,1)*IF(ABS(H$3*10^12-$A104)>(H$3*10^12-$A103),$A103,$A104)=H104,0,IF((H$3*10^12-$A104)*(H$3*10^12-$A103)*-1<0,0,1)*IF(ABS(H$3*10^12-$A104)>(H$3*10^12-$A103),$A103,$A104)) ->  | I103: =IF(IF((I$3*10^12-$A104)*(I$3*10^12-$A103)*-1<0,0,1)*IF(ABS(I$3*10^12-$A104)>(I$3*10^12-$A103),$A103,$A104)=I104,0,IF((I$3*10^12-$A104)*(I$3*10^12-$A103)*-1<0,0,1)*IF(ABS(I$3*10^12-$A104)>(I$3*10^12-$A103),$A103,$A104)) -> 
A104: 68000000 | E104: 0 | F104: 0
A105: 82000000 | E105: 0 | F105: 0
A106: 100000000 | E106: 0 | F106: 0
A107: 120000000 | E107: 120000000 | F107: 0
A108: 150000000 | E108: 0 | F108: 0
A109: 180000000 | E109: 0 | F109: 0
A110: 220000000 | E110: 0 | F110: 0
A111: 270000000 | E111: 0 | F111: 0
A112: 330000000 | E112: 0 | F112: 0
A113: 390000000 | E113: 0 | F113: 0
A114: 470000000 | E114: 0 | F114: 0
A115: 560000000 | E115: 0 | F115: 0
A116: 680000000 | E116: 0 | F116: 0
A117: 820000000 | E117: 0 | F117: 0
A118: 1000000000 | E118: 0 | F118: 0
A119: 1200000000 | E119: 0 | F119: 0
A120: 1500000000 | E120: 0 | F120: 0
A121: 1800000000 | E121: 0 | F121: 0
A122: 2200000000 | E122: 0 | F122: 0
A123: 2700000000 | E123: 0 | F123: 0
A124: 3300000000 | E124: 0 | F124: 0
A125: 3900000000 | E125: 0 | F125: 0
A126: 4700000000 | E126: 0 | F126: 0
A127: 5600000000 | E127: 0 | F127: 0
A128: 6800000000 | E128: 0 | F128: 0
A129: 8200000000 | E129: 0 | F129: 0
A130: 10000000000 | E130: 0 | F130: 0
A131: 12000000000 | E131: 0 | F131: 0
A132: 15000000000 | E132: 0 | F132: 0
A133: 18000000000 | E133: 0 | F133: 0 | J133: =IF(IF((J$3*10^12-$A134)*(J$3*10^12-$A133)*-1<0,0,1)*IF(ABS(J$3*10^12-$A134)>(J$3*10^12-$A133),$A133,$A134)=J134,0,IF((J$3*10^12-$A134)*(J$3*10^12-$A133)*-1<0,0,1)*IF(ABS(J$3*10^12-$A134)>(J$3*10^12-$A133),$A133,$A134)) -> 
A134: 22000000000 | E134: =IF(IF((E$3*10^12-$A135)*(E$3*10^12-$A134)*-1<0,0,1)*IF(ABS(E$3*10^12-$A135)>(E$3*10^12-$A134),$A134,$A135)=E135,0,IF((E$3*10^12-$A135)*(E$3*10^12-$A134)*-1<0,0,1)*IF(ABS(E$3*10^12-$A135)>(E$3*10^12-$A134),$A134,$A135)) -> 0 | F134: 0 | J134: =IF(IF((J$3*10^12-$A135)*(J$3*10^12-$A134)*-1<0,0,1)*IF(ABS(J$3*10^12-$A135)>(J$3*10^12-$A134),$A134,$A135)=J135,0,IF((J$3*10^12-$A135)*(J$3*10^12-$A134)*-1<0,0,1)*IF(ABS(J$3*10^12-$A135)>(J$3*10^12-$A134),$A134,$A135)) -> 
A135: 27000000000 | B135: =IF(IF((B$3*10^12-$A136)*(B$3*10^12-$A135)*-1<0,0,1)*IF(ABS(B$3*10^12-$A136)>(B$3*10^12-$A135),$A135,$A136)=B136,0,IF((B$3*10^12-$A136)*(B$3*10^12-$A135)*-1<0,0,1)*IF(ABS(B$3*10^12-$A136)>(B$3*10^12-$A135),$A135,$A136)) ->  | C135: =IF(IF((C$3*10^12-$A136)*(C$3*10^12-$A135)*-1<0,0,1)*IF(ABS(C$3*10^12-$A136)>(C$3*10^12-$A135),$A135,$A136)=C136,0,IF((C$3*10^12-$A136)*(C$3*10^12-$A135)*-1<0,0,1)*IF(ABS(C$3*10^12-$A136)>(C$3*10^12-$A135),$A135,$A136)) ->  | E135: 0 | F135: 0
A136: 33000000000 | E136: 0 | F136: 0
A137: 39000000000 | E137: 0 | F137: 0
A138: 47000000000 | E138: 0 | F138: 0
A139: 56000000000 | E139: 0 | F139: 0
A140: 68000000000 | E140: 0 | F140: 0
A141: 82000000000 | E141: 0 | F141: 0
A142: 100000000000 | E142: 0 | F142: 0
A143: 120000000000 | E143: 0 | F143: 0
A144: 150000000000 | E144: 0 | F144: 0
A145: 180000000000 | E145: 0 | F145: 0
A146: 220000000000 | E146: 0 | F146: 0
A147: 270000000000 | E147: 0 | F147: 0
A148: 330000000000 | E148: 0 | F148: 0
A149: 390000000000 | E149: 0 | F149: 0
A150: 470000000000 | E150: 0 | F150: 0
A151: 560000000000 | E151: 0 | F151: 0
A152: 680000000000 | E152: 0 | F152: 0
A153: 820000000000 | E153: 0 | F153: 0
A154: 1000000000000 | E154: 0 | F154: 0
A155: 1200000000000 | E155: 0 | F155: 0
A156: 1500000000000 | E156: 0 | F156: 0
A157: 1800000000000 | E157: 0 | F157: 0
A158: 2200000000000 | E158: 0 | F158: 0
A159: 2700000000000 | E159: 2700000000000 | F159: 2700000000000

Sheet Snubber (hidden)
C1: UNITS | D1: STD UNITS
A2: Frequency of Ringing | B2: 85 | C2: MHz | D2: =B2*1000000 -> 85000000 | E2: Hz
A3: SW capacitance | B3: 3000 | C3: pF | D3: =B3*0.000000000001 -> 3e-09 | E3: F
A4: Lpar | B4: =1000000000*1/((D2*2*3.14159)^2*D3) -> 1.168643077 | C4: nH | D4: =B4/1000000000 -> 1.168643077e-09 | E4: H
A5: Csnub | B5: =4*B3 -> 12000 | C5: pF | D5: =B5*0.000000000001 -> 1.2e-08 | E5: F
A6: Rsnub | B6: =SQRT(D4/D3) -> 0.6241375589 | C6: Ω | D6: =B6 -> 0.6241375589 | E6: Ω

Sheet Parallel Output Caps (hidden)
A4: Fsw | B4: =Fsw -> 400000
A6: C1 | B6: 20 | C6: uF | D6: =B6/1000000 -> 2e-05 | E6: F
A7: R1 | B7: 0.5 | C7: mOhms | D7: =B7/1000 -> 0.0005 | E7: Ohms
A9: C2 | B9: 68 | C9: uF | D9: =B9/1000000 -> 6.8e-05 | E9: F
A10: R2 | B10: 20 | C10: mOhms | D10: =B10/1000 -> 0.02 | E10: Ohms
A13: I1 | B13: =(D6/(D6+D9))*SQRT((D10*D9*B4)^2+1)/SQRT((((D7+D10)*D6*D9/(D9+D6))*B4)^2+1) -> 0.256672574 | C13: %
A14: I2 | B14: =1-B13 -> 0.743327426 | C14: %
A16: I1 | B16: =B13*(Iripple1/(2*SQRT(3))) ->  | C16: A
A17: I2 | B17: =B14*(Iripple1/(2*SQRT(3))) ->  | C17: A
